Workbook

Sheet Performance Table
B2: STEP 1: Build Your Own Asset Allocation Model in Pink Cells | H2: =IF(H3<>1,"ERROR","") ->  | I2: 7Twelve Portfolio | J2: STEP 2: | K2: Annual % Returns of 7Twelveand YOUR COMPARISON PORTFOLIO | T2: STEP 3: Enter Retirement Portfolio Data in pink cells
B3: Enter Your Allocations -> | C3: 0.25 | D3: 0.1 | E3: 0.15 | F3: 0.35 | G3: 0.15 | H3: =SUM(C3:G3) -> 1 | I3: www.7TwelvePortfolio.com | J3: Enter a "1" below to include year, "0" to exclude year | L3: 7Twelve performance with annual rebalancing
B4: Asset Class Annual Returns | C4: Large US Stock | D4: Small US Stock | E4: Non-US Stock | F4: Bonds | G4: Cash | I4: Data Period (Years selected must be contiguous) No gaps in period being analyzed | K4: Index-based 7Twelve Portfolio | L4: Active 7Twelve Portfolio | M4: Passive 7Twelve Portfolio | N4: Passive 7Twelve 20% Extra Cash | O4: Passive 7Twelve 40% Extra Cash | P4: Passive 7Twelve 60% Extra Cash | R4: Your Custom Portfolio | T4: Starting Balance in Retirement Account | U4: 100000
B5: 2001 | C5: -11.88582097 | D5: 2.486288025 | E5: -21.44276543 | F5: 8.443452013 | G5: 3.382786814 | I5: ='Raw data'!A4 -> 2001 | J5: 1 | K5: =+IF($J5=1,'Raw data'!C4,"") -> -3.090150812 | L5: =+IF($J5=1,'Raw data'!D4,"") -> 1.977690421 | M5: =+IF($J5=1,'Raw data'!E4,"") -> -2.941274182 | N5: =+IF($J5=1,'Raw data'!F4,"") -> -1.720071791 | O5: =+IF($J5=1,'Raw data'!G4,"") -> -0.4988694005 | P5: =+IF($J5=1,'Raw data'!H4,"") -> 0.7223329904 | R5: =+IF($J5=1,'Raw data'!I4,"") -> -3.476615028 | T5: Initial Withdrawal Rate (%) | U5: 0.04
B6: =B5+1 -> 2002 | C6: -22.10044547 | D6: -20.48374505 | E6: -15.94008022 | F6: 10.25497047 | G6: 1.602233361 | I6: ='Raw data'!A5 -> 2002 | J6: 1 | K6: =+IF($J6=1,'Raw data'!C5,"") -> -1.562148173 | L6: =+IF($J6=1,'Raw data'!D5,"") -> 1.179802055 | M6: =+IF($J6=1,'Raw data'!E5,"") -> -1.636202685 | N6: =+IF($J6=1,'Raw data'!F5,"") -> -1.178915149 | O6: =+IF($J6=1,'Raw data'!G5,"") -> -0.7216276128 | P6: =+IF($J6=1,'Raw data'!H5,"") -> -0.2643400766 | R6: =+IF($J6=1,'Raw data'!I5,"") -> -7.134923237 | T6: Annual Cost of Living Adjustment (%) | U6: 0.05
B7: =B6+1 -> 2003 | C7: 28.68453159 | D7: 47.25415439 | E7: 38.58590299 | F7: 4.104556072 | G7: 1.010949495 | I7: ='Raw data'!A6 -> 2003 | J7: 1 | K7: =+IF($J7=1,'Raw data'!C6,"") -> 26.09708925 | L7: =+IF($J7=1,'Raw data'!D6,"") -> 27.81567103 | M7: =+IF($J7=1,'Raw data'!E6,"") -> 25.95270497 | N7: =+IF($J7=1,'Raw data'!F6,"") -> 20.74129344 | O7: =+IF($J7=1,'Raw data'!G6,"") -> 15.52988191 | P7: =+IF($J7=1,'Raw data'!H6,"") -> 10.31847039 | R7: =+IF($J7=1,'Raw data'!I6,"") -> 18.27267084
B8: 2004 | C8: 10.88219163 | D8: 18.32959203 | E8: 20.24721238 | F8: 4.338792033 | G8: 1.370758218 | I8: ='Raw data'!A7 -> 2004 | J8: 1 | K8: =+IF($J8=1,'Raw data'!C7,"") -> 16.95698485 | L8: =+IF($J8=1,'Raw data'!D7,"") -> 18.79351968 | M8: =+IF($J8=1,'Raw data'!E7,"") -> 16.80446636 | N8: =+IF($J8=1,'Raw data'!F7,"") -> 13.46515727 | O8: =+IF($J8=1,'Raw data'!G7,"") -> 10.12584819 | P8: =+IF($J8=1,'Raw data'!H7,"") -> 6.786539103 | R8: =+IF($J8=1,'Raw data'!I7,"") -> 8.314779914 | T8: Year of Withdrawal | U8: Withdrawal Amount
B9: 2005 | C9: 4.911870657 | D9: 4.553781907 | E9: 13.5354153 | F9: 2.428348595 | G9: 3.145251164 | I9: ='Raw data'!A8 -> 2005 | J9: 1 | K9: =+IF($J9=1,'Raw data'!C8,"") -> 11.48562195 | L9: =+IF($J9=1,'Raw data'!D8,"") -> 11.9069003 | M9: =+IF($J9=1,'Raw data'!E8,"") -> 11.34355801 | N9: =+IF($J9=1,'Raw data'!F8,"") -> 9.476597806 | O9: =+IF($J9=1,'Raw data'!G8,"") -> 7.609637601 | P9: =+IF($J9=1,'Raw data'!H8,"") -> 5.742677397 | R9: =+IF($J9=1,'Raw data'!I8,"") -> 4.035367833 | T9: ='Performance Graphs'!N29 -> 2001 | U9: ='Performance Graphs'!Q29 -> 4000
B10: 2006 | C10: 15.79436065 | D10: 18.36735884 | E10: 26.3406299 | F10: 4.333795417 | G10: 4.726586088 | I10: ='Raw data'!A9 -> 2006 | J10: 1 | K10: =+IF($J10=1,'Raw data'!C9,"") -> 14.26140351 | L10: =+IF($J10=1,'Raw data'!D9,"") -> 14.97673833 | M10: =+IF($J10=1,'Raw data'!E9,"") -> 13.96486633 | N10: =+IF($J10=1,'Raw data'!F9,"") -> 11.94847572 | O10: =+IF($J10=1,'Raw data'!G9,"") -> 9.932085108 | P10: =+IF($J10=1,'Raw data'!H9,"") -> 7.915694497 | R10: =+IF($J10=1,'Raw data'!I9,"") -> 10.96223684 | T10: ='Performance Graphs'!N30 -> 2002 | U10: ='Performance Graphs'!Q30 -> 4200
B11: 2007 | C11: 5.493848441 | D11: -1.565972836 | E11: 11.16965806 | F11: 6.966649864 | G11: 4.351164631 | I11: ='Raw data'!A10 -> 2007 | J11: 1 | K11: =+IF($J11=1,'Raw data'!C10,"") -> 11.31907533 | L11: =+IF($J11=1,'Raw data'!D10,"") -> 12.77853217 | M11: =+IF($J11=1,'Raw data'!E10,"") -> 10.58495875 | N11: =+IF($J11=1,'Raw data'!F10,"") -> 9.296457174 | O11: =+IF($J11=1,'Raw data'!G10,"") -> 8.007955602 | P11: =+IF($J11=1,'Raw data'!H10,"") -> 6.71945403 | R11: =+IF($J11=1,'Raw data'!I10,"") -> 4.983315683 | T11: ='Performance Graphs'!N31 -> 2003 | U11: ='Performance Graphs'!Q31 -> 4410
B12: 2008 | C12: -36.99788926 | D12: -33.78716897 | E12: -43.37852378 | F12: 5.240422218 | G12: 1.362201804 | I12: ='Raw data'!A11 -> 2008 | J12: 1 | K12: =+IF($J12=1,'Raw data'!C11,"") -> -26.48878673 | L12: =+IF($J12=1,'Raw data'!D11,"") -> -29.14289434 | M12: =+IF($J12=1,'Raw data'!E11,"") -> -26.16404638 | N12: =+IF($J12=1,'Raw data'!F11,"") -> -20.57661121 | O12: =+IF($J12=1,'Raw data'!G11,"") -> -14.98917603 | P12: =+IF($J12=1,'Raw data'!H11,"") -> -9.401740857 | R12: =+IF($J12=1,'Raw data'!I11,"") -> -18.09648973 | T12: ='Performance Graphs'!N32 -> 2004 | U12: ='Performance Graphs'!Q32 -> 4630.5
B13: 2009 | C13: 26.46455158 | D13: 27.171856 | E13: 31.77603515 | F13: 5.930569828 | G13: 0.1501011888 | I13: ='Raw data'!A12 -> 2009 | J13: 1 | K13: =+IF($J13=1,'Raw data'!C12,"") -> 24.64373834 | L13: =+IF($J13=1,'Raw data'!D12,"") -> 31.3553042 | M13: =+IF($J13=1,'Raw data'!E12,"") -> 24.64405985 | N13: =+IF($J13=1,'Raw data'!F12,"") -> 19.62150302 | O13: =+IF($J13=1,'Raw data'!G12,"") -> 14.59894619 | P13: =+IF($J13=1,'Raw data'!H12,"") -> 9.576389354 | R13: =+IF($J13=1,'Raw data'!I12,"") -> 15.19794338 | T13: ='Performance Graphs'!N33 -> 2005 | U13: ='Performance Graphs'!Q33 -> 4862.025
B14: 2010 | C14: 15.06332192 | D14: 26.85482303 | E14: 7.750053219 | F14: 6.541821182 | G14: 0.1366852293 | I14: ='Raw data'!A13 -> 2010 | J14: 1 | K14: =+IF($J14=1,'Raw data'!C13,"") -> 13.4124727 | L14: =+IF($J14=1,'Raw data'!D13,"") -> 13.51764056 | M14: =+IF($J14=1,'Raw data'!E13,"") -> 13.4094272 | N14: =+IF($J14=1,'Raw data'!F13,"") -> 10.53974505 | O14: =+IF($J14=1,'Raw data'!G13,"") -> 7.670062901 | P14: =+IF($J14=1,'Raw data'!H13,"") -> 4.800380753 | R14: =+IF($J14=1,'Raw data'!I13,"") -> 8.923960964 | T14: ='Performance Graphs'!N34 -> 2006 | U14: ='Performance Graphs'!Q34 -> 5105.12625
B15: 2011 | C15: 2.111685121 | D15: -4.175586391 | E15: -12.14124017 | F15: 7.842089776 | G15: 0.05231164215 | I15: ='Raw data'!A14 -> 2011 | J15: 1 | K15: =+IF($J15=1,'Raw data'!C14,"") -> -1.768822983 | L15: =+IF($J15=1,'Raw data'!D14,"") -> -7.311845124 | M15: =+IF($J15=1,'Raw data'!E14,"") -> -1.99747135 | N15: =+IF($J15=1,'Raw data'!F14,"") -> -1.789035284 | O15: =+IF($J15=1,'Raw data'!G14,"") -> -1.580599218 | P15: =+IF($J15=1,'Raw data'!H14,"") -> -1.372163152 | R15: =+IF($J15=1,'Raw data'!I14,"") -> 0.04175478287 | T15: ='Performance Graphs'!N35 -> 2007 | U15: ='Performance Graphs'!Q35 -> 5360.382563
B16: 2012 | C16: 16.00346913 | D16: 16.34964067 | E16: 17.31703965 | F16: 4.214826221 | G16: 0.08583358622 | I16: ='Raw data'!A15 -> 2012 | J16: 1 | K16: =+IF($J16=1,'Raw data'!C15,"") -> 9.770991273 | L16: =+IF($J16=1,'Raw data'!D15,"") -> 11.41957054 | M16: =+IF($J16=1,'Raw data'!E15,"") -> 9.639039801 | N16: =+IF($J16=1,'Raw data'!F15,"") -> 7.518893183 | O16: =+IF($J16=1,'Raw data'!G15,"") -> 5.398746565 | P16: =+IF($J16=1,'Raw data'!H15,"") -> 3.278599947 | R16: =+IF($J16=1,'Raw data'!I15,"") -> 8.721451514 | T16: ='Performance Graphs'!N36 -> 2008 | U16: ='Performance Graphs'!Q36 -> 5628.401691
B17: 2013 | C17: 32.38815823 | D17: 38.82239604 | E17: 22.77813018 | F17: -2.023686499 | G17: 0.05821532911 | I17: ='Raw data'!A16 -> 2013 | J17: 1 | K17: =+IF($J17=1,'Raw data'!C16,"") -> 9.463189958 | L17: =+IF($J17=1,'Raw data'!D16,"") -> 10.32975057 | M17: =+IF($J17=1,'Raw data'!E16,"") -> 8.649201602 | N17: =+IF($J17=1,'Raw data'!F16,"") -> 6.723221557 | O17: =+IF($J17=1,'Raw data'!G16,"") -> 4.797241511 | P17: =+IF($J17=1,'Raw data'!H16,"") -> 2.871261466 | R17: =+IF($J17=1,'Raw data'!I16,"") -> 13.69644071 | T17: ='Performance Graphs'!N37 -> 2009 | U17: ='Performance Graphs'!Q37 -> 5909.821775
B18: 2014 | C18: 13.6886008 | D18: 4.894397141 | E18: -4.901774686 | F18: 5.965700754 | G18: 0.03260482933 | I18: ='Raw data'!A17 -> 2014 | J18: 1 | K18: =+IF($J18=1,'Raw data'!C17,"") -> 0.4946053193 | L18: =+IF($J18=1,'Raw data'!D17,"") -> -0.9467912018 | M18: =+IF($J18=1,'Raw data'!E17,"") -> 1.495570451 | N18: =+IF($J18=1,'Raw data'!F17,"") -> 0.998376445 | O18: =+IF($J18=1,'Raw data'!G17,"") -> 0.5011824394 | P18: =+IF($J18=1,'Raw data'!H17,"") -> 0.003988433725 | R18: =+IF($J18=1,'Raw data'!I17,"") -> 4.269209698 | T18: ='Performance Graphs'!N38 -> 2010 | U18: ='Performance Graphs'!Q38 -> 6205.312864
B19: 2015 | C19: 1.38370949 | D19: -4.414161995 | E19: -0.8143603267 | F19: 0.5499176869 | G19: 0.0527111959 | I19: ='Raw data'!A18 -> 2015 | J19: 1 | K19: =+IF($J19=1,'Raw data'!C18,"") -> -7.05782527 | L19: =+IF($J19=1,'Raw data'!D18,"") -> -7.955817256 | M19: =+IF($J19=1,'Raw data'!E18,"") -> -6.07237069 | N19: =+IF($J19=1,'Raw data'!F18,"") -> -5.048114599 | O19: =+IF($J19=1,'Raw data'!G18,"") -> -4.023858508 | P19: =+IF($J19=1,'Raw data'!H18,"") -> -2.999602417 | R19: =+IF($J19=1,'Raw data'!I18,"") -> -1.017265006 | T19: ='Performance Graphs'!N39 -> 2011 | U19: ='Performance Graphs'!Q39 -> 6515.578507
B20: 2016 | C20: 11.95999189 | D20: 21.30804429 | E20: 1.000021068 | F20: 2.647338787 | G20: 0.3175587732 | I20: ='Raw data'!A19 -> 2016 | J20: 1 | K20: =+IF($J20=1,'Raw data'!C19,"") -> 10.50675981 | L20: =+IF($J20=1,'Raw data'!D19,"") -> 8.186795568 | M20: =+IF($J20=1,'Raw data'!E19,"") -> 9.142744193 | N20: =+IF($J20=1,'Raw data'!F19,"") -> 7.180753047 | O20: =+IF($J20=1,'Raw data'!G19,"") -> 5.218761901 | P20: =+IF($J20=1,'Raw data'!H19,"") -> 3.256770755 | R20: =+IF($J20=1,'Raw data'!I19,"") -> 5.245007952 | T20: ='Performance Graphs'!N40 -> 2012 | U20: ='Performance Graphs'!Q40 -> 6841.357432
B21: 2017 | C21: 21.83168863 | D21: 14.64716894 | E21: 25.03436275 | F21: 3.541856718 | G21: 0.9304204323 | I21: ='Raw data'!A20 -> 2017 | J21: 1 | K21: =+IF($J21=1,'Raw data'!C20,"") -> 10.99178528 | L21: =+IF($J21=1,'Raw data'!D20,"") -> 12.66546002 | M21: =+IF($J21=1,'Raw data'!E20,"") -> 10.96856712 | N21: =+IF($J21=1,'Raw data'!F20,"") -> 8.736968566 | O21: =+IF($J21=1,'Raw data'!G20,"") -> 6.505370014 | P21: =+IF($J21=1,'Raw data'!H20,"") -> 4.273771463 | R21: =+IF($J21=1,'Raw data'!I20,"") -> 11.05700638 | T21: ='Performance Graphs'!N41 -> 2013 | U21: ='Performance Graphs'!Q41 -> 7183.425304
B22: 2018 | C22: -4.384326472 | D22: -11.01382294 | E22: -13.79026105 | F22: 0.0113255248 | G22: 1.938886339 | I22: ='Raw data'!A21 -> 2018 | J22: 1 | K22: =+IF($J22=1,'Raw data'!C21,"") -> -8.535035426 | L22: =+IF($J22=1,'Raw data'!D21,"") -> -8.635070329 | M22: =+IF($J22=1,'Raw data'!E21,"") -> -6.885668241 | N22: =+IF($J22=1,'Raw data'!F21,"") -> -5.352551908 | O22: =+IF($J22=1,'Raw data'!G21,"") -> -3.819435575 | P22: =+IF($J22=1,'Raw data'!H21,"") -> -2.286319242 | R22: =+IF($J22=1,'Raw data'!I21,"") -> -4.971206184 | T22: ='Performance Graphs'!N42 -> 2014 | U22: ='Performance Graphs'!Q42 -> 7542.596569
B23: 2019 | C23: 31.48879971 | D23: 25.52081104 | E23: 22.01448688 | F23: 8.716705493 | G23: 2.060361831 | I23: ='Raw data'!A22 -> 2019 | J23: 1 | K23: =+IF($J23=1,'Raw data'!C22,"") -> 15.57356468 | L23: =+IF($J23=1,'Raw data'!D22,"") -> 15.16423548 | M23: =+IF($J23=1,'Raw data'!E22,"") -> 14.88554537 | N23: =+IF($J23=1,'Raw data'!F22,"") -> 12.13612544 | O23: =+IF($J23=1,'Raw data'!G22,"") -> 9.386705516 | P23: =+IF($J23=1,'Raw data'!H22,"") -> 6.63728559 | R23: =+IF($J23=1,'Raw data'!I22,"") -> 16.08635526 | T23: ='Performance Graphs'!N43 -> 2015 | U23: ='Performance Graphs'!Q43 -> 7919.726398
B24: 2020 | C24: 18.4 | D24: 19.96 | E24: 7.82 | F24: 7.506687202 | G24: 0.363593968 | I24: ='Raw data'!A23 -> 2020 | J24: 1 | K24: =+IF($J24=1,'Raw data'!C23,"") -> 4.268534807 | L24: =+IF($J24=1,'Raw data'!D23,"") -> 12.81759624 | M24: =+IF($J24=1,'Raw data'!E23,"") -> 4.779325839 | N24: =+IF($J24=1,'Raw data'!F23,"") -> 3.78984569 | O24: =+IF($J24=1,'Raw data'!G23,"") -> 2.80036554 | P24: =+IF($J24=1,'Raw data'!H23,"") -> 1.810885391 | R24: =+IF($J24=1,'Raw data'!I23,"") -> 9.450879616 | T24: ='Performance Graphs'!N44 -> 2016 | U24: ='Performance Graphs'!Q44 -> 8315.712718
B25: 2021 | C25: 28.71 | D25: 14.82 | E25: 11.26 | F25: -1.54217592 | G25: 0.04430888777 | I25: ='Raw data'!A24 -> 2021 | J25: 1 | K25: =+IF($J25=1,'Raw data'!C24,"") -> 15.84701151 | L25: =+IF($J25=1,'Raw data'!D24,"") -> 4.278071669 | M25: =+IF($J25=1,'Raw data'!E24,"") -> 5.475705518 | N25: =+IF($J25=1,'Raw data'!F24,"") -> 4.15825457 | O25: =+IF($J25=1,'Raw data'!G24,"") -> 2.840803621 | P25: =+IF($J25=1,'Raw data'!H24,"") -> 1.523352673 | R25: =+IF($J25=1,'Raw data'!I24,"") -> 8.815384761 | T25: ='Performance Graphs'!N45 -> 2017 | U25: ='Performance Graphs'!Q45 -> 8731.498354
B26: 2022 | C26: -18.11 | D26: -20.44 | E26: -14.45 | F26: -13.00999533 | G26: 2.011244083 | I26: ='Raw data'!A25 -> 2022 | J26: 1 | K26: =+IF($J26=1,'Raw data'!C25,"") -> -8.708127173 | L26: =+IF($J26=1,'Raw data'!D25,"") -> -19.60322954 | M26: =+IF($J26=1,'Raw data'!E25,"") -> -15.02372723 | N26: =+IF($J26=1,'Raw data'!F25,"") -> -12.03042336 | O26: =+IF($J26=1,'Raw data'!G25,"") -> -9.037119491 | P26: =+IF($J26=1,'Raw data'!H25,"") -> -6.043815623 | R26: =+IF($J26=1,'Raw data'!I25,"") -> -13.99081175 | T26: ='Performance Graphs'!N46 -> 2018 | U26: ='Performance Graphs'!Q46 -> 9168.073271
B27: 2023 | C27: 26.29 | D27: 16.93 | E27: 18.24 | F27: 5.528299864 | G27: 5.068121034 | I27: ='Raw data'!A26 -> 2023 | J27: 1 | K27: =+IF($J27=1,'Raw data'!C26,"") -> 8.255680127 | L27: =+IF($J27=1,'Raw data'!D26,"") -> 10.85501487 | M27: =+IF($J27=1,'Raw data'!E26,"") -> 7.104822298 | N27: =+IF($J27=1,'Raw data'!F26,"") -> 6.490944693 | O27: =+IF($J27=1,'Raw data'!G26,"") -> 5.877067087 | P27: =+IF($J27=1,'Raw data'!H26,"") -> 5.263189482 | R27: =+IF($J27=1,'Raw data'!I26,"") -> 12.69662311 | T27: ='Performance Graphs'!N47 -> 2019 | U27: ='Performance Graphs'!Q47 -> 9626.476935
B28: 2024 | C28: 25.02 | D28: 11.54 | E28: 3.82 | F28: 1.25 | G28: 4.97 | I28: ='Raw data'!A27 -> 2024 | J28: 1 | K28: =+IF($J28=1,'Raw data'!C27,"") -> 5.145499023 | L28: =+IF($J28=1,'Raw data'!D27,"") -> 8.270387676 | M28: =+IF($J28=1,'Raw data'!E27,"") -> 8.12437205 | N28: =+IF($J28=1,'Raw data'!F27,"") -> 7.332131911 | O28: =+IF($J28=1,'Raw data'!G27,"") -> 6.539891773 | P28: =+IF($J28=1,'Raw data'!H27,"") -> 5.747651634 | R28: =+IF($J28=1,'Raw data'!I27,"") -> 8.165 | T28: ='Performance Graphs'!N48 -> 2020 | U28: ='Performance Graphs'!Q48 -> 10107.80078
B29: 2025 | C29: 17.88 | D29: 12.81 | E29: 31.22 | F29: 7.3 | G29: 4.07 | I29: ='Raw data'!A28 -> 2025 | J29: 1 | K29: =+IF($J29=1,'Raw data'!C28,"") -> 12.1 | L29: =+IF($J29=1,'Raw data'!D28,"") -> 14.28 | M29: =+IF($J29=1,'Raw data'!E28,"") -> 10.17 | N29: =+IF($J29=1,'Raw data'!F28,"") -> 8.79 | O29: =+IF($J29=1,'Raw data'!G28,"") -> 7.4 | P29: =+IF($J29=1,'Raw data'!H28,"") -> 6.01 | R29: =+IF($J29=1,'Raw data'!I28,"") -> 12.5995 | T29: ='Performance Graphs'!N49 -> 2021 | U29: ='Performance Graphs'!Q49 -> 10613.19082
J30: ACCUMULATION PORTFOLIO ANALYSIS | P30: =Calculations!M32 -> 2001 | Q30: to | R30: =Calculations!M33 -> 2025 | T30: ='Performance Graphs'!N50 -> 2022 | U30: ='Performance Graphs'!Q50 -> 11143.85036
B31: Enter your "overlay" costs (bps) --> | E31: 100 | F31: <- Enter as a positive # | I31: Number of Years of Analysis | K31: =+Calculations!$C31 -> 25 | L31: =+Calculations!$C31 -> 25 | M31: =+Calculations!$C31 -> 25 | N31: =+Calculations!$C31 -> 25 | O31: =+Calculations!$C31 -> 25 | P31: =+Calculations!$C31 -> 25 | R31: =+Calculations!$C31 -> 25 | T31: ='Performance Graphs'!N51 -> 2023 | U31: ='Performance Graphs'!Q51 -> 11701.04288
B32: (Enter zero if you are an individual investor) | F32: Example: an advisor fee | I32: Average Annual Return (%) | K32: =Calculations!D32 -> 0.05877626657 | L32: =Calculations!E32 -> 0.05859175501 | M32: =Calculations!F32 -> 0.05203217369 | N32: =Calculations!G32 -> 0.04434858901 | O32: =Calculations!H32 -> 0.03608715561 | P32: =Calculations!I32 -> 0.02727345469 | R32: =Calculations!J32 -> 0.04903365972 | T32: ='Performance Graphs'!N52 -> 2024 | U32: ='Performance Graphs'!Q52 -> 12286.09502
I33: Standard Deviation of Annual Returns (%) | K33: =Calculations!D33 -> 0.1161203479 | L33: =Calculations!E33 -> 0.1350685429 | M33: =Calculations!F33 -> 0.1154579031 | N33: =Calculations!G33 -> 0.09244550324 | O33: =Calculations!H33 -> 0.06969050655 | P33: =Calculations!I33 -> 0.0475675744 | R33: =Calculations!J33 -> 0.09185651415 | T33: ='Performance Graphs'!N53 -> 2025 | U33: ='Performance Graphs'!Q53 -> 12900.39977
B34: Past performance is not a guarantee of future performance. | I34: Correlation to S&P 500 | K34: =+CORREL(K5:K29,$C5:$C29) -> 0.8171206555 | L34: =+CORREL(L5:L29,$C5:$C29) -> 0.7739405529 | M34: =+CORREL(M5:M29,$C5:$C29) -> 0.8068759509 | N34: =+CORREL(N5:N29,$C5:$C29) -> 0.8023743332 | O34: 0.7919279803 | P34: 0.7611030337 | R34: =+CORREL(R5:R29,$C5:$C29) -> 0.9544701857 | U34: -------------
B35: Indexes used to provide the annual returns shown above: | I35: Growth of $10,000 ($) | K35: =Calculations!D35 -> 41697.01259 | L35: =Calculations!E35 -> 41515.72988 | M35: =Calculations!F35 -> 35540.66461 | N35: =Calculations!G35 -> 29589.46466 | O35: =Calculations!H35 -> 24260.91881 | P35: =Calculations!I35 -> 19595.28779 | R35: =Calculations!J35 -> 33092.9577 | T35: TOTAL $ WITHDRAWAL | U35: =SUM(U9:U33) -> 190908.3953
B36: Large US Stock: S&P 500 Index | I36: Worst 3-Year Cumulative Return (%) | K36: =Calculations!D37 -> -0.06497604993 | L36: =Calculations!E37 -> -0.08120244522 | M36: =Calculations!F37 -> -0.06946024066 | N36: =Calculations!G37 -> -0.04899880694 | O36: =Calculations!H37 -> -0.0383338593 | P36: =Calculations!I37 -> -0.02885173846 | R36: =Calculations!J37 -> -0.04589097638
B37: Small US Stock: Russell 2000 Index
B38: Non-US Stock: MSCI EAFE Index | J38: DISTRIBUTION PORTFOLIO ANALYSIS | P38: =+P30 -> 2001 | Q38: =+Q30 -> to | R38: =+R30 -> 2025
B39: Bonds: Bloomberg US Aggregate Bond Index | I39: Ending Account Value ($) ---------------> | K39: =Calculations!AI33 -> 72984.23011 | L39: =Calculations!AJ33 -> 97028.42262 | M39: =Calculations!AK33 -> 52189.88741 | N39: =Calculations!AL33 -> 14063.59919 | O39: =Calculations!AM33 -> 0 | P39: =Calculations!AN33 -> 0 | R39: =Calculations!AO33 -> 0
B40: Cash: 90-day Treasury Bill
I44: To view performance graphs click on Yellow tab below
B67: Password to unlock spreadsheet is "712"

Sheet Performance Graphs
C2: Accumulation Portfolio Analysis | Q2: Distribution Portfolio Analysis | R2: Distribution Portfolio Analysis
C3: Time Period | F3: ='Performance Table'!$P$30 -> 2001 | G3: to | H3: ='Performance Table'!$R$30 -> 2025 | S3: Time Period | T3: ='Performance Table'!$P$30 -> 2001 | U3: to | V3: ='Performance Table'!$R$30 -> 2025
S27: =Calculations!AI3 -> Index-based 7Twelve Portfolio | T27: =Calculations!AJ3 -> Active 7Twelve Portfolio | U27: =Calculations!AK3 -> Passive 7Twelve Portfolio | V27: =Calculations!AL3 -> Passive 7Twelve 20% Extra Cash | W27: =Calculations!AM3 -> Passive 7Twelve 40% Extra Cash | X27: =Calculations!AN3 -> Passive 7Twelve 60% Extra Cash | Y27: =Calculations!AO3 -> Your Custom Portfolio
N28: Starting Account Balance | Q28: =Calculations!AG3 -> 100000 | S28: Year-to-Year Account Balance | T28: Year-to-Year Account Balance
N29: =Calculations!M5 -> 2001 | O29: =+IF(Calculations!C5=0,"","Withdrawal") -> Withdrawal | Q29: =Calculations!AH5 -> 4000 | S29: =Calculations!AI5 -> 92909.84919 | T29: =Calculations!AJ5 -> 97977.69042 | U29: =Calculations!AK5 -> 93058.72582 | V29: =Calculations!AL5 -> 94279.92821 | W29: =Calculations!AM5 -> 95501.1306 | X29: =Calculations!AN5 -> 96722.33299 | Y29: =Calculations!AO5 -> 92523.38497
N30: =Calculations!M6 -> 2002 | O30: =+IF(Calculations!C6=0,"","Withdrawal") -> Withdrawal | Q30: =Calculations!AH6 -> 4200 | S30: =Calculations!AI6 -> 87258.45968 | T30: =Calculations!AJ6 -> 94933.63323 | U30: =Calculations!AK6 -> 87336.09645 | V30: =Calculations!AL6 -> 88968.44785 | W30: =Calculations!AM6 -> 90611.96807 | X30: =Calculations!AN6 -> 92266.6571 | Y30: =Calculations!AO6 -> 81721.91248
N31: =Calculations!M7 -> 2003 | O31: =+IF(Calculations!C7=0,"","Withdrawal") -> Withdrawal | Q31: =Calculations!AH7 -> 4410 | S31: =Calculations!AI7 -> 105620.3778 | T31: =Calculations!AJ7 -> 116930.0603 | U31: =Calculations!AK7 -> 105592.1759 | V31: =Calculations!AL7 -> 103011.6547 | W31: =Calculations!AM7 -> 100273.8997 | X31: =Calculations!AN7 -> 97377.16479 | Y31: =Calculations!AO7 -> 92244.68855
N32: =Calculations!M8 -> 2004 | O32: =+IF(Calculations!C8=0,"","Withdrawal") -> Withdrawal | Q32: =Calculations!AH8 -> 4630.5 | S32: =Calculations!AI8 -> 118899.9092 | T32: =Calculations!AJ8 -> 134274.8342 | U32: =Calculations!AK8 -> 118705.8776 | V32: =Calculations!AL8 -> 112251.836 | W32: =Calculations!AM8 -> 105796.9826 | X32: =Calculations!AN8 -> 99355.20416 | Y32: =Calculations!AO8 -> 95284.13138
N33: =Calculations!M9 -> 2005 | O33: =+IF(Calculations!C9=0,"","Withdrawal") -> Withdrawal | Q33: =Calculations!AH9 -> 4862.025 | S33: =Calculations!AI9 -> 127694.2783 | T33: =Calculations!AJ9 -> 145400.7799 | U33: =Calculations!AK9 -> 127309.3226 | V33: =Calculations!AL9 -> 118027.466 | W33: =Calculations!AM9 -> 108985.7245 | X33: =Calculations!AN9 -> 100198.828 | Y33: =Calculations!AO9 -> 94267.17157
G34: The 7Twelve Portfolio Model | N34: =Calculations!M10 -> 2006 | O34: =+IF(Calculations!C10=0,"","Withdrawal") -> Withdrawal | Q34: =Calculations!AH10 -> 5105.12625 | S34: =Calculations!AI10 -> 140800.1484 | T34: =Calculations!AJ10 -> 162071.948 | U34: =Calculations!AK10 -> 139982.7731 | V34: =Calculations!AL10 -> 127024.8229 | W34: =Calculations!AM10 -> 114705.1532 | X34: =Calculations!AN10 -> 103025.1349 | Y34: =Calculations!AO10 -> 99495.83593
N35: =Calculations!M11 -> 2007 | O35: =+IF(Calculations!C11=0,"","Withdrawal") -> Withdrawal | Q35: =Calculations!AH11 -> 5360.382563 | S35: =Calculations!AI11 -> 151377.0407 | T35: =Calculations!AJ11 -> 177421.9814 | U35: =Calculations!AK11 -> 149439.5094 | V35: =Calculations!AL11 -> 133473.2486 | W35: =Calculations!AM11 -> 118530.3084 | X35: =Calculations!AN11 -> 104587.4789 | Y35: =Calculations!AO11 -> 99093.64496
N36: =Calculations!M12 -> 2008 | O36: =+IF(Calculations!C12=0,"","Withdrawal") -> Withdrawal | Q36: =Calculations!AH12 -> 5628.401691 | S36: =Calculations!AI12 -> 105650.6975 | T36: =Calculations!AJ12 -> 120087.6791 | U36: =Calculations!AK12 -> 104711.6851 | V36: =Calculations!AL12 -> 100380.5755 | W36: =Calculations!AM12 -> 95135.19012 | X36: =Calculations!AN12 -> 89126.03346 | Y36: =Calculations!AO12 -> 75532.77199
N37: =Calculations!M13 -> 2009 | O37: =+IF(Calculations!C13=0,"","Withdrawal") -> Withdrawal | Q37: =Calculations!AH13 -> 5909.821775 | S37: =Calculations!AI13 -> 125777.1572 | T37: =Calculations!AJ13 -> 151831.7145 | U37: =Calculations!AK13 -> 124607.0737 | V37: =Calculations!AL13 -> 114166.9314 | W37: =Calculations!AM13 -> 103114.1035 | X37: =Calculations!AN13 -> 91751.26767 | Y37: =Calculations!AO13 -> 81102.37813
N38: =Calculations!M14 -> 2010 | O38: =+IF(Calculations!C14=0,"","Withdrawal") -> Withdrawal | Q38: =Calculations!AH14 -> 6205.312864 | S38: =Calculations!AI14 -> 136441.6712 | T38: =Calculations!AJ14 -> 166150.467 | U38: =Calculations!AK14 -> 135110.8557 | V38: =Calculations!AL14 -> 119994.522 | W38: =Calculations!AM14 -> 104817.7073 | X38: =Calculations!AN14 -> 89950.365 | Y38: =Calculations!AO14 -> 82134.60984
N39: =Calculations!M15 -> 2011 | O39: =+IF(Calculations!C15=0,"","Withdrawal") -> Withdrawal | Q39: =Calculations!AH15 -> 6515.578507 | S39: =Calculations!AI15 -> 127512.681 | T39: =Calculations!AJ15 -> 147486.2237 | U39: =Calculations!AK15 -> 125896.4765 | V39: =Calculations!AL15 -> 111332.1991 | W39: =Calculations!AM15 -> 96645.38092 | X39: =Calculations!AN15 -> 82200.52073 | Y39: =Calculations!AO15 -> 75653.32646
N40: =Calculations!M16 -> 2012 | O40: =+IF(Calculations!C16=0,"","Withdrawal") -> Withdrawal | Q40: =Calculations!AH16 -> 6841.357432 | S40: =Calculations!AI16 -> 133130.5765 | T40: =Calculations!AJ16 -> 157487.1596 | U40: =Calculations!AK16 -> 131190.3306 | V40: =Calculations!AL16 -> 112861.7908 | W40: =Calculations!AM16 -> 95021.66267 | X40: =Calculations!AN16 -> 78054.18952 | Y40: =Calculations!AO16 -> 75410.03721
N41: =Calculations!M17 -> 2013 | O41: =+IF(Calculations!C17=0,"","Withdrawal") -> Withdrawal | Q41: =Calculations!AH17 -> 7183.425304 | S41: =Calculations!AI17 -> 138545.5506 | T41: =Calculations!AJ17 -> 166571.7651 | U41: =Calculations!AK17 -> 135353.8214 | V41: =Calculations!AL17 -> 113266.3138 | W41: =Calculations!AM17 -> 92396.65601 | X41: =Calculations!AN17 -> 73111.90409 | Y41: =Calculations!AO17 -> 78555.10294
N42: =Calculations!M18 -> 2014 | O42: =+IF(Calculations!C18=0,"","Withdrawal") -> Withdrawal | Q42: =Calculations!AH18 -> 7542.596569 | S42: =Calculations!AI18 -> 131688.2077 | T42: =Calculations!AJ18 -> 157452.0817 | U42: =Calculations!AK18 -> 129835.5366 | V42: =Calculations!AL18 -> 106854.5414 | W42: =Calculations!AM18 -> 85317.13526 | X42: =Calculations!AN18 -> 65572.22354 | Y42: =Calculations!AO18 -> 74366.18845
A43: To return to "Performance Table" click on blue tab below | N43: =Calculations!M19 -> 2015 | O43: =+IF(Calculations!C19=0,"","Withdrawal") -> Withdrawal | Q43: =Calculations!AH19 -> 7919.726398 | S43: =Calculations!AI19 -> 114474.1577 | T43: =Calculations!AJ19 -> 137005.7554 | U43: =Calculations!AK19 -> 114031.7152 | V43: =Calculations!AL19 -> 93540.67531 | W43: =Calculations!AM19 -> 73964.36805 | X43: =Calculations!AN19 -> 55685.59114 | Y43: =Calculations!AO19 -> 65689.96084
N44: =Calculations!M20 -> 2016 | O44: =+IF(Calculations!C20=0,"","Withdrawal") -> Withdrawal | Q44: =Calculations!AH20 -> 8315.712718 | S44: =Calculations!AI20 -> 118185.9698 | T44: =Calculations!AJ20 -> 139906.4238 | U44: =Calculations!AK20 -> 116141.6305 | V44: =Calculations!AL20 -> 91941.88749 | W44: =Calculations!AM20 -> 69508.6796 | X44: =Calculations!AN20 -> 49183.43047 | Y44: =Calculations!AO20 -> 60819.69179
N45: =Calculations!M21 -> 2017 | O45: =+IF(Calculations!C21=0,"","Withdrawal") -> Withdrawal | Q45: =Calculations!AH21 -> 8731.498354 | S45: =Calculations!AI21 -> 122445.2194 | T45: =Calculations!AJ21 -> 148894.7176 | U45: =Calculations!AK21 -> 120149.2048 | V45: =Calculations!AL21 -> 91243.32294 | W45: =Calculations!AM21 -> 65298.97804 | X45: =Calculations!AN21 -> 42553.91953 | Y45: =Calculations!AO21 -> 58813.03064
N46: =Calculations!M22 -> 2018 | O46: =+IF(Calculations!C22=0,"","Withdrawal") -> Withdrawal | Q46: =Calculations!AH22 -> 9168.073271 | S46: =Calculations!AI22 -> 102826.4033 | T46: =Calculations!AJ22 -> 126869.4807 | U46: =Calculations!AK22 -> 102708.0559 | V46: =Calculations!AL22 -> 77191.40345 | W46: =Calculations!AM22 -> 53636.85237 | X46: =Calculations!AN22 -> 32412.92781 | Y46: =Calculations!AO22 -> 46721.24035
N47: =Calculations!M23 -> 2019 | O47: =+IF(Calculations!C23=0,"","Withdrawal") -> Withdrawal | Q47: =Calculations!AH23 -> 9626.476935 | S47: =Calculations!AI23 -> 109213.6628 | T47: =Calculations!AJ23 -> 136481.7906 | U47: =Calculations!AK23 -> 108370.2332 | V47: =Calculations!AL23 -> 76932.97207 | W47: =Calculations!AM23 -> 49045.10882 | X47: =Calculations!AN23 -> 24937.78946 | Y47: =Calculations!AO23 -> 44610.50812
N48: =Calculations!M24 -> 2020 | O48: =+IF(Calculations!C24=0,"","Withdrawal") -> Withdrawal | Q48: =Calculations!AH24 -> 10107.80078 | S48: =Calculations!AI24 -> 103767.6852 | T48: =Calculations!AJ24 -> 143867.6747 | U48: =Calculations!AK24 -> 103441.799 | V48: =Calculations!AL24 -> 69740.81221 | W48: =Calculations!AM24 -> 40310.75036 | X48: =Calculations!AN24 -> 15281.58346 | Y48: =Calculations!AO24 -> 38718.79276
N49: =Calculations!M25 -> 2021 | O49: =+IF(Calculations!C25=0,"","Withdrawal") -> Withdrawal | Q49: =Calculations!AH25 -> 10613.19082 | S49: =Calculations!AI25 -> 109598.5714 | T49: =Calculations!AJ25 -> 139409.2461 | U49: =Calculations!AK25 -> 98492.77646 | V49: =Calculations!AL25 -> 62027.6219 | W49: =Calculations!AM25 -> 30842.7088 | X49: =Calculations!AN25 -> 4901.185052 | Y49: =Calculations!AO25 -> 31518.81249
N50: =Calculations!M26 -> 2022 | O50: =+IF(Calculations!C26=0,"","Withdrawal") -> Withdrawal | Q50: =Calculations!AH26 -> 11143.85036 | S50: =Calculations!AI26 -> 88910.73808 | T50: =Calculations!AJ26 -> 100936.6812 | U50: =Calculations!AK26 -> 72551.64003 | V50: =Calculations!AL26 -> 43421.58603 | W50: =Calculations!AM26 -> 16911.56599 | X50: =Calculations!AN26 -> -6538.883897 | Y50: =Calculations!AO26 -> 15965.22441
N51: =Calculations!M27 -> 2023 | O51: =+IF(Calculations!C27=0,"","Withdrawal") -> Withdrawal | Q51: =Calculations!AH27 -> 11701.04288 | S51: =Calculations!AI27 -> 84549.88134 | T51: =Calculations!AJ27 -> 100192.3301 | U51: =Calculations!AK27 -> 66005.26225 | V51: =Calculations!AL27 -> 34539.01428 | W51: =Calculations!AM27 -> 6204.427189 | X51: =Calculations!AN27 -> -18584.08063 | Y51: =Calculations!AO27 -> 6291.225902
N52: =Calculations!M28 -> 2024 | O52: =+IF(Calculations!C28=0,"","Withdrawal") -> Withdrawal | Q52: =Calculations!AH28 -> 12286.09502 | S52: =Calculations!AI28 -> 76614.29963 | T52: =Calculations!AJ28 -> 96192.52922 | U52: =Calculations!AK28 -> 59081.6803 | V52: =Calculations!AL28 -> 24785.36535 | W52: =Calculations!AM28 -> -5675.905011 | X52: =Calculations!AN28 -> -31938.32386 | Y52: =Calculations!AO28 -> -5481.190526
N53: =Calculations!M29 -> 2025 | O53: =+IF(Calculations!C29=0,"","Withdrawal") -> Withdrawal | Q53: =Calculations!AH29 -> 12900.39977 | S53: =Calculations!AI29 -> 72984.23011 | T53: =Calculations!AJ29 -> 97028.42262 | U53: =Calculations!AK29 -> 52189.88741 | V53: =Calculations!AL29 -> 14063.59919 | W53: =Calculations!AM29 -> -18996.32176 | X53: =Calculations!AN29 -> -46758.2169 | Y53: =Calculations!AO29 -> -19072.1929
N54: Ending account balances shown in graph above

Sheet Index-based 7Twelve components
B2: 7Twelve Portfolio Model (65% equities and diversifiers / 35% fixed income)
B4: Asset Class | C4: Each index is equally weighted at 8.33% in the 7Twelve model
B5: US Large cap | C5: S&P 500 Index (TR)
B6: US Mid Cap | C6: S&P Midcap 400 Index (TR)
B7: US Small Cap | C7: S&P Small Cap 600 Index (TR)
B8: Non-US Developed | C8: MSCI EAFE Index NR USD
B9: Emerging | C9: MSCI EM Index GR USD
B10: Real Estate | C10: S&P Global REIT Index TR USD
B11: Natural Resources | C11: S&P North American Natural Resources Index TR
B12: Commodities | C12: Deutsche Bank Liquid Commodity Optimum Yield Diversified Commodity Index Total Return
B13: US Bonds | C13: Bloomberg US Aggregate Bond Index TR USD
B14: TIPS | C14: Bloomberg U.S. Treasury US TIPS Index TR USD
B15: Non-US Bonds | C15: Bloomberg Global Treasury Index TR
B16: Cash | C16: US Treasury Bill 90 Day TR

Sheet Calculations (hidden)
AF1: Initial | AG1: ='Performance Table'!U5 -> 0.04
F2: Annual Returns | O2: Rolling 3-Year Returns | Y2: Growth of $10,000 | AF2: COLA | AG2: ='Performance Table'!U6 -> 0.05 | AJ2: Distribution Portfolio
A3: Year | B3: Year Selector | C3: Year Counter | D3: ='Performance Table'!K4 -> Index-based 7Twelve Portfolio | E3: ='Performance Table'!L4 -> Active 7Twelve Portfolio | F3: ='Performance Table'!M4 -> Passive 7Twelve Portfolio | G3: ='Performance Table'!N4 -> Passive 7Twelve 20% Extra Cash | H3: ='Performance Table'!O4 -> Passive 7Twelve 40% Extra Cash | I3: ='Performance Table'!P4 -> Passive 7Twelve 60% Extra Cash | J3: ='Performance Table'!R4 -> Your Custom Portfolio | M3: Year | N3: =+D3 -> Index-based 7Twelve Portfolio | O3: Active 7Twelve Portfolio | P3: Passive 7Twelve Portfolio | Q3: Passive 7Twelve 20% Extra Cash | R3: Passive 7Twelve 40% Extra Cash | S3: Passive 7Twelve 60% Extra Cash | T3: Your Custom Portfolio | X3: =+N3 -> Index-based 7Twelve Portfolio | Y3: Active 7Twelve Portfolio | Z3: Passive 7Twelve Portfolio | AA3: Passive 7Twelve 20% Extra Cash | AB3: Passive 7Twelve 40% Extra Cash | AC3: Passive 7Twelve 60% Extra Cash | AD3: Your Custom Portfolio | AF3: Starting Balance | AG3: ='Performance Table'!U4 -> 100000 | AH3: Annual Withdrawal | AI3: =+X3 -> Index-based 7Twelve Portfolio | AJ3: Active 7Twelve Portfolio | AK3: Passive 7Twelve Portfolio | AL3: Passive 7Twelve 20% Extra Cash | AM3: Passive 7Twelve 40% Extra Cash | AN3: Passive 7Twelve 60% Extra Cash | AO3: Your Custom Portfolio
A5: ='Performance Table'!I5 -> 2001 | B5: ='Performance Table'!J5 -> 1 | C5: =IF('Performance Table'!J5<0,0,IF('Performance Table'!J5=0,0,IF('Performance Table'!J5=1,1,IF('Performance Table'!J5>1,0)))) -> 1 | D5: =+IF('Performance Table'!$J5=1,'Performance Table'!K5/100+1,"") -> 0.9690984919 | E5: =+IF('Performance Table'!$J5=1,'Performance Table'!L5/100+1,"") -> 1.019776904 | F5: =+IF('Performance Table'!$J5=1,'Performance Table'!M5/100+1,"") -> 0.9705872582 | G5: =+IF('Performance Table'!$J5=1,'Performance Table'!N5/100+1,"") -> 0.9827992821 | H5: =+IF('Performance Table'!$J5=1,'Performance Table'!O5/100+1,"") -> 0.995011306 | I5: =+IF('Performance Table'!$J5=1,'Performance Table'!P5/100+1,"") -> 1.00722333 | J5: =+IF('Performance Table'!$J5=1,'Performance Table'!R5/100+1,"") -> 0.9652338497 | M5: =+IF(B5=1,A5,IF(B5<>1,"--","--")) -> 2001 | N5: =+IF(SUM($C5:$C5)=3,PRODUCT(Calculations!D5:D5)-1,"") ->  | O5: =+IF(SUM($C5:$C5)=3,PRODUCT(Calculations!E5:E5)-1,"") ->  | P5: =+IF(SUM($C5:$C5)=3,PRODUCT(Calculations!F5:F5)-1,"") ->  | Q5: =+IF(SUM($C5:$C5)=3,PRODUCT(Calculations!G5:G5)-1,"") ->  | R5: =+IF(SUM($C5:$C5)=3,PRODUCT(Calculations!H5:H5)-1,"") ->  | S5: =+IF(SUM($C5:$C5)=3,PRODUCT(Calculations!I5:I5)-1,"") ->  | T5: =+IF(SUM($C5:$C5)=3,PRODUCT(Calculations!J5:J5)-1,"") ->  | X5: =+IF('Performance Table'!$J5=1,10000*Calculations!D5,"--") -> 9690.984919 | Y5: =+IF('Performance Table'!$J5=1,10000*Calculations!E5,"--") -> 10197.76904 | Z5: =+IF('Performance Table'!$J5=1,10000*Calculations!F5,"--") -> 9705.872582 | AA5: =+IF('Performance Table'!$J5=1,10000*Calculations!G5,"--") -> 9827.992821 | AB5: =+IF('Performance Table'!$J5=1,10000*Calculations!H5,"--") -> 9950.11306 | AC5: =+IF('Performance Table'!$J5=1,10000*Calculations!I5,"--") -> 10072.2333 | AD5: =+IF('Performance Table'!$J5=1,10000*Calculations!J5,"--") -> 9652.338497 | AH5: =+IF('Performance Table'!$J5=1,AG3*AG1,"--") -> 4000 | AI5: =+IF('Performance Table'!$J5=1,($AG3*D5)-$AH5,"--") -> 92909.84919 | AJ5: =+IF('Performance Table'!$J5=1,($AG3*E5)-$AH5,"--") -> 97977.69042 | AK5: =+IF('Performance Table'!$J5=1,($AG3*F5)-$AH5,"--") -> 93058.72582 | AL5: =+IF('Performance Table'!$J5=1,($AG3*G5)-$AH5,"--") -> 94279.92821 | AM5: =+IF('Performance Table'!$J5=1,($AG3*H5)-$AH5,"--") -> 95501.1306 | AN5: =+IF('Performance Table'!$J5=1,($AG3*I5)-$AH5,"--") -> 96722.33299 | AO5: =+IF('Performance Table'!$J5=1,($AG3*J5)-$AH5,"--") -> 92523.38497
A6: ='Performance Table'!I6 -> 2002 | B6: ='Performance Table'!J6 -> 1 | C6: =IF('Performance Table'!J6<0,0,IF('Performance Table'!J6=0,0,IF('Performance Table'!J6=1,1,IF('Performance Table'!J6>1,0)))) -> 1 | D6: =+IF('Performance Table'!$J6=1,'Performance Table'!K6/100+1,"") -> 0.9843785183 | E6: =+IF('Performance Table'!$J6=1,'Performance Table'!L6/100+1,"") -> 1.011798021 | F6: =+IF('Performance Table'!$J6=1,'Performance Table'!M6/100+1,"") -> 0.9836379731 | G6: =+IF('Performance Table'!$J6=1,'Performance Table'!N6/100+1,"") -> 0.9882108485 | H6: =+IF('Performance Table'!$J6=1,'Performance Table'!O6/100+1,"") -> 0.9927837239 | I6: =+IF('Performance Table'!$J6=1,'Performance Table'!P6/100+1,"") -> 0.9973565992 | J6: =+IF('Performance Table'!$J6=1,'Performance Table'!R6/100+1,"") -> 0.9286507676 | M6: =+IF(B6=1,A6,IF(B6<>1,"--","--")) -> 2002 | X6: =+IF('Performance Table'!$J5+'Performance Table'!$J6=2,X5*Calculations!D6,IF('Performance Table'!$J6=1,10000*D6,"--")) -> 9539.597375 | Y6: =+IF('Performance Table'!$J5+'Performance Table'!$J6=2,Y5*Calculations!E6,IF('Performance Table'!$J6=1,10000*E6,"--")) -> 10318.08253 | Z6: =+IF('Performance Table'!$J5+'Performance Table'!$J6=2,Z5*Calculations!F6,IF('Performance Table'!$J6=1,10000*F6,"--")) -> 9547.064834 | AA6: =+IF('Performance Table'!$J5+'Performance Table'!$J6=2,AA5*Calculations!G6,IF('Performance Table'!$J6=1,10000*G6,"--")) -> 9712.129125 | AB6: =+IF('Performance Table'!$J5+'Performance Table'!$J6=2,AB5*Calculations!H6,IF('Performance Table'!$J6=1,10000*H6,"--")) -> 9878.310297 | AC6: =+IF('Performance Table'!$J5+'Performance Table'!$J6=2,AC5*Calculations!I6,IF('Performance Table'!$J6=1,10000*I6,"--")) -> 10045.60835 | AD6: =+IF('Performance Table'!$J5+'Performance Table'!$J6=2,AD5*Calculations!J6,IF('Performance Table'!$J6=1,10000*J6,"--")) -> 8963.651555 | AH6: =+IF('Performance Table'!$J5+'Performance Table'!$J6=2,AH5*(1+AG$2),IF('Performance Table'!$J6=1,AG$3*AG$1,"--")) -> 4200 | AI6: =+IF('Performance Table'!$J5+'Performance Table'!$J6=2,(AI5*D6)-$AH6,IF('Performance Table'!$J6=1,($AG$3*D6)-$AH6,"--")) -> 87258.45968 | AJ6: =+IF('Performance Table'!$J5+'Performance Table'!$J6=2,(AJ5*E6)-$AH6,IF('Performance Table'!$J6=1,($AG$3*E6)-$AH6,"--")) -> 94933.63323 | AK6: =+IF('Performance Table'!$J5+'Performance Table'!$J6=2,(AK5*F6)-$AH6,IF('Performance Table'!$J6=1,($AG$3*F6)-$AH6,"--")) -> 87336.09645 | AL6: =+IF('Performance Table'!$J5+'Performance Table'!$J6=2,(AL5*G6)-$AH6,IF('Performance Table'!$J6=1,($AG$3*G6)-$AH6,"--")) -> 88968.44785 | AM6: =+IF('Performance Table'!$J5+'Performance Table'!$J6=2,(AM5*H6)-$AH6,IF('Performance Table'!$J6=1,($AG$3*H6)-$AH6,"--")) -> 90611.96807 | AN6: =+IF('Performance Table'!$J5+'Performance Table'!$J6=2,(AN5*I6)-$AH6,IF('Performance Table'!$J6=1,($AG$3*I6)-$AH6,"--")) -> 92266.6571 | AO6: =+IF('Performance Table'!$J5+'Performance Table'!$J6=2,(AO5*J6)-$AH6,IF('Performance Table'!$J6=1,($AG$3*J6)-$AH6,"--")) -> 81721.91248
A7: ='Performance Table'!I7 -> 2003 | B7: ='Performance Table'!J7 -> 1 | C7: =IF('Performance Table'!J7<0,0,IF('Performance Table'!J7=0,0,IF('Performance Table'!J7=1,1,IF('Performance Table'!J7>1,0)))) -> 1 | D7: =+IF('Performance Table'!$J7=1,'Performance Table'!K7/100+1,"") -> 1.260970893 | E7: =+IF('Performance Table'!$J7=1,'Performance Table'!L7/100+1,"") -> 1.27815671 | F7: =+IF('Performance Table'!$J7=1,'Performance Table'!M7/100+1,"") -> 1.25952705 | G7: =+IF('Performance Table'!$J7=1,'Performance Table'!N7/100+1,"") -> 1.207412934 | H7: =+IF('Performance Table'!$J7=1,'Performance Table'!O7/100+1,"") -> 1.155298819 | I7: =+IF('Performance Table'!$J7=1,'Performance Table'!P7/100+1,"") -> 1.103184704 | J7: =+IF('Performance Table'!$J7=1,'Performance Table'!R7/100+1,"") -> 1.182726708 | M7: 2003 | N7: =+IF(SUM($C5:$C7)=3,PRODUCT(Calculations!D5:D7)-1,"") -> 0.2029154616 | O7: =+IF(SUM($C5:$C7)=3,PRODUCT(Calculations!E5:E7)-1,"") -> 0.3188126424 | P7: =+IF(SUM($C5:$C7)=3,PRODUCT(Calculations!F5:F7)-1,"") -> 0.2024786403 | Q7: =+IF(SUM($C5:$C7)=3,PRODUCT(Calculations!G5:G7)-1,"") -> 0.1726550326 | R7: =+IF(SUM($C5:$C7)=3,PRODUCT(Calculations!H5:H7)-1,"") -> 0.1412400221 | S7: =+IF(SUM($C5:$C7)=3,PRODUCT(Calculations!I5:I7)-1,"") -> 0.1082161472 | T7: =+IF(SUM($C5:$C7)=3,PRODUCT(Calculations!J5:J7)-1,"") -> 0.06015500983 | X7: =+IF('Performance Table'!$J6+'Performance Table'!$J7=2,X6*Calculations!D7,IF('Performance Table'!$J7=1,10000*D7,"--")) -> 12029.15462 | Y7: =+IF('Performance Table'!$J6+'Performance Table'!$J7=2,Y6*Calculations!E7,IF('Performance Table'!$J7=1,10000*E7,"--")) -> 13188.12642 | Z7: =+IF('Performance Table'!$J6+'Performance Table'!$J7=2,Z6*Calculations!F7,IF('Performance Table'!$J7=1,10000*F7,"--")) -> 12024.7864 | AA7: =+IF('Performance Table'!$J6+'Performance Table'!$J7=2,AA6*Calculations!G7,IF('Performance Table'!$J7=1,10000*G7,"--")) -> 11726.55033 | AB7: =+IF('Performance Table'!$J6+'Performance Table'!$J7=2,AB6*Calculations!H7,IF('Performance Table'!$J7=1,10000*H7,"--")) -> 11412.40022 | AC7: =+IF('Performance Table'!$J6+'Performance Table'!$J7=2,AC6*Calculations!I7,IF('Performance Table'!$J7=1,10000*I7,"--")) -> 11082.16147 | AD7: =+IF('Performance Table'!$J6+'Performance Table'!$J7=2,AD6*Calculations!J7,IF('Performance Table'!$J7=1,10000*J7,"--")) -> 10601.5501 | AH7: =+IF('Performance Table'!$J6+'Performance Table'!$J7=2,AH6*(1+AG$2),IF('Performance Table'!$J7=1,AG$3*AG$1,"--")) -> 4410 | AI7: =+IF('Performance Table'!$J6+'Performance Table'!$J7=2,(AI6*D7)-$AH7,IF('Performance Table'!$J7=1,($AG$3*D7)-$AH7,"--")) -> 105620.3778 | AJ7: =+IF('Performance Table'!$J6+'Performance Table'!$J7=2,(AJ6*E7)-$AH7,IF('Performance Table'!$J7=1,($AG$3*E7)-$AH7,"--")) -> 116930.0603 | AK7: =+IF('Performance Table'!$J6+'Performance Table'!$J7=2,(AK6*F7)-$AH7,IF('Performance Table'!$J7=1,($AG$3*F7)-$AH7,"--")) -> 105592.1759 | AL7: =+IF('Performance Table'!$J6+'Performance Table'!$J7=2,(AL6*G7)-$AH7,IF('Performance Table'!$J7=1,($AG$3*G7)-$AH7,"--")) -> 103011.6547 | AM7: =+IF('Performance Table'!$J6+'Performance Table'!$J7=2,(AM6*H7)-$AH7,IF('Performance Table'!$J7=1,($AG$3*H7)-$AH7,"--")) -> 100273.8997 | AN7: =+IF('Performance Table'!$J6+'Performance Table'!$J7=2,(AN6*I7)-$AH7,IF('Performance Table'!$J7=1,($AG$3*I7)-$AH7,"--")) -> 97377.16479 | AO7: =+IF('Performance Table'!$J6+'Performance Table'!$J7=2,(AO6*J7)-$AH7,IF('Performance Table'!$J7=1,($AG$3*J7)-$AH7,"--")) -> 92244.68855
A8: ='Performance Table'!I8 -> 2004 | B8: ='Performance Table'!J8 -> 1 | C8: =IF('Performance Table'!J8<0,0,IF('Performance Table'!J8=0,0,IF('Performance Table'!J8=1,1,IF('Performance Table'!J8>1,0)))) -> 1 | D8: =+IF('Performance Table'!$J8=1,'Performance Table'!K8/100+1,"") -> 1.169569849 | E8: =+IF('Performance Table'!$J8=1,'Performance Table'!L8/100+1,"") -> 1.187935197 | F8: =+IF('Performance Table'!$J8=1,'Performance Table'!M8/100+1,"") -> 1.168044664 | G8: =+IF('Performance Table'!$J8=1,'Performance Table'!N8/100+1,"") -> 1.134651573 | H8: =+IF('Performance Table'!$J8=1,'Performance Table'!O8/100+1,"") -> 1.101258482 | I8: =+IF('Performance Table'!$J8=1,'Performance Table'!P8/100+1,"") -> 1.067865391 | J8: =+IF('Performance Table'!$J8=1,'Performance Table'!R8/100+1,"") -> 1.083147799 | M8: 2004 | N8: =+IF(SUM($C6:$C8)=3,PRODUCT(Calculations!D6:D8)-1,"") -> 0.4517550755 | O8: =+IF(SUM($C6:$C8)=3,PRODUCT(Calculations!E6:E8)-1,"") -> 0.5362810723 | P8: =+IF(SUM($C6:$C8)=3,PRODUCT(Calculations!F6:F8)-1,"") -> 0.4471122994 | Q8: =+IF(SUM($C6:$C8)=3,PRODUCT(Calculations!G6:G8)-1,"") -> 0.3538419301 | R8: =+IF(SUM($C6:$C8)=3,PRODUCT(Calculations!H6:H8)-1,"") -> 0.2631014809 | S8: =+IF(SUM($C6:$C8)=3,PRODUCT(Calculations!I6:I8)-1,"") -> 0.1749386996 | T8: =+IF(SUM($C6:$C8)=3,PRODUCT(Calculations!J6:J8)-1,"") -> 0.1896646248 | X8: =+IF('Performance Table'!$J7+'Performance Table'!$J8=2,X7*Calculations!D8,IF('Performance Table'!$J8=1,10000*D8,"--")) -> 14068.93654 | Y8: =+IF('Performance Table'!$J7+'Performance Table'!$J8=2,Y7*Calculations!E8,IF('Performance Table'!$J8=1,10000*E8,"--")) -> 15666.63956 | Z8: =+IF('Performance Table'!$J7+'Performance Table'!$J8=2,Z7*Calculations!F8,IF('Performance Table'!$J8=1,10000*F8,"--")) -> 14045.48759 | AA8: =+IF('Performance Table'!$J7+'Performance Table'!$J8=2,AA7*Calculations!G8,IF('Performance Table'!$J8=1,10000*G8,"--")) -> 13305.54877 | AB8: =+IF('Performance Table'!$J7+'Performance Table'!$J8=2,AB7*Calculations!H8,IF('Performance Table'!$J8=1,10000*H8,"--")) -> 12568.00254 | AC8: =+IF('Performance Table'!$J7+'Performance Table'!$J8=2,AC7*Calculations!I8,IF('Performance Table'!$J8=1,10000*I8,"--")) -> 11834.25669 | AD8: =+IF('Performance Table'!$J7+'Performance Table'!$J8=2,AD7*Calculations!J8,IF('Performance Table'!$J8=1,10000*J8,"--")) -> 11483.04566 | AH8: =+IF('Performance Table'!$J7+'Performance Table'!$J8=2,AH7*(1+AG$2),IF('Performance Table'!$J8=1,AG$3*AG$1,"--")) -> 4630.5 | AI8: =+IF('Performance Table'!$J7+'Performance Table'!$J8=2,(AI7*D8)-$AH8,IF('Performance Table'!$J8=1,($AG$3*D8)-$AH8,"--")) -> 118899.9092 | AJ8: =+IF('Performance Table'!$J7+'Performance Table'!$J8=2,(AJ7*E8)-$AH8,IF('Performance Table'!$J8=1,($AG$3*E8)-$AH8,"--")) -> 134274.8342 | AK8: =+IF('Performance Table'!$J7+'Performance Table'!$J8=2,(AK7*F8)-$AH8,IF('Performance Table'!$J8=1,($AG$3*F8)-$AH8,"--")) -> 118705.8776 | AL8: =+IF('Performance Table'!$J7+'Performance Table'!$J8=2,(AL7*G8)-$AH8,IF('Performance Table'!$J8=1,($AG$3*G8)-$AH8,"--")) -> 112251.836 | AM8: =+IF('Performance Table'!$J7+'Performance Table'!$J8=2,(AM7*H8)-$AH8,IF('Performance Table'!$J8=1,($AG$3*H8)-$AH8,"--")) -> 105796.9826 | AN8: =+IF('Performance Table'!$J7+'Performance Table'!$J8=2,(AN7*I8)-$AH8,IF('Performance Table'!$J8=1,($AG$3*I8)-$AH8,"--")) -> 99355.20416 | AO8: =+IF('Performance Table'!$J7+'Performance Table'!$J8=2,(AO7*J8)-$AH8,IF('Performance Table'!$J8=1,($AG$3*J8)-$AH8,"--")) -> 95284.13138
A9: ='Performance Table'!I9 -> 2005 | B9: ='Performance Table'!J9 -> 1 | C9: =IF('Performance Table'!J9<0,0,IF('Performance Table'!J9=0,0,IF('Performance Table'!J9=1,1,IF('Performance Table'!J9>1,0)))) -> 1 | D9: =+IF('Performance Table'!$J9=1,'Performance Table'!K9/100+1,"") -> 1.11485622 | E9: =+IF('Performance Table'!$J9=1,'Performance Table'!L9/100+1,"") -> 1.119069003 | F9: =+IF('Performance Table'!$J9=1,'Performance Table'!M9/100+1,"") -> 1.11343558 | G9: =+IF('Performance Table'!$J9=1,'Performance Table'!N9/100+1,"") -> 1.094765978 | H9: =+IF('Performance Table'!$J9=1,'Performance Table'!O9/100+1,"") -> 1.076096376 | I9: =+IF('Performance Table'!$J9=1,'Performance Table'!P9/100+1,"") -> 1.057426774 | J9: =+IF('Performance Table'!$J9=1,'Performance Table'!R9/100+1,"") -> 1.040353678 | M9: 2005 | N9: =+IF(SUM($C7:$C9)=3,PRODUCT(Calculations!D7:D9)-1,"") -> 0.6441827459 | O9: =+IF(SUM($C7:$C9)=3,PRODUCT(Calculations!E7:E9)-1,"") -> 0.699157829 | P9: =+IF(SUM($C7:$C9)=3,PRODUCT(Calculations!F7:F9)-1,"") -> 0.6380684423 | Q9: =+IF(SUM($C7:$C9)=3,PRODUCT(Calculations!G7:G9)-1,"") -> 0.4998217101 | R9: =+IF(SUM($C7:$C9)=3,PRODUCT(Calculations!H7:H9)-1,"") -> 0.3690987206 | S9: =+IF(SUM($C7:$C9)=3,PRODUCT(Calculations!I7:I9)-1,"") -> 0.245704535 | T9: =+IF(SUM($C7:$C9)=3,PRODUCT(Calculations!J7:J9)-1,"") -> 0.3327636303 | X9: =+IF('Performance Table'!$J8+'Performance Table'!$J9=2,X8*Calculations!D9,IF('Performance Table'!$J9=1,10000*D9,"--")) -> 15684.84141 | Y9: =+IF('Performance Table'!$J8+'Performance Table'!$J9=2,Y8*Calculations!E9,IF('Performance Table'!$J9=1,10000*E9,"--")) -> 17532.05071 | Z9: =+IF('Performance Table'!$J8+'Performance Table'!$J9=2,Z8*Calculations!F9,IF('Performance Table'!$J9=1,10000*F9,"--")) -> 15638.74562 | AA9: =+IF('Performance Table'!$J8+'Performance Table'!$J9=2,AA8*Calculations!G9,IF('Performance Table'!$J9=1,10000*G9,"--")) -> 14566.46211 | AB9: =+IF('Performance Table'!$J8+'Performance Table'!$J9=2,AB8*Calculations!H9,IF('Performance Table'!$J9=1,10000*H9,"--")) -> 13524.38199 | AC9: =+IF('Performance Table'!$J8+'Performance Table'!$J9=2,AC8*Calculations!I9,IF('Performance Table'!$J9=1,10000*I9,"--")) -> 12513.85988 | AD9: =+IF('Performance Table'!$J8+'Performance Table'!$J9=2,AD8*Calculations!J9,IF('Performance Table'!$J9=1,10000*J9,"--")) -> 11946.42879 | AH9: =+IF('Performance Table'!$J8+'Performance Table'!$J9=2,AH8*(1+AG$2),IF('Performance Table'!$J9=1,AG$3*AG$1,"--")) -> 4862.025 | AI9: =+IF('Performance Table'!$J8+'Performance Table'!$J9=2,(AI8*D9)-$AH9,IF('Performance Table'!$J9=1,($AG$3*D9)-$AH9,"--")) -> 127694.2783 | AJ9: =+IF('Performance Table'!$J8+'Performance Table'!$J9=2,(AJ8*E9)-$AH9,IF('Performance Table'!$J9=1,($AG$3*E9)-$AH9,"--")) -> 145400.7799 | AK9: =+IF('Performance Table'!$J8+'Performance Table'!$J9=2,(AK8*F9)-$AH9,IF('Performance Table'!$J9=1,($AG$3*F9)-$AH9,"--")) -> 127309.3226 | AL9: =+IF('Performance Table'!$J8+'Performance Table'!$J9=2,(AL8*G9)-$AH9,IF('Performance Table'!$J9=1,($AG$3*G9)-$AH9,"--")) -> 118027.466 | AM9: =+IF('Performance Table'!$J8+'Performance Table'!$J9=2,(AM8*H9)-$AH9,IF('Performance Table'!$J9=1,($AG$3*H9)-$AH9,"--")) -> 108985.7245 | AN9: =+IF('Performance Table'!$J8+'Performance Table'!$J9=2,(AN8*I9)-$AH9,IF('Performance Table'!$J9=1,($AG$3*I9)-$AH9,"--")) -> 100198.828 | AO9: =+IF('Performance Table'!$J8+'Performance Table'!$J9=2,(AO8*J9)-$AH9,IF('Performance Table'!$J9=1,($AG$3*J9)-$AH9,"--")) -> 94267.17157
A10: ='Performance Table'!I10 -> 2006 | B10: ='Performance Table'!J10 -> 1 | C10: =IF('Performance Table'!J10<0,0,IF('Performance Table'!J10=0,0,IF('Performance Table'!J10=1,1,IF('Performance Table'!J10>1,0)))) -> 1 | D10: =+IF('Performance Table'!$J10=1,'Performance Table'!K10/100+1,"") -> 1.142614035 | E10: =+IF('Performance Table'!$J10=1,'Performance Table'!L10/100+1,"") -> 1.149767383 | F10: =+IF('Performance Table'!$J10=1,'Performance Table'!M10/100+1,"") -> 1.139648663 | G10: =+IF('Performance Table'!$J10=1,'Performance Table'!N10/100+1,"") -> 1.119484757 | H10: =+IF('Performance Table'!$J10=1,'Performance Table'!O10/100+1,"") -> 1.099320851 | I10: =+IF('Performance Table'!$J10=1,'Performance Table'!P10/100+1,"") -> 1.079156945 | J10: =+IF('Performance Table'!$J10=1,'Performance Table'!R10/100+1,"") -> 1.109622368 | M10: 2006 | N10: =+IF(SUM($C8:$C10)=3,PRODUCT(Calculations!D8:D10)-1,"") -> 0.4898569768 | O10: =+IF(SUM($C8:$C10)=3,PRODUCT(Calculations!E8:E10)-1,"") -> 0.5284794386 | P10: =+IF(SUM($C8:$C10)=3,PRODUCT(Calculations!F8:F10)-1,"") -> 0.4821615075 | Q10: =+IF(SUM($C8:$C10)=3,PRODUCT(Calculations!G8:G10)-1,"") -> 0.3905992682 | R10: =+IF(SUM($C8:$C10)=3,PRODUCT(Calculations!H8:H10)-1,"") -> 0.3027614551 | S10: =+IF(SUM($C8:$C10)=3,PRODUCT(Calculations!I8:I10)-1,"") -> 0.2185726431 | T10: =+IF(SUM($C8:$C10)=3,PRODUCT(Calculations!J8:J10)-1,"") -> 0.250385508 | X10: =+IF('Performance Table'!$J9+'Performance Table'!$J10=2,X9*Calculations!D10,IF('Performance Table'!$J10=1,10000*D10,"--")) -> 17921.71993 | Y10: =+IF('Performance Table'!$J9+'Performance Table'!$J10=2,Y9*Calculations!E10,IF('Performance Table'!$J10=1,10000*E10,"--")) -> 20157.78007 | Z10: =+IF('Performance Table'!$J9+'Performance Table'!$J10=2,Z9*Calculations!F10,IF('Performance Table'!$J10=1,10000*F10,"--")) -> 17822.67554 | AA10: =+IF('Performance Table'!$J9+'Performance Table'!$J10=2,AA9*Calculations!G10,IF('Performance Table'!$J10=1,10000*G10,"--")) -> 16306.9323 | AB10: =+IF('Performance Table'!$J9+'Performance Table'!$J10=2,AB9*Calculations!H10,IF('Performance Table'!$J10=1,10000*H10,"--")) -> 14867.63512 | AC10: =+IF('Performance Table'!$J9+'Performance Table'!$J10=2,AC9*Calculations!I10,IF('Performance Table'!$J10=1,10000*I10,"--")) -> 13504.4188 | AD10: =+IF('Performance Table'!$J9+'Performance Table'!$J10=2,AD9*Calculations!J10,IF('Performance Table'!$J10=1,10000*J10,"--")) -> 13256.0246 | AH10: =+IF('Performance Table'!$J9+'Performance Table'!$J10=2,AH9*(1+AG$2),IF('Performance Table'!$J10=1,AG$3*AG$1,"--")) -> 5105.12625 | AI10: =+IF('Performance Table'!$J9+'Performance Table'!$J10=2,(AI9*D10)-$AH10,IF('Performance Table'!$J10=1,($AG$3*D10)-$AH10,"--")) -> 140800.1484 | AJ10: =+IF('Performance Table'!$J9+'Performance Table'!$J10=2,(AJ9*E10)-$AH10,IF('Performance Table'!$J10=1,($AG$3*E10)-$AH10,"--")) -> 162071.948 | AK10: =+IF('Performance Table'!$J9+'Performance Table'!$J10=2,(AK9*F10)-$AH10,IF('Performance Table'!$J10=1,($AG$3*F10)-$AH10,"--")) -> 139982.7731 | AL10: =+IF('Performance Table'!$J9+'Performance Table'!$J10=2,(AL9*G10)-$AH10,IF('Performance Table'!$J10=1,($AG$3*G10)-$AH10,"--")) -> 127024.8229 | AM10: =+IF('Performance Table'!$J9+'Performance Table'!$J10=2,(AM9*H10)-$AH10,IF('Performance Table'!$J10=1,($AG$3*H10)-$AH10,"--")) -> 114705.1532 | AN10: =+IF('Performance Table'!$J9+'Performance Table'!$J10=2,(AN9*I10)-$AH10,IF('Performance Table'!$J10=1,($AG$3*I10)-$AH10,"--")) -> 103025.1349 | AO10: =+IF('Performance Table'!$J9+'Performance Table'!$J10=2,(AO9*J10)-$AH10,IF('Performance Table'!$J10=1,($AG$3*J10)-$AH10,"--")) -> 99495.83593
A11: ='Performance Table'!I11 -> 2007 | B11: ='Performance Table'!J11 -> 1 | C11: =IF('Performance Table'!J11<0,0,IF('Performance Table'!J11=0,0,IF('Performance Table'!J11=1,1,IF('Performance Table'!J11>1,0)))) -> 1 | D11: =+IF('Performance Table'!$J11=1,'Performance Table'!K11/100+1,"") -> 1.113190753 | E11: =+IF('Performance Table'!$J11=1,'Performance Table'!L11/100+1,"") -> 1.127785322 | F11: =+IF('Performance Table'!$J11=1,'Performance Table'!M11/100+1,"") -> 1.105849587 | G11: =+IF('Performance Table'!$J11=1,'Performance Table'!N11/100+1,"") -> 1.092964572 | H11: =+IF('Performance Table'!$J11=1,'Performance Table'!O11/100+1,"") -> 1.080079556 | I11: =+IF('Performance Table'!$J11=1,'Performance Table'!P11/100+1,"") -> 1.06719454 | J11: =+IF('Performance Table'!$J11=1,'Performance Table'!R11/100+1,"") -> 1.049833157 | M11: 2007 | N11: =+IF(SUM($C9:$C11)=3,PRODUCT(Calculations!D9:D11)-1,"") -> 0.4180384459 | O11: =+IF(SUM($C9:$C11)=3,PRODUCT(Calculations!E9:E11)-1,"") -> 0.4510864565 | P11: =+IF(SUM($C9:$C11)=3,PRODUCT(Calculations!F9:F11)-1,"") -> 0.4032405975 | Q11: =+IF(SUM($C9:$C11)=3,PRODUCT(Calculations!G9:G11)-1,"") -> 0.3395087709 | R11: =+IF(SUM($C9:$C11)=3,PRODUCT(Calculations!H9:H11)-1,"") -> 0.2777073114 | S11: =+IF(SUM($C9:$C11)=3,PRODUCT(Calculations!I9:I11)-1,"") -> 0.2178071155 | T11: =+IF(SUM($C9:$C11)=3,PRODUCT(Calculations!J9:J11)-1,"") -> 0.2119270945 | X11: =+IF('Performance Table'!$J10+'Performance Table'!$J11=2,X10*Calculations!D11,IF('Performance Table'!$J11=1,10000*D11,"--")) -> 19950.29291 | Y11: =+IF('Performance Table'!$J10+'Performance Table'!$J11=2,Y10*Calculations!E11,IF('Performance Table'!$J11=1,10000*E11,"--")) -> 22733.64848 | Z11: =+IF('Performance Table'!$J10+'Performance Table'!$J11=2,Z10*Calculations!F11,IF('Performance Table'!$J11=1,10000*F11,"--")) -> 19709.1984 | AA11: =+IF('Performance Table'!$J10+'Performance Table'!$J11=2,AA10*Calculations!G11,IF('Performance Table'!$J11=1,10000*G11,"--")) -> 17822.89928 | AB11: =+IF('Performance Table'!$J10+'Performance Table'!$J11=2,AB10*Calculations!H11,IF('Performance Table'!$J11=1,10000*H11,"--")) -> 16058.22874 | AC11: =+IF('Performance Table'!$J10+'Performance Table'!$J11=2,AC10*Calculations!I11,IF('Performance Table'!$J11=1,10000*I11,"--")) -> 14411.84201 | AD11: =+IF('Performance Table'!$J10+'Performance Table'!$J11=2,AD10*Calculations!J11,IF('Performance Table'!$J11=1,10000*J11,"--")) -> 13916.61416 | AH11: =+IF('Performance Table'!$J10+'Performance Table'!$J11=2,AH10*(1+AG$2),IF('Performance Table'!$J11=1,AG$3*AG$1,"--")) -> 5360.382563 | AI11: =+IF('Performance Table'!$J10+'Performance Table'!$J11=2,(AI10*D11)-$AH11,IF('Performance Table'!$J11=1,($AG$3*D11)-$AH11,"--")) -> 151377.0407 | AJ11: =+IF('Performance Table'!$J10+'Performance Table'!$J11=2,(AJ10*E11)-$AH11,IF('Performance Table'!$J11=1,($AG$3*E11)-$AH11,"--")) -> 177421.9814 | AK11: =+IF('Performance Table'!$J10+'Performance Table'!$J11=2,(AK10*F11)-$AH11,IF('Performance Table'!$J11=1,($AG$3*F11)-$AH11,"--")) -> 149439.5094 | AL11: =+IF('Performance Table'!$J10+'Performance Table'!$J11=2,(AL10*G11)-$AH11,IF('Performance Table'!$J11=1,($AG$3*G11)-$AH11,"--")) -> 133473.2486 | AM11: =+IF('Performance Table'!$J10+'Performance Table'!$J11=2,(AM10*H11)-$AH11,IF('Performance Table'!$J11=1,($AG$3*H11)-$AH11,"--")) -> 118530.3084 | AN11: =+IF('Performance Table'!$J10+'Performance Table'!$J11=2,(AN10*I11)-$AH11,IF('Performance Table'!$J11=1,($AG$3*I11)-$AH11,"--")) -> 104587.4789 | AO11: =+IF('Performance Table'!$J10+'Performance Table'!$J11=2,(AO10*J11)-$AH11,IF('Performance Table'!$J11=1,($AG$3*J11)-$AH11,"--")) -> 99093.64496
A12: ='Performance Table'!I12 -> 2008 | B12: ='Performance Table'!J12 -> 1 | C12: =IF('Performance Table'!J12<0,0,IF('Performance Table'!J12=0,0,IF('Performance Table'!J12=1,1,IF('Performance Table'!J12>1,0)))) -> 1 | D12: =+IF('Performance Table'!$J12=1,'Performance Table'!K12/100+1,"") -> 0.7351121327 | E12: =+IF('Performance Table'!$J12=1,'Performance Table'!L12/100+1,"") -> 0.7085710566 | F12: =+IF('Performance Table'!$J12=1,'Performance Table'!M12/100+1,"") -> 0.7383595362 | G12: =+IF('Performance Table'!$J12=1,'Performance Table'!N12/100+1,"") -> 0.7942338879 | H12: =+IF('Performance Table'!$J12=1,'Performance Table'!O12/100+1,"") -> 0.8501082397 | I12: =+IF('Performance Table'!$J12=1,'Performance Table'!P12/100+1,"") -> 0.9059825914 | J12: =+IF('Performance Table'!$J12=1,'Performance Table'!R12/100+1,"") -> 0.8190351027 | M12: 2008 | N12: =+IF(SUM($C10:$C12)=3,PRODUCT(Calculations!D10:D12)-1,"") -> -0.06497604993 | O12: =+IF(SUM($C10:$C12)=3,PRODUCT(Calculations!E10:E12)-1,"") -> -0.08120244522 | P12: =+IF(SUM($C10:$C12)=3,PRODUCT(Calculations!F10:F12)-1,"") -> -0.06946024066 | Q12: =+IF(SUM($C10:$C12)=3,PRODUCT(Calculations!G10:G12)-1,"") -> -0.02820942523 | R12: =+IF(SUM($C10:$C12)=3,PRODUCT(Calculations!H10:H12)-1,"") -> 0.009379399068 | S12: =+IF(SUM($C10:$C12)=3,PRODUCT(Calculations!I10:I12)-1,"") -> 0.04339333329 | T12: =+IF(SUM($C10:$C12)=3,PRODUCT(Calculations!J10:J12)-1,"") -> -0.04589097638 | X12: =+IF('Performance Table'!$J11+'Performance Table'!$J12=2,X11*Calculations!D12,IF('Performance Table'!$J12=1,10000*D12,"--")) -> 14665.70237 | Y12: =+IF('Performance Table'!$J11+'Performance Table'!$J12=2,Y11*Calculations!E12,IF('Performance Table'!$J12=1,10000*E12,"--")) -> 16108.40532 | Z12: =+IF('Performance Table'!$J11+'Performance Table'!$J12=2,Z11*Calculations!F12,IF('Performance Table'!$J12=1,10000*F12,"--")) -> 14552.47459 | AA12: =+IF('Performance Table'!$J11+'Performance Table'!$J12=2,AA11*Calculations!G12,IF('Performance Table'!$J12=1,10000*G12,"--")) -> 14155.55059 | AB12: =+IF('Performance Table'!$J11+'Performance Table'!$J12=2,AB11*Calculations!H12,IF('Performance Table'!$J12=1,10000*H12,"--")) -> 13651.23256 | AC12: =+IF('Performance Table'!$J11+'Performance Table'!$J12=2,AC11*Calculations!I12,IF('Performance Table'!$J12=1,10000*I12,"--")) -> 13056.87797 | AD12: =+IF('Performance Table'!$J11+'Performance Table'!$J12=2,AD11*Calculations!J12,IF('Performance Table'!$J12=1,10000*J12,"--")) -> 11398.19551 | AH12: =+IF('Performance Table'!$J11+'Performance Table'!$J12=2,AH11*(1+AG$2),IF('Performance Table'!$J12=1,AG$3*AG$1,"--")) -> 5628.401691 | AI12: =+IF('Performance Table'!$J11+'Performance Table'!$J12=2,(AI11*D12)-$AH12,IF('Performance Table'!$J12=1,($AG$3*D12)-$AH12,"--")) -> 105650.6975 | AJ12: =+IF('Performance Table'!$J11+'Performance Table'!$J12=2,(AJ11*E12)-$AH12,IF('Performance Table'!$J12=1,($AG$3*E12)-$AH12,"--")) -> 120087.6791 | AK12: =+IF('Performance Table'!$J11+'Performance Table'!$J12=2,(AK11*F12)-$AH12,IF('Performance Table'!$J12=1,($AG$3*F12)-$AH12,"--")) -> 104711.6851 | AL12: =+IF('Performance Table'!$J11+'Performance Table'!$J12=2,(AL11*G12)-$AH12,IF('Performance Table'!$J12=1,($AG$3*G12)-$AH12,"--")) -> 100380.5755 | AM12: =+IF('Performance Table'!$J11+'Performance Table'!$J12=2,(AM11*H12)-$AH12,IF('Performance Table'!$J12=1,($AG$3*H12)-$AH12,"--")) -> 95135.19012 | AN12: =+IF('Performance Table'!$J11+'Performance Table'!$J12=2,(AN11*I12)-$AH12,IF('Performance Table'!$J12=1,($AG$3*I12)-$AH12,"--")) -> 89126.03346 | AO12: =+IF('Performance Table'!$J11+'Performance Table'!$J12=2,(AO11*J12)-$AH12,IF('Performance Table'!$J12=1,($AG$3*J12)-$AH12,"--")) -> 75532.77199
A13: ='Performance Table'!I13 -> 2009 | B13: ='Performance Table'!J13 -> 1 | C13: =IF('Performance Table'!J13<0,0,IF('Performance Table'!J13=0,0,IF('Performance Table'!J13=1,1,IF('Performance Table'!J13>1,0)))) -> 1 | D13: =+IF('Performance Table'!$J13=1,'Performance Table'!K13/100+1,"") -> 1.246437383 | E13: =+IF('Performance Table'!$J13=1,'Performance Table'!L13/100+1,"") -> 1.313553042 | F13: =+IF('Performance Table'!$J13=1,'Performance Table'!M13/100+1,"") -> 1.246440599 | G13: =+IF('Performance Table'!$J13=1,'Performance Table'!N13/100+1,"") -> 1.19621503 | H13: =+IF('Performance Table'!$J13=1,'Performance Table'!O13/100+1,"") -> 1.145989462 | I13: =+IF('Performance Table'!$J13=1,'Performance Table'!P13/100+1,"") -> 1.095763894 | J13: =+IF('Performance Table'!$J13=1,'Performance Table'!R13/100+1,"") -> 1.151979434 | M13: 2009 | N13: =+IF(SUM($C11:$C13)=3,PRODUCT(Calculations!D11:D13)-1,"") -> 0.01998467539 | O13: =+IF(SUM($C11:$C13)=3,PRODUCT(Calculations!E11:E13)-1,"") -> 0.04968130121 | P13: =+IF(SUM($C11:$C13)=3,PRODUCT(Calculations!F11:F13)-1,"") -> 0.01773693238 | Q13: =+IF(SUM($C11:$C13)=3,PRODUCT(Calculations!G11:G13)-1,"") -> 0.03839778458 | R13: =+IF(SUM($C11:$C13)=3,PRODUCT(Calculations!H11:H13)-1,"") -> 0.05222979553 | S13: =+IF(SUM($C11:$C13)=3,PRODUCT(Calculations!I11:I13)-1,"") -> 0.05944992219 | T13: =+IF(SUM($C11:$C13)=3,PRODUCT(Calculations!J11:J13)-1,"") -> -0.009470244875 | X13: =+IF('Performance Table'!$J12+'Performance Table'!$J13=2,X12*Calculations!D13,IF('Performance Table'!$J13=1,10000*D13,"--")) -> 18279.87969 | Y13: =+IF('Performance Table'!$J12+'Performance Table'!$J13=2,Y12*Calculations!E13,IF('Performance Table'!$J13=1,10000*E13,"--")) -> 21159.24482 | Z13: =+IF('Performance Table'!$J12+'Performance Table'!$J13=2,Z12*Calculations!F13,IF('Performance Table'!$J13=1,10000*F13,"--")) -> 18138.79513 | AA13: =+IF('Performance Table'!$J12+'Performance Table'!$J13=2,AA12*Calculations!G13,IF('Performance Table'!$J13=1,10000*G13,"--")) -> 16933.08237 | AB13: =+IF('Performance Table'!$J12+'Performance Table'!$J13=2,AB12*Calculations!H13,IF('Performance Table'!$J13=1,10000*H13,"--")) -> 15644.16866 | AC13: =+IF('Performance Table'!$J12+'Performance Table'!$J13=2,AC12*Calculations!I13,IF('Performance Table'!$J13=1,10000*I13,"--")) -> 14307.25544 | AD13: =+IF('Performance Table'!$J12+'Performance Table'!$J13=2,AD12*Calculations!J13,IF('Performance Table'!$J13=1,10000*J13,"--")) -> 13130.48681 | AH13: =+IF('Performance Table'!$J12+'Performance Table'!$J13=2,AH12*(1+AG$2),IF('Performance Table'!$J13=1,AG$3*AG$1,"--")) -> 5909.821775 | AI13: =+IF('Performance Table'!$J12+'Performance Table'!$J13=2,(AI12*D13)-$AH13,IF('Performance Table'!$J13=1,($AG$3*D13)-$AH13,"--")) -> 125777.1572 | AJ13: =+IF('Performance Table'!$J12+'Performance Table'!$J13=2,(AJ12*E13)-$AH13,IF('Performance Table'!$J13=1,($AG$3*E13)-$AH13,"--")) -> 151831.7145 | AK13: =+IF('Performance Table'!$J12+'Performance Table'!$J13=2,(AK12*F13)-$AH13,IF('Performance Table'!$J13=1,($AG$3*F13)-$AH13,"--")) -> 124607.0737 | AL13: =+IF('Performance Table'!$J12+'Performance Table'!$J13=2,(AL12*G13)-$AH13,IF('Performance Table'!$J13=1,($AG$3*G13)-$AH13,"--")) -> 114166.9314 | AM13: =+IF('Performance Table'!$J12+'Performance Table'!$J13=2,(AM12*H13)-$AH13,IF('Performance Table'!$J13=1,($AG$3*H13)-$AH13,"--")) -> 103114.1035 | AN13: =+IF('Performance Table'!$J12+'Performance Table'!$J13=2,(AN12*I13)-$AH13,IF('Performance Table'!$J13=1,($AG$3*I13)-$AH13,"--")) -> 91751.26767 | AO13: =+IF('Performance Table'!$J12+'Performance Table'!$J13=2,(AO12*J13)-$AH13,IF('Performance Table'!$J13=1,($AG$3*J13)-$AH13,"--")) -> 81102.37813
A14: ='Performance Table'!I14 -> 2010 | B14: ='Performance Table'!J14 -> 1 | C14: =IF('Performance Table'!J14<0,0,IF('Performance Table'!J14=0,0,IF('Performance Table'!J14=1,1,IF('Performance Table'!J14>1,0)))) -> 1 | D14: =+IF('Performance Table'!$J14=1,'Performance Table'!K14/100+1,"") -> 1.134124727 | E14: =+IF('Performance Table'!$J14=1,'Performance Table'!L14/100+1,"") -> 1.135176406 | F14: =+IF('Performance Table'!$J14=1,'Performance Table'!M14/100+1,"") -> 1.134094272 | G14: =+IF('Performance Table'!$J14=1,'Performance Table'!N14/100+1,"") -> 1.10539745 | H14: =+IF('Performance Table'!$J14=1,'Performance Table'!O14/100+1,"") -> 1.076700629 | I14: =+IF('Performance Table'!$J14=1,'Performance Table'!P14/100+1,"") -> 1.048003808 | J14: =+IF('Performance Table'!$J14=1,'Performance Table'!R14/100+1,"") -> 1.08923961 | M14: 2010 | N14: =+IF(SUM($C12:$C14)=3,PRODUCT(Calculations!D12:D14)-1,"") -> 0.03916587346 | O14: =+IF(SUM($C12:$C14)=3,PRODUCT(Calculations!E12:E14)-1,"") -> 0.05656052056 | P14: =+IF(SUM($C12:$C14)=3,PRODUCT(Calculations!F12:F14)-1,"") -> 0.04373111721 | Q14: =+IF(SUM($C12:$C14)=3,PRODUCT(Calculations!G12:G14)-1,"") -> 0.05020994582 | R14: =+IF(SUM($C12:$C14)=3,PRODUCT(Calculations!H12:H14)-1,"") -> 0.04893799387 | S14: =+IF(SUM($C12:$C14)=3,PRODUCT(Calculations!I12:I14)-1,"") -> 0.04039845634 | T14: =+IF(SUM($C12:$C14)=3,PRODUCT(Calculations!J12:J14)-1,"") -> 0.02771020022 | X14: =+IF('Performance Table'!$J13+'Performance Table'!$J14=2,X13*Calculations!D14,IF('Performance Table'!$J14=1,10000*D14,"--")) -> 20731.66356 | Y14: =+IF('Performance Table'!$J13+'Performance Table'!$J14=2,Y13*Calculations!E14,IF('Performance Table'!$J14=1,10000*E14,"--")) -> 24019.47547 | Z14: =+IF('Performance Table'!$J13+'Performance Table'!$J14=2,Z13*Calculations!F14,IF('Performance Table'!$J14=1,10000*F14,"--")) -> 20571.10366 | AA14: =+IF('Performance Table'!$J13+'Performance Table'!$J14=2,AA13*Calculations!G14,IF('Performance Table'!$J14=1,10000*G14,"--")) -> 18717.78609 | AB14: =+IF('Performance Table'!$J13+'Performance Table'!$J14=2,AB13*Calculations!H14,IF('Performance Table'!$J14=1,10000*H14,"--")) -> 16844.08624 | AC14: =+IF('Performance Table'!$J13+'Performance Table'!$J14=2,AC13*Calculations!I14,IF('Performance Table'!$J14=1,10000*I14,"--")) -> 14994.05818 | AD14: =+IF('Performance Table'!$J13+'Performance Table'!$J14=2,AD13*Calculations!J14,IF('Performance Table'!$J14=1,10000*J14,"--")) -> 14302.24632 | AH14: =+IF('Performance Table'!$J13+'Performance Table'!$J14=2,AH13*(1+AG$2),IF('Performance Table'!$J14=1,AG$3*AG$1,"--")) -> 6205.312864 | AI14: =+IF('Performance Table'!$J13+'Performance Table'!$J14=2,(AI13*D14)-$AH14,IF('Performance Table'!$J14=1,($AG$3*D14)-$AH14,"--")) -> 136441.6712 | AJ14: =+IF('Performance Table'!$J13+'Performance Table'!$J14=2,(AJ13*E14)-$AH14,IF('Performance Table'!$J14=1,($AG$3*E14)-$AH14,"--")) -> 166150.467 | AK14: =+IF('Performance Table'!$J13+'Performance Table'!$J14=2,(AK13*F14)-$AH14,IF('Performance Table'!$J14=1,($AG$3*F14)-$AH14,"--")) -> 135110.8557 | AL14: =+IF('Performance Table'!$J13+'Performance Table'!$J14=2,(AL13*G14)-$AH14,IF('Performance Table'!$J14=1,($AG$3*G14)-$AH14,"--")) -> 119994.522 | AM14: =+IF('Performance Table'!$J13+'Performance Table'!$J14=2,(AM13*H14)-$AH14,IF('Performance Table'!$J14=1,($AG$3*H14)-$AH14,"--")) -> 104817.7073 | AN14: =+IF('Performance Table'!$J13+'Performance Table'!$J14=2,(AN13*I14)-$AH14,IF('Performance Table'!$J14=1,($AG$3*I14)-$AH14,"--")) -> 89950.365 | AO14: =+IF('Performance Table'!$J13+'Performance Table'!$J14=2,(AO13*J14)-$AH14,IF('Performance Table'!$J14=1,($AG$3*J14)-$AH14,"--")) -> 82134.60984
A15: ='Performance Table'!I15 -> 2011 | B15: ='Performance Table'!J15 -> 1 | C15: =IF('Performance Table'!J15<0,0,IF('Performance Table'!J15=0,0,IF('Performance Table'!J15=1,1,IF('Performance Table'!J15>1,0)))) -> 1 | D15: =+IF('Performance Table'!$J15=1,'Performance Table'!K15/100+1,"") -> 0.9823117702 | E15: =+IF('Performance Table'!$J15=1,'Performance Table'!L15/100+1,"") -> 0.9268815488 | F15: =+IF('Performance Table'!$J15=1,'Performance Table'!M15/100+1,"") -> 0.9800252865 | G15: =+IF('Performance Table'!$J15=1,'Performance Table'!N15/100+1,"") -> 0.9821096472 | H15: =+IF('Performance Table'!$J15=1,'Performance Table'!O15/100+1,"") -> 0.9841940078 | I15: =+IF('Performance Table'!$J15=1,'Performance Table'!P15/100+1,"") -> 0.9862783685 | J15: =+IF('Performance Table'!$J15=1,'Performance Table'!R15/100+1,"") -> 1.000417548 | M15: 2011 | N15: =+IF(SUM($C13:$C15)=3,PRODUCT(Calculations!D13:D15)-1,"") -> 0.388611102 | O15: =+IF(SUM($C13:$C15)=3,PRODUCT(Calculations!E13:E15)-1,"") -> 0.3820864437 | P15: =+IF(SUM($C13:$C15)=3,PRODUCT(Calculations!F13:F15)-1,"") -> 0.3853452648 | Q15: =+IF(SUM($C13:$C15)=3,PRODUCT(Calculations!G13:G15)-1,"") -> 0.2986367555 | R15: =+IF(SUM($C13:$C15)=3,PRODUCT(Calculations!H13:H15)-1,"") -> 0.2143847571 | S15: =+IF(SUM($C13:$C15)=3,PRODUCT(Calculations!I13:I15)-1,"") -> 0.1326072949 | T15: =+IF(SUM($C13:$C15)=3,PRODUCT(Calculations!J13:J15)-1,"") -> 0.2553055602 | X15: =+IF('Performance Table'!$J14+'Performance Table'!$J15=2,X14*Calculations!D15,IF('Performance Table'!$J15=1,10000*D15,"--")) -> 20364.95713 | Y15: =+IF('Performance Table'!$J14+'Performance Table'!$J15=2,Y14*Calculations!E15,IF('Performance Table'!$J15=1,10000*E15,"--")) -> 22263.20863 | Z15: =+IF('Performance Table'!$J14+'Performance Table'!$J15=2,Z14*Calculations!F15,IF('Performance Table'!$J15=1,10000*F15,"--")) -> 20160.20176 | AA15: =+IF('Performance Table'!$J14+'Performance Table'!$J15=2,AA14*Calculations!G15,IF('Performance Table'!$J15=1,10000*G15,"--")) -> 18382.91829 | AB15: =+IF('Performance Table'!$J14+'Performance Table'!$J15=2,AB14*Calculations!H15,IF('Performance Table'!$J15=1,10000*H15,"--")) -> 16577.84874 | AC15: =+IF('Performance Table'!$J14+'Performance Table'!$J15=2,AC14*Calculations!I15,IF('Performance Table'!$J15=1,10000*I15,"--")) -> 14788.31524 | AD15: =+IF('Performance Table'!$J14+'Performance Table'!$J15=2,AD14*Calculations!J15,IF('Performance Table'!$J15=1,10000*J15,"--")) -> 14308.21819 | AH15: =+IF('Performance Table'!$J14+'Performance Table'!$J15=2,AH14*(1+AG$2),IF('Performance Table'!$J15=1,AG$3*AG$1,"--")) -> 6515.578507 | AI15: =+IF('Performance Table'!$J14+'Performance Table'!$J15=2,(AI14*D15)-$AH15,IF('Performance Table'!$J15=1,($AG$3*D15)-$AH15,"--")) -> 127512.681 | AJ15: =+IF('Performance Table'!$J14+'Performance Table'!$J15=2,(AJ14*E15)-$AH15,IF('Performance Table'!$J15=1,($AG$3*E15)-$AH15,"--")) -> 147486.2237 | AK15: =+IF('Performance Table'!$J14+'Performance Table'!$J15=2,(AK14*F15)-$AH15,IF('Performance Table'!$J15=1,($AG$3*F15)-$AH15,"--")) -> 125896.4765 | AL15: =+IF('Performance Table'!$J14+'Performance Table'!$J15=2,(AL14*G15)-$AH15,IF('Performance Table'!$J15=1,($AG$3*G15)-$AH15,"--")) -> 111332.1991 | AM15: =+IF('Performance Table'!$J14+'Performance Table'!$J15=2,(AM14*H15)-$AH15,IF('Performance Table'!$J15=1,($AG$3*H15)-$AH15,"--")) -> 96645.38092 | AN15: =+IF('Performance Table'!$J14+'Performance Table'!$J15=2,(AN14*I15)-$AH15,IF('Performance Table'!$J15=1,($AG$3*I15)-$AH15,"--")) -> 82200.52073 | AO15: =+IF('Performance Table'!$J14+'Performance Table'!$J15=2,(AO14*J15)-$AH15,IF('Performance Table'!$J15=1,($AG$3*J15)-$AH15,"--")) -> 75653.32646
A16: ='Performance Table'!I16 -> 2012 | B16: ='Performance Table'!J16 -> 1 | C16: =IF('Performance Table'!J16<0,0,IF('Performance Table'!J16=0,0,IF('Performance Table'!J16=1,1,IF('Performance Table'!J16>1,0)))) -> 1 | D16: =+IF('Performance Table'!$J16=1,'Performance Table'!K16/100+1,"") -> 1.097709913 | E16: =+IF('Performance Table'!$J16=1,'Performance Table'!L16/100+1,"") -> 1.114195705 | F16: =+IF('Performance Table'!$J16=1,'Performance Table'!M16/100+1,"") -> 1.096390398 | G16: =+IF('Performance Table'!$J16=1,'Performance Table'!N16/100+1,"") -> 1.075188932 | H16: =+IF('Performance Table'!$J16=1,'Performance Table'!O16/100+1,"") -> 1.053987466 | I16: =+IF('Performance Table'!$J16=1,'Performance Table'!P16/100+1,"") -> 1.032785999 | J16: =+IF('Performance Table'!$J16=1,'Performance Table'!R16/100+1,"") -> 1.087214515 | M16: 2012 | N16: =+IF(SUM($C14:$C16)=3,PRODUCT(Calculations!D14:D16)-1,"") -> 0.222919171 | O16: =+IF(SUM($C14:$C16)=3,PRODUCT(Calculations!E14:E16)-1,"") -> 0.1723278245 | P16: =+IF(SUM($C14:$C16)=3,PRODUCT(Calculations!F14:F16)-1,"") -> 0.2185733103 | Q16: =+IF(SUM($C14:$C16)=3,PRODUCT(Calculations!G14:G16)-1,"") -> 0.167248221 | R16: =+IF(SUM($C14:$C16)=3,PRODUCT(Calculations!H14:H16)-1,"") -> 0.1168918695 | S16: =+IF(SUM($C14:$C16)=3,PRODUCT(Calculations!I14:I16)-1,"") -> 0.0675118645 | T16: =+IF(SUM($C14:$C16)=3,PRODUCT(Calculations!J14:J16)-1,"") -> 0.1847315897 | X16: =+IF('Performance Table'!$J15+'Performance Table'!$J16=2,X15*Calculations!D16,IF('Performance Table'!$J16=1,10000*D16,"--")) -> 22354.81531 | Y16: =+IF('Performance Table'!$J15+'Performance Table'!$J16=2,Y15*Calculations!E16,IF('Performance Table'!$J16=1,10000*E16,"--")) -> 24805.57144 | Z16: =+IF('Performance Table'!$J15+'Performance Table'!$J16=2,Z15*Calculations!F16,IF('Performance Table'!$J16=1,10000*F16,"--")) -> 22103.45163 | AA16: =+IF('Performance Table'!$J15+'Performance Table'!$J16=2,AA15*Calculations!G16,IF('Performance Table'!$J16=1,10000*G16,"--")) -> 19765.11028 | AB16: =+IF('Performance Table'!$J15+'Performance Table'!$J16=2,AB15*Calculations!H16,IF('Performance Table'!$J16=1,10000*H16,"--")) -> 17472.84478 | AC16: =+IF('Performance Table'!$J15+'Performance Table'!$J16=2,AC15*Calculations!I16,IF('Performance Table'!$J16=1,10000*I16,"--")) -> 15273.16493 | AD16: =+IF('Performance Table'!$J15+'Performance Table'!$J16=2,AD15*Calculations!J16,IF('Performance Table'!$J16=1,10000*J16,"--")) -> 15556.10251 | AH16: =+IF('Performance Table'!$J15+'Performance Table'!$J16=2,AH15*(1+AG$2),IF('Performance Table'!$J16=1,AG$3*AG$1,"--")) -> 6841.357432 | AI16: =+IF('Performance Table'!$J15+'Performance Table'!$J16=2,(AI15*D16)-$AH16,IF('Performance Table'!$J16=1,($AG$3*D16)-$AH16,"--")) -> 133130.5765 | AJ16: =+IF('Performance Table'!$J15+'Performance Table'!$J16=2,(AJ15*E16)-$AH16,IF('Performance Table'!$J16=1,($AG$3*E16)-$AH16,"--")) -> 157487.1596 | AK16: =+IF('Performance Table'!$J15+'Performance Table'!$J16=2,(AK15*F16)-$AH16,IF('Performance Table'!$J16=1,($AG$3*F16)-$AH16,"--")) -> 131190.3306 | AL16: =+IF('Performance Table'!$J15+'Performance Table'!$J16=2,(AL15*G16)-$AH16,IF('Performance Table'!$J16=1,($AG$3*G16)-$AH16,"--")) -> 112861.7908 | AM16: =+IF('Performance Table'!$J15+'Performance Table'!$J16=2,(AM15*H16)-$AH16,IF('Performance Table'!$J16=1,($AG$3*H16)-$AH16,"--")) -> 95021.66267 | AN16: =+IF('Performance Table'!$J15+'Performance Table'!$J16=2,(AN15*I16)-$AH16,IF('Performance Table'!$J16=1,($AG$3*I16)-$AH16,"--")) -> 78054.18952 | AO16: =+IF('Performance Table'!$J15+'Performance Table'!$J16=2,(AO15*J16)-$AH16,IF('Performance Table'!$J16=1,($AG$3*J16)-$AH16,"--")) -> 75410.03721
A17: ='Performance Table'!I17 -> 2013 | B17: ='Performance Table'!J17 -> 1 | C17: =IF('Performance Table'!J17<0,0,IF('Performance Table'!J17=0,0,IF('Performance Table'!J17=1,1,IF('Performance Table'!J17>1,0)))) -> 1 | D17: =+IF('Performance Table'!$J17=1,'Performance Table'!K17/100+1,"") -> 1.0946319 | E17: =+IF('Performance Table'!$J17=1,'Performance Table'!L17/100+1,"") -> 1.103297506 | F17: =+IF('Performance Table'!$J17=1,'Performance Table'!M17/100+1,"") -> 1.086492016 | G17: =+IF('Performance Table'!$J17=1,'Performance Table'!N17/100+1,"") -> 1.067232216 | H17: =+IF('Performance Table'!$J17=1,'Performance Table'!O17/100+1,"") -> 1.047972415 | I17: =+IF('Performance Table'!$J17=1,'Performance Table'!P17/100+1,"") -> 1.028712615 | J17: =+IF('Performance Table'!$J17=1,'Performance Table'!R17/100+1,"") -> 1.136964407 | M17: 2013 | N17: =+IF(SUM($C15:$C17)=3,PRODUCT(Calculations!D15:D17)-1,"") -> 0.1803343172 | O17: =+IF(SUM($C15:$C17)=3,PRODUCT(Calculations!E15:E17)-1,"") -> 0.1394056097 | P17: =+IF(SUM($C15:$C17)=3,PRODUCT(Calculations!F15:F17)-1,"") -> 0.1674251474 | Q17: =+IF(SUM($C15:$C17)=3,PRODUCT(Calculations!G15:G17)-1,"") -> 0.1269475106 | R17: =+IF(SUM($C15:$C17)=3,PRODUCT(Calculations!H15:H17)-1,"") -> 0.08709128454 | S17: =+IF(SUM($C15:$C17)=3,PRODUCT(Calculations!I15:I17)-1,"") -> 0.0478615759 | T17: =+IF(SUM($C15:$C17)=3,PRODUCT(Calculations!J15:J17)-1,"") -> 0.2366403476 | X17: =+IF('Performance Table'!$J16+'Performance Table'!$J17=2,X16*Calculations!D17,IF('Performance Table'!$J17=1,10000*D17,"--")) -> 24470.29395 | Y17: =+IF('Performance Table'!$J16+'Performance Table'!$J17=2,Y16*Calculations!E17,IF('Performance Table'!$J17=1,10000*E17,"--")) -> 27367.9251 | Z17: =+IF('Performance Table'!$J16+'Performance Table'!$J17=2,Z16*Calculations!F17,IF('Performance Table'!$J17=1,10000*F17,"--")) -> 24015.22372 | AA17: =+IF('Performance Table'!$J16+'Performance Table'!$J17=2,AA16*Calculations!G17,IF('Performance Table'!$J17=1,10000*G17,"--")) -> 21093.96243 | AB17: =+IF('Performance Table'!$J16+'Performance Table'!$J17=2,AB16*Calculations!H17,IF('Performance Table'!$J17=1,10000*H17,"--")) -> 18311.05934 | AC17: =+IF('Performance Table'!$J16+'Performance Table'!$J17=2,AC16*Calculations!I17,IF('Performance Table'!$J17=1,10000*I17,"--")) -> 15711.69743 | AD17: =+IF('Performance Table'!$J16+'Performance Table'!$J17=2,AD16*Calculations!J17,IF('Performance Table'!$J17=1,10000*J17,"--")) -> 17686.73486 | AH17: =+IF('Performance Table'!$J16+'Performance Table'!$J17=2,AH16*(1+AG$2),IF('Performance Table'!$J17=1,AG$3*AG$1,"--")) -> 7183.425304 | AI17: =+IF('Performance Table'!$J16+'Performance Table'!$J17=2,(AI16*D17)-$AH17,IF('Performance Table'!$J17=1,($AG$3*D17)-$AH17,"--")) -> 138545.5506 | AJ17: =+IF('Performance Table'!$J16+'Performance Table'!$J17=2,(AJ16*E17)-$AH17,IF('Performance Table'!$J17=1,($AG$3*E17)-$AH17,"--")) -> 166571.7651 | AK17: =+IF('Performance Table'!$J16+'Performance Table'!$J17=2,(AK16*F17)-$AH17,IF('Performance Table'!$J17=1,($AG$3*F17)-$AH17,"--")) -> 135353.8214 | AL17: =+IF('Performance Table'!$J16+'Performance Table'!$J17=2,(AL16*G17)-$AH17,IF('Performance Table'!$J17=1,($AG$3*G17)-$AH17,"--")) -> 113266.3138 | AM17: =+IF('Performance Table'!$J16+'Performance Table'!$J17=2,(AM16*H17)-$AH17,IF('Performance Table'!$J17=1,($AG$3*H17)-$AH17,"--")) -> 92396.65601 | AN17: =+IF('Performance Table'!$J16+'Performance Table'!$J17=2,(AN16*I17)-$AH17,IF('Performance Table'!$J17=1,($AG$3*I17)-$AH17,"--")) -> 73111.90409 | AO17: =+IF('Performance Table'!$J16+'Performance Table'!$J17=2,(AO16*J17)-$AH17,IF('Performance Table'!$J17=1,($AG$3*J17)-$AH17,"--")) -> 78555.10294
A18: ='Performance Table'!I18 -> 2014 | B18: ='Performance Table'!J18 -> 1 | C18: =IF('Performance Table'!J18<0,0,IF('Performance Table'!J18=0,0,IF('Performance Table'!J18=1,1,IF('Performance Table'!J18>1,0)))) -> 1 | D18: =+IF('Performance Table'!$J18=1,'Performance Table'!K18/100+1,"") -> 1.004946053 | E18: =+IF('Performance Table'!$J18=1,'Performance Table'!L18/100+1,"") -> 0.990532088 | F18: =+IF('Performance Table'!$J18=1,'Performance Table'!M18/100+1,"") -> 1.014955705 | G18: =+IF('Performance Table'!$J18=1,'Performance Table'!N18/100+1,"") -> 1.009983764 | H18: =+IF('Performance Table'!$J18=1,'Performance Table'!O18/100+1,"") -> 1.005011824 | I18: =+IF('Performance Table'!$J18=1,'Performance Table'!P18/100+1,"") -> 1.000039884 | J18: =+IF('Performance Table'!$J18=1,'Performance Table'!R18/100+1,"") -> 1.042692097 | M18: 2014 | N18: =+IF(SUM($C16:$C18)=3,PRODUCT(Calculations!D16:D18)-1,"") -> 0.2075314065 | O18: =+IF(SUM($C16:$C18)=3,PRODUCT(Calculations!E16:E18)-1,"") -> 0.2176505392 | P18: =+IF(SUM($C16:$C18)=3,PRODUCT(Calculations!F16:F18)-1,"") -> 0.2090349394 | Q18: =+IF(SUM($C16:$C18)=3,PRODUCT(Calculations!G16:G18)-1,"") -> 0.1589323986 | R18: =+IF(SUM($C16:$C18)=3,PRODUCT(Calculations!H16:H18)-1,"") -> 0.1100855995 | S18: =+IF(SUM($C16:$C18)=3,PRODUCT(Calculations!I16:I18)-1,"") -> 0.06248236061 | T18: =+IF(SUM($C16:$C18)=3,PRODUCT(Calculations!J16:J18)-1,"") -> 0.2888969411 | X18: =+IF('Performance Table'!$J17+'Performance Table'!$J18=2,X17*Calculations!D18,IF('Performance Table'!$J18=1,10000*D18,"--")) -> 24591.32532 | Y18: =+IF('Performance Table'!$J17+'Performance Table'!$J18=2,Y17*Calculations!E18,IF('Performance Table'!$J18=1,10000*E18,"--")) -> 27108.80799 | Z18: =+IF('Performance Table'!$J17+'Performance Table'!$J18=2,Z17*Calculations!F18,IF('Performance Table'!$J18=1,10000*F18,"--")) -> 24374.38831 | AA18: =+IF('Performance Table'!$J17+'Performance Table'!$J18=2,AA17*Calculations!G18,IF('Performance Table'!$J18=1,10000*G18,"--")) -> 21304.55959 | AB18: =+IF('Performance Table'!$J17+'Performance Table'!$J18=2,AB17*Calculations!H18,IF('Performance Table'!$J18=1,10000*H18,"--")) -> 18402.83116 | AC18: =+IF('Performance Table'!$J17+'Performance Table'!$J18=2,AC17*Calculations!I18,IF('Performance Table'!$J18=1,10000*I18,"--")) -> 15712.32408 | AD18: =+IF('Performance Table'!$J17+'Performance Table'!$J18=2,AD17*Calculations!J18,IF('Performance Table'!$J18=1,10000*J18,"--")) -> 18441.81866 | AH18: =+IF('Performance Table'!$J17+'Performance Table'!$J18=2,AH17*(1+AG$2),IF('Performance Table'!$J18=1,AG$3*AG$1,"--")) -> 7542.596569 | AI18: =+IF('Performance Table'!$J17+'Performance Table'!$J18=2,(AI17*D18)-$AH18,IF('Performance Table'!$J18=1,($AG$3*D18)-$AH18,"--")) -> 131688.2077 | AJ18: =+IF('Performance Table'!$J17+'Performance Table'!$J18=2,(AJ17*E18)-$AH18,IF('Performance Table'!$J18=1,($AG$3*E18)-$AH18,"--")) -> 157452.0817 | AK18: =+IF('Performance Table'!$J17+'Performance Table'!$J18=2,(AK17*F18)-$AH18,IF('Performance Table'!$J18=1,($AG$3*F18)-$AH18,"--")) -> 129835.5366 | AL18: =+IF('Performance Table'!$J17+'Performance Table'!$J18=2,(AL17*G18)-$AH18,IF('Performance Table'!$J18=1,($AG$3*G18)-$AH18,"--")) -> 106854.5414 | AM18: =+IF('Performance Table'!$J17+'Performance Table'!$J18=2,(AM17*H18)-$AH18,IF('Performance Table'!$J18=1,($AG$3*H18)-$AH18,"--")) -> 85317.13526 | AN18: =+IF('Performance Table'!$J17+'Performance Table'!$J18=2,(AN17*I18)-$AH18,IF('Performance Table'!$J18=1,($AG$3*I18)-$AH18,"--")) -> 65572.22354 | AO18: =+IF('Performance Table'!$J17+'Performance Table'!$J18=2,(AO17*J18)-$AH18,IF('Performance Table'!$J18=1,($AG$3*J18)-$AH18,"--")) -> 74366.18845
A19: ='Performance Table'!I19 -> 2015 | B19: ='Performance Table'!J19 -> 1 | C19: =IF('Performance Table'!J19<0,0,IF('Performance Table'!J19=0,0,IF('Performance Table'!J19=1,1,IF('Performance Table'!J19>1,0)))) -> 1 | D19: =+IF('Performance Table'!$J19=1,'Performance Table'!K19/100+1,"") -> 0.9294217473 | E19: =+IF('Performance Table'!$J19=1,'Performance Table'!L19/100+1,"") -> 0.9204418274 | F19: =+IF('Performance Table'!$J19=1,'Performance Table'!M19/100+1,"") -> 0.9392762931 | G19: =+IF('Performance Table'!$J19=1,'Performance Table'!N19/100+1,"") -> 0.949518854 | H19: =+IF('Performance Table'!$J19=1,'Performance Table'!O19/100+1,"") -> 0.9597614149 | I19: =+IF('Performance Table'!$J19=1,'Performance Table'!P19/100+1,"") -> 0.9700039758 | J19: =+IF('Performance Table'!$J19=1,'Performance Table'!R19/100+1,"") -> 0.9898273499 | M19: 2015 | N19: =+IF(SUM($C17:$C19)=3,PRODUCT(Calculations!D17:D19)-1,"") -> 0.0224066821 | O19: =+IF(SUM($C17:$C19)=3,PRODUCT(Calculations!E17:E19)-1,"") -> 0.005906307211 | P19: =+IF(SUM($C17:$C19)=3,PRODUCT(Calculations!F17:F19)-1,"") -> 0.03577873193 | Q19: =+IF(SUM($C17:$C19)=3,PRODUCT(Calculations!G17:G19)-1,"") -> 0.02347422898 | R19: =+IF(SUM($C17:$C19)=3,PRODUCT(Calculations!H17:H19)-1,"") -> 0.01084439838 | S19: =+IF(SUM($C17:$C19)=3,PRODUCT(Calculations!I17:I19)-1,"") -> -0.002104874999 | T19: =+IF(SUM($C17:$C19)=3,PRODUCT(Calculations!J17:J19)-1,"") -> 0.1734440865 | X19: =+IF('Performance Table'!$J18+'Performance Table'!$J19=2,X18*Calculations!D19,IF('Performance Table'!$J19=1,10000*D19,"--")) -> 22855.71255 | Y19: =+IF('Performance Table'!$J18+'Performance Table'!$J19=2,Y18*Calculations!E19,IF('Performance Table'!$J19=1,10000*E19,"--")) -> 24952.08077 | Z19: =+IF('Performance Table'!$J18+'Performance Table'!$J19=2,Z18*Calculations!F19,IF('Performance Table'!$J19=1,10000*F19,"--")) -> 22894.2851 | AA19: =+IF('Performance Table'!$J18+'Performance Table'!$J19=2,AA18*Calculations!G19,IF('Performance Table'!$J19=1,10000*G19,"--")) -> 20229.081 | AB19: =+IF('Performance Table'!$J18+'Performance Table'!$J19=2,AB18*Calculations!H19,IF('Performance Table'!$J19=1,10000*H19,"--")) -> 17662.32727 | AC19: =+IF('Performance Table'!$J18+'Performance Table'!$J19=2,AC18*Calculations!I19,IF('Performance Table'!$J19=1,10000*I19,"--")) -> 15241.01683 | AD19: =+IF('Performance Table'!$J18+'Performance Table'!$J19=2,AD18*Calculations!J19,IF('Performance Table'!$J19=1,10000*J19,"--")) -> 18254.2165 | AH19: =+IF('Performance Table'!$J18+'Performance Table'!$J19=2,AH18*(1+AG$2),IF('Performance Table'!$J19=1,AG$3*AG$1,"--")) -> 7919.726398 | AI19: =+IF('Performance Table'!$J18+'Performance Table'!$J19=2,(AI18*D19)-$AH19,IF('Performance Table'!$J19=1,($AG$3*D19)-$AH19,"--")) -> 114474.1577 | AJ19: =+IF('Performance Table'!$J18+'Performance Table'!$J19=2,(AJ18*E19)-$AH19,IF('Performance Table'!$J19=1,($AG$3*E19)-$AH19,"--")) -> 137005.7554 | AK19: =+IF('Performance Table'!$J18+'Performance Table'!$J19=2,(AK18*F19)-$AH19,IF('Performance Table'!$J19=1,($AG$3*F19)-$AH19,"--")) -> 114031.7152 | AL19: =+IF('Performance Table'!$J18+'Performance Table'!$J19=2,(AL18*G19)-$AH19,IF('Performance Table'!$J19=1,($AG$3*G19)-$AH19,"--")) -> 93540.67531 | AM19: =+IF('Performance Table'!$J18+'Performance Table'!$J19=2,(AM18*H19)-$AH19,IF('Performance Table'!$J19=1,($AG$3*H19)-$AH19,"--")) -> 73964.36805 | AN19: =+IF('Performance Table'!$J18+'Performance Table'!$J19=2,(AN18*I19)-$AH19,IF('Performance Table'!$J19=1,($AG$3*I19)-$AH19,"--")) -> 55685.59114 | AO19: =+IF('Performance Table'!$J18+'Performance Table'!$J19=2,(AO18*J19)-$AH19,IF('Performance Table'!$J19=1,($AG$3*J19)-$AH19,"--")) -> 65689.96084
A20: ='Performance Table'!I20 -> 2016 | B20: ='Performance Table'!J20 -> 1 | C20: =IF('Performance Table'!J20<0,0,IF('Performance Table'!J20=0,0,IF('Performance Table'!J20=1,1,IF('Performance Table'!J20>1,0)))) -> 1 | D20: =+IF('Performance Table'!$J20=1,'Performance Table'!K20/100+1,"") -> 1.105067598 | E20: =+IF('Performance Table'!$J20=1,'Performance Table'!L20/100+1,"") -> 1.081867956 | F20: =+IF('Performance Table'!$J20=1,'Performance Table'!M20/100+1,"") -> 1.091427442 | G20: =+IF('Performance Table'!$J20=1,'Performance Table'!N20/100+1,"") -> 1.07180753 | H20: =+IF('Performance Table'!$J20=1,'Performance Table'!O20/100+1,"") -> 1.052187619 | I20: =+IF('Performance Table'!$J20=1,'Performance Table'!P20/100+1,"") -> 1.032567708 | J20: =+IF('Performance Table'!$J20=1,'Performance Table'!R20/100+1,"") -> 1.05245008 | M20: 2016 | N20: =+IF(SUM($C18:$C20)=3,PRODUCT(Calculations!D18:D20)-1,"") -> 0.03215381987 | O20: =+IF(SUM($C18:$C20)=3,PRODUCT(Calculations!E18:E20)-1,"") -> -0.01363159565 | P20: =+IF(SUM($C18:$C20)=3,PRODUCT(Calculations!F18:F20)-1,"") -> 0.04048379106 | Q20: =+IF(SUM($C18:$C20)=3,PRODUCT(Calculations!G18:G20)-1,"") -> 0.02786194969 | R20: =+IF(SUM($C18:$C20)=3,PRODUCT(Calculations!H18:H20)-1,"") -> 0.01491026422 | S20: =+IF(SUM($C18:$C20)=3,PRODUCT(Calculations!I18:I20)-1,"") -> 0.001634729575 | T20: =+IF(SUM($C18:$C20)=3,PRODUCT(Calculations!J18:J20)-1,"") -> 0.08621810362 | X20: =+IF('Performance Table'!$J19+'Performance Table'!$J20=2,X19*Calculations!D20,IF('Performance Table'!$J20=1,10000*D20,"--")) -> 25257.10737 | Y20: =+IF('Performance Table'!$J19+'Performance Table'!$J20=2,Y19*Calculations!E20,IF('Performance Table'!$J20=1,10000*E20,"--")) -> 26994.85661 | Z20: =+IF('Performance Table'!$J19+'Performance Table'!$J20=2,Z19*Calculations!F20,IF('Performance Table'!$J20=1,10000*F20,"--")) -> 24987.45102 | AA20: =+IF('Performance Table'!$J19+'Performance Table'!$J20=2,AA19*Calculations!G20,IF('Performance Table'!$J20=1,10000*G20,"--")) -> 21681.68135 | AB20: =+IF('Performance Table'!$J19+'Performance Table'!$J20=2,AB19*Calculations!H20,IF('Performance Table'!$J20=1,10000*H20,"--")) -> 18584.08208 | AC20: =+IF('Performance Table'!$J19+'Performance Table'!$J20=2,AC19*Calculations!I20,IF('Performance Table'!$J20=1,10000*I20,"--")) -> 15737.38181 | AD20: =+IF('Performance Table'!$J19+'Performance Table'!$J20=2,AD19*Calculations!J20,IF('Performance Table'!$J20=1,10000*J20,"--")) -> 19211.6516 | AH20: =+IF('Performance Table'!$J19+'Performance Table'!$J20=2,AH19*(1+AG$2),IF('Performance Table'!$J20=1,AG$3*AG$1,"--")) -> 8315.712718 | AI20: =+IF('Performance Table'!$J19+'Performance Table'!$J20=2,(AI19*D20)-$AH20,IF('Performance Table'!$J20=1,($AG$3*D20)-$AH20,"--")) -> 118185.9698 | AJ20: =+IF('Performance Table'!$J19+'Performance Table'!$J20=2,(AJ19*E20)-$AH20,IF('Performance Table'!$J20=1,($AG$3*E20)-$AH20,"--")) -> 139906.4238 | AK20: =+IF('Performance Table'!$J19+'Performance Table'!$J20=2,(AK19*F20)-$AH20,IF('Performance Table'!$J20=1,($AG$3*F20)-$AH20,"--")) -> 116141.6305 | AL20: =+IF('Performance Table'!$J19+'Performance Table'!$J20=2,(AL19*G20)-$AH20,IF('Performance Table'!$J20=1,($AG$3*G20)-$AH20,"--")) -> 91941.88749 | AM20: =+IF('Performance Table'!$J19+'Performance Table'!$J20=2,(AM19*H20)-$AH20,IF('Performance Table'!$J20=1,($AG$3*H20)-$AH20,"--")) -> 69508.6796 | AN20: =+IF('Performance Table'!$J19+'Performance Table'!$J20=2,(AN19*I20)-$AH20,IF('Performance Table'!$J20=1,($AG$3*I20)-$AH20,"--")) -> 49183.43047 | AO20: =+IF('Performance Table'!$J19+'Performance Table'!$J20=2,(AO19*J20)-$AH20,IF('Performance Table'!$J20=1,($AG$3*J20)-$AH20,"--")) -> 60819.69179
A21: ='Performance Table'!I21 -> 2017 | B21: ='Performance Table'!J21 -> 1 | C21: =IF('Performance Table'!J21<0,0,IF('Performance Table'!J21=0,0,IF('Performance Table'!J21=1,1,IF('Performance Table'!J21>1,0)))) -> 1 | D21: =+IF('Performance Table'!$J21=1,'Performance Table'!K21/100+1,"") -> 1.109917853 | E21: =+IF('Performance Table'!$J21=1,'Performance Table'!L21/100+1,"") -> 1.1266546 | F21: =+IF('Performance Table'!$J21=1,'Performance Table'!M21/100+1,"") -> 1.109685671 | G21: =+IF('Performance Table'!$J21=1,'Performance Table'!N21/100+1,"") -> 1.087369686 | H21: =+IF('Performance Table'!$J21=1,'Performance Table'!O21/100+1,"") -> 1.0650537 | I21: =+IF('Performance Table'!$J21=1,'Performance Table'!P21/100+1,"") -> 1.042737715 | J21: =+IF('Performance Table'!$J21=1,'Performance Table'!R21/100+1,"") -> 1.110570064 | M21: 2017 | N21: =+IF(SUM($C19:$C21)=3,PRODUCT(Calculations!D19:D21)-1,"") -> 0.1399676111 | O21: =+IF(SUM($C19:$C21)=3,PRODUCT(Calculations!E19:E21)-1,"") -> 0.121918728 | P21: =+IF(SUM($C19:$C21)=3,PRODUCT(Calculations!F19:F21)-1,"") -> 0.1375963984 | Q21: =+IF(SUM($C19:$C21)=3,PRODUCT(Calculations!G19:G21)-1,"") -> 0.1066177145 | R21: =+IF(SUM($C19:$C21)=3,PRODUCT(Calculations!H19:H21)-1,"") -> 0.07554349709 | S21: =+IF(SUM($C19:$C21)=3,PRODUCT(Calculations!I19:I21)-1,"") -> 0.04440065358 | T21: =+IF(SUM($C19:$C21)=3,PRODUCT(Calculations!J19:J21)-1,"") -> 0.1569295597 | X21: =+IF('Performance Table'!$J20+'Performance Table'!$J21=2,X20*Calculations!D21,IF('Performance Table'!$J21=1,10000*D21,"--")) -> 28033.31438 | Y21: =+IF('Performance Table'!$J20+'Performance Table'!$J21=2,Y20*Calculations!E21,IF('Performance Table'!$J21=1,10000*E21,"--")) -> 30413.87938 | Z21: =+IF('Performance Table'!$J20+'Performance Table'!$J21=2,Z20*Calculations!F21,IF('Performance Table'!$J21=1,10000*F21,"--")) -> 27728.21636 | AA21: =+IF('Performance Table'!$J20+'Performance Table'!$J21=2,AA20*Calculations!G21,IF('Performance Table'!$J21=1,10000*G21,"--")) -> 23576.00304 | AB21: =+IF('Performance Table'!$J20+'Performance Table'!$J21=2,AB20*Calculations!H21,IF('Performance Table'!$J21=1,10000*H21,"--")) -> 19793.04538 | AC21: =+IF('Performance Table'!$J20+'Performance Table'!$J21=2,AC20*Calculations!I21,IF('Performance Table'!$J21=1,10000*I21,"--")) -> 16409.96154 | AD21: =+IF('Performance Table'!$J20+'Performance Table'!$J21=2,AD20*Calculations!J21,IF('Performance Table'!$J21=1,10000*J21,"--")) -> 21335.88515 | AH21: =+IF('Performance Table'!$J20+'Performance Table'!$J21=2,AH20*(1+AG$2),IF('Performance Table'!$J21=1,AG$3*AG$1,"--")) -> 8731.498354 | AI21: =+IF('Performance Table'!$J20+'Performance Table'!$J21=2,(AI20*D21)-$AH21,IF('Performance Table'!$J21=1,($AG$3*D21)-$AH21,"--")) -> 122445.2194 | AJ21: =+IF('Performance Table'!$J20+'Performance Table'!$J21=2,(AJ20*E21)-$AH21,IF('Performance Table'!$J21=1,($AG$3*E21)-$AH21,"--")) -> 148894.7176 | AK21: =+IF('Performance Table'!$J20+'Performance Table'!$J21=2,(AK20*F21)-$AH21,IF('Performance Table'!$J21=1,($AG$3*F21)-$AH21,"--")) -> 120149.2048 | AL21: =+IF('Performance Table'!$J20+'Performance Table'!$J21=2,(AL20*G21)-$AH21,IF('Performance Table'!$J21=1,($AG$3*G21)-$AH21,"--")) -> 91243.32294 | AM21: =+IF('Performance Table'!$J20+'Performance Table'!$J21=2,(AM20*H21)-$AH21,IF('Performance Table'!$J21=1,($AG$3*H21)-$AH21,"--")) -> 65298.97804 | AN21: =+IF('Performance Table'!$J20+'Performance Table'!$J21=2,(AN20*I21)-$AH21,IF('Performance Table'!$J21=1,($AG$3*I21)-$AH21,"--")) -> 42553.91953 | AO21: =+IF('Performance Table'!$J20+'Performance Table'!$J21=2,(AO20*J21)-$AH21,IF('Performance Table'!$J21=1,($AG$3*J21)-$AH21,"--")) -> 58813.03064
A22: ='Performance Table'!I22 -> 2018 | B22: ='Performance Table'!J22 -> 1 | C22: =IF('Performance Table'!J22<0,0,IF('Performance Table'!J22=0,0,IF('Performance Table'!J22=1,1,IF('Performance Table'!J22>1,0)))) -> 1 | D22: =+IF('Performance Table'!$J22=1,'Performance Table'!K22/100+1,"") -> 0.9146496457 | E22: =+IF('Performance Table'!$J22=1,'Performance Table'!L22/100+1,"") -> 0.9136492967 | F22: =+IF('Performance Table'!$J22=1,'Performance Table'!M22/100+1,"") -> 0.9311433176 | G22: =+IF('Performance Table'!$J22=1,'Performance Table'!N22/100+1,"") -> 0.9464744809 | H22: =+IF('Performance Table'!$J22=1,'Performance Table'!O22/100+1,"") -> 0.9618056443 | I22: =+IF('Performance Table'!$J22=1,'Performance Table'!P22/100+1,"") -> 0.9771368076 | J22: =+IF('Performance Table'!$J22=1,'Performance Table'!R22/100+1,"") -> 0.9502879382 | M22: 2018 | N22: =+IF(SUM($C20:$C22)=3,PRODUCT(Calculations!D20:D22)-1,"") -> 0.1218491225 | O22: =+IF(SUM($C20:$C22)=3,PRODUCT(Calculations!E20:E22)-1,"") -> 0.11363937 | P22: =+IF(SUM($C20:$C22)=3,PRODUCT(Calculations!F20:F22)-1,"") -> 0.1277462151 | Q22: =+IF(SUM($C20:$C22)=3,PRODUCT(Calculations!G20:G22)-1,"") -> 0.1030696468 | R22: =+IF(SUM($C20:$C22)=3,PRODUCT(Calculations!H20:H22)-1,"") -> 0.07783433472 | S22: =+IF(SUM($C20:$C22)=3,PRODUCT(Calculations!I20:I22)-1,"") -> 0.05208055422 | T22: =+IF(SUM($C20:$C22)=3,PRODUCT(Calculations!J20:J22)-1,"") -> 0.1107151221 | X22: =+IF('Performance Table'!$J21+'Performance Table'!$J22=2,X21*Calculations!D22,IF('Performance Table'!$J22=1,10000*D22,"--")) -> 25640.66107 | Y22: =+IF('Performance Table'!$J21+'Performance Table'!$J22=2,Y21*Calculations!E22,IF('Performance Table'!$J22=1,10000*E22,"--")) -> 27787.61951 | Z22: =+IF('Performance Table'!$J21+'Performance Table'!$J22=2,Z21*Calculations!F22,IF('Performance Table'!$J22=1,10000*F22,"--")) -> 25818.94337 | AA22: =+IF('Performance Table'!$J21+'Performance Table'!$J22=2,AA21*Calculations!G22,IF('Performance Table'!$J22=1,10000*G22,"--")) -> 22314.08524 | AB22: =+IF('Performance Table'!$J21+'Performance Table'!$J22=2,AB21*Calculations!H22,IF('Performance Table'!$J22=1,10000*H22,"--")) -> 19037.06276 | AC22: =+IF('Performance Table'!$J21+'Performance Table'!$J22=2,AC21*Calculations!I22,IF('Performance Table'!$J22=1,10000*I22,"--")) -> 16034.77743 | AD22: =+IF('Performance Table'!$J21+'Performance Table'!$J22=2,AD21*Calculations!J22,IF('Performance Table'!$J22=1,10000*J22,"--")) -> 20275.2343 | AH22: =+IF('Performance Table'!$J21+'Performance Table'!$J22=2,AH21*(1+AG$2),IF('Performance Table'!$J22=1,AG$3*AG$1,"--")) -> 9168.073271 | AI22: =+IF('Performance Table'!$J21+'Performance Table'!$J22=2,(AI21*D22)-$AH22,IF('Performance Table'!$J22=1,($AG$3*D22)-$AH22,"--")) -> 102826.4033 | AJ22: =+IF('Performance Table'!$J21+'Performance Table'!$J22=2,(AJ21*E22)-$AH22,IF('Performance Table'!$J22=1,($AG$3*E22)-$AH22,"--")) -> 126869.4807 | AK22: =+IF('Performance Table'!$J21+'Performance Table'!$J22=2,(AK21*F22)-$AH22,IF('Performance Table'!$J22=1,($AG$3*F22)-$AH22,"--")) -> 102708.0559 | AL22: =+IF('Performance Table'!$J21+'Performance Table'!$J22=2,(AL21*G22)-$AH22,IF('Performance Table'!$J22=1,($AG$3*G22)-$AH22,"--")) -> 77191.40345 | AM22: =+IF('Performance Table'!$J21+'Performance Table'!$J22=2,(AM21*H22)-$AH22,IF('Performance Table'!$J22=1,($AG$3*H22)-$AH22,"--")) -> 53636.85237 | AN22: =+IF('Performance Table'!$J21+'Performance Table'!$J22=2,(AN21*I22)-$AH22,IF('Performance Table'!$J22=1,($AG$3*I22)-$AH22,"--")) -> 32412.92781 | AO22: =+IF('Performance Table'!$J21+'Performance Table'!$J22=2,(AO21*J22)-$AH22,IF('Performance Table'!$J22=1,($AG$3*J22)-$AH22,"--")) -> 46721.24035
A23: ='Performance Table'!I23 -> 2019 | B23: ='Performance Table'!J23 -> 1 | C23: =IF('Performance Table'!J23<0,0,IF('Performance Table'!J23=0,0,IF('Performance Table'!J23=1,1,IF('Performance Table'!J23>1,0)))) -> 1 | D23: =+IF('Performance Table'!$J23=1,'Performance Table'!K23/100+1,"") -> 1.155735647 | E23: =+IF('Performance Table'!$J23=1,'Performance Table'!L23/100+1,"") -> 1.151642355 | F23: =+IF('Performance Table'!$J23=1,'Performance Table'!M23/100+1,"") -> 1.148855454 | G23: =+IF('Performance Table'!$J23=1,'Performance Table'!N23/100+1,"") -> 1.121361254 | H23: =+IF('Performance Table'!$J23=1,'Performance Table'!O23/100+1,"") -> 1.093867055 | I23: =+IF('Performance Table'!$J23=1,'Performance Table'!P23/100+1,"") -> 1.066372856 | J23: =+IF('Performance Table'!$J23=1,'Performance Table'!R23/100+1,"") -> 1.160863553 | M23: 2019 | N23: =+IF(SUM($C21:$C23)=3,PRODUCT(Calculations!D21:D23)-1,"") -> 0.1732866147 | O23: =+IF(SUM($C21:$C23)=3,PRODUCT(Calculations!E21:E23)-1,"") -> 0.1854628467 | P23: =+IF(SUM($C21:$C23)=3,PRODUCT(Calculations!F21:F23)-1,"") -> 0.1870852242 | Q23: =+IF(SUM($C21:$C23)=3,PRODUCT(Calculations!G21:G23)-1,"") -> 0.1540687369 | R23: =+IF(SUM($C21:$C23)=3,PRODUCT(Calculations!H21:H23)-1,"") -> 0.120529693 | S23: =+IF(SUM($C21:$C23)=3,PRODUCT(Calculations!I21:I23)-1,"") -> 0.08652453204 | T23: =+IF(SUM($C21:$C23)=3,PRODUCT(Calculations!J21:J23)-1,"") -> 0.2251305099 | X23: =+IF('Performance Table'!$J22+'Performance Table'!$J23=2,X22*Calculations!D23,IF('Performance Table'!$J23=1,10000*D23,"--")) -> 29633.82601 | Y23: =+IF('Performance Table'!$J22+'Performance Table'!$J23=2,Y22*Calculations!E23,IF('Performance Table'!$J23=1,10000*E23,"--")) -> 32001.39956 | Z23: =+IF('Performance Table'!$J22+'Performance Table'!$J23=2,Z22*Calculations!F23,IF('Performance Table'!$J23=1,10000*F23,"--")) -> 29662.2339 | AA23: =+IF('Performance Table'!$J22+'Performance Table'!$J23=2,AA22*Calculations!G23,IF('Performance Table'!$J23=1,10000*G23,"--")) -> 25022.15061 | AB23: =+IF('Performance Table'!$J22+'Performance Table'!$J23=2,AB22*Calculations!H23,IF('Performance Table'!$J23=1,10000*H23,"--")) -> 20824.01578 | AC23: =+IF('Performance Table'!$J22+'Performance Table'!$J23=2,AC22*Calculations!I23,IF('Performance Table'!$J23=1,10000*I23,"--")) -> 17099.05141 | AD23: =+IF('Performance Table'!$J22+'Performance Table'!$J23=2,AD22*Calculations!J23,IF('Performance Table'!$J23=1,10000*J23,"--")) -> 23536.78052 | AH23: =+IF('Performance Table'!$J22+'Performance Table'!$J23=2,AH22*(1+AG$2),IF('Performance Table'!$J23=1,AG$3*AG$1,"--")) -> 9626.476935 | AI23: =+IF('Performance Table'!$J22+'Performance Table'!$J23=2,(AI22*D23)-$AH23,IF('Performance Table'!$J23=1,($AG$3*D23)-$AH23,"--")) -> 109213.6628 | AJ23: =+IF('Performance Table'!$J22+'Performance Table'!$J23=2,(AJ22*E23)-$AH23,IF('Performance Table'!$J23=1,($AG$3*E23)-$AH23,"--")) -> 136481.7906 | AK23: =+IF('Performance Table'!$J22+'Performance Table'!$J23=2,(AK22*F23)-$AH23,IF('Performance Table'!$J23=1,($AG$3*F23)-$AH23,"--")) -> 108370.2332 | AL23: =+IF('Performance Table'!$J22+'Performance Table'!$J23=2,(AL22*G23)-$AH23,IF('Performance Table'!$J23=1,($AG$3*G23)-$AH23,"--")) -> 76932.97207 | AM23: =+IF('Performance Table'!$J22+'Performance Table'!$J23=2,(AM22*H23)-$AH23,IF('Performance Table'!$J23=1,($AG$3*H23)-$AH23,"--")) -> 49045.10882 | AN23: =+IF('Performance Table'!$J22+'Performance Table'!$J23=2,(AN22*I23)-$AH23,IF('Performance Table'!$J23=1,($AG$3*I23)-$AH23,"--")) -> 24937.78946 | AO23: =+IF('Performance Table'!$J22+'Performance Table'!$J23=2,(AO22*J23)-$AH23,IF('Performance Table'!$J23=1,($AG$3*J23)-$AH23,"--")) -> 44610.50812
A24: ='Performance Table'!I24 -> 2020 | B24: ='Performance Table'!J24 -> 1 | C24: =IF('Performance Table'!J24<0,0,IF('Performance Table'!J24=0,0,IF('Performance Table'!J24=1,1,IF('Performance Table'!J24>1,0)))) -> 1 | D24: =+IF('Performance Table'!$J24=1,'Performance Table'!K24/100+1,"") -> 1.042685348 | E24: =+IF('Performance Table'!$J24=1,'Performance Table'!L24/100+1,"") -> 1.128175962 | F24: =+IF('Performance Table'!$J24=1,'Performance Table'!M24/100+1,"") -> 1.047793258 | G24: =+IF('Performance Table'!$J24=1,'Performance Table'!N24/100+1,"") -> 1.037898457 | H24: =+IF('Performance Table'!$J24=1,'Performance Table'!O24/100+1,"") -> 1.028003655 | I24: =+IF('Performance Table'!$J24=1,'Performance Table'!P24/100+1,"") -> 1.018108854 | J24: =+IF('Performance Table'!$J24=1,'Performance Table'!R24/100+1,"") -> 1.094508796 | M24: 2020 | N24: =+IF(SUM($C22:$C24)=3,PRODUCT(Calculations!D22:D24)-1,"") -> 0.1022155911 | O24: =+IF(SUM($C22:$C24)=3,PRODUCT(Calculations!E22:E24)-1,"") -> 0.1870636199 | P24: =+IF(SUM($C22:$C24)=3,PRODUCT(Calculations!F22:F24)-1,"") -> 0.1208758727 | Q24: =+IF(SUM($C22:$C24)=3,PRODUCT(Calculations!G22:G24)-1,"") -> 0.1015629523 | R24: =+IF(SUM($C22:$C24)=3,PRODUCT(Calculations!H22:H24)-1,"") -> 0.08154980374 | S24: =+IF(SUM($C22:$C24)=3,PRODUCT(Calculations!I22:I24)-1,"") -> 0.06086145206 | T24: =+IF(SUM($C22:$C24)=3,PRODUCT(Calculations!J22:J24)-1,"") -> 0.2074124481 | X24: =+IF('Performance Table'!$J23+'Performance Table'!$J24=2,X23*Calculations!D24,IF('Performance Table'!$J24=1,10000*D24,"--")) -> 30898.75618 | Y24: =+IF('Performance Table'!$J23+'Performance Table'!$J24=2,Y23*Calculations!E24,IF('Performance Table'!$J24=1,10000*E24,"--")) -> 36103.20975 | Z24: =+IF('Performance Table'!$J23+'Performance Table'!$J24=2,Z23*Calculations!F24,IF('Performance Table'!$J24=1,10000*F24,"--")) -> 31079.88871 | AA24: =+IF('Performance Table'!$J23+'Performance Table'!$J24=2,AA23*Calculations!G24,IF('Performance Table'!$J24=1,10000*G24,"--")) -> 25970.45151 | AB24: =+IF('Performance Table'!$J23+'Performance Table'!$J24=2,AB23*Calculations!H24,IF('Performance Table'!$J24=1,10000*H24,"--")) -> 21407.16435 | AC24: =+IF('Performance Table'!$J23+'Performance Table'!$J24=2,AC23*Calculations!I24,IF('Performance Table'!$J24=1,10000*I24,"--")) -> 17408.69563 | AD24: =+IF('Performance Table'!$J23+'Performance Table'!$J24=2,AD23*Calculations!J24,IF('Performance Table'!$J24=1,10000*J24,"--")) -> 25761.21332 | AH24: =+IF('Performance Table'!$J23+'Performance Table'!$J24=2,AH23*(1+AG$2),IF('Performance Table'!$J24=1,AG$3*AG$1,"--")) -> 10107.80078 | AI24: =+IF('Performance Table'!$J23+'Performance Table'!$J24=2,(AI23*D24)-$AH24,IF('Performance Table'!$J24=1,($AG$3*D24)-$AH24,"--")) -> 103767.6852 | AJ24: =+IF('Performance Table'!$J23+'Performance Table'!$J24=2,(AJ23*E24)-$AH24,IF('Performance Table'!$J24=1,($AG$3*E24)-$AH24,"--")) -> 143867.6747 | AK24: =+IF('Performance Table'!$J23+'Performance Table'!$J24=2,(AK23*F24)-$AH24,IF('Performance Table'!$J24=1,($AG$3*F24)-$AH24,"--")) -> 103441.799 | AL24: =+IF('Performance Table'!$J23+'Performance Table'!$J24=2,(AL23*G24)-$AH24,IF('Performance Table'!$J24=1,($AG$3*G24)-$AH24,"--")) -> 69740.81221 | AM24: =+IF('Performance Table'!$J23+'Performance Table'!$J24=2,(AM23*H24)-$AH24,IF('Performance Table'!$J24=1,($AG$3*H24)-$AH24,"--")) -> 40310.75036 | AN24: =+IF('Performance Table'!$J23+'Performance Table'!$J24=2,(AN23*I24)-$AH24,IF('Performance Table'!$J24=1,($AG$3*I24)-$AH24,"--")) -> 15281.58346 | AO24: =+IF('Performance Table'!$J23+'Performance Table'!$J24=2,(AO23*J24)-$AH24,IF('Performance Table'!$J24=1,($AG$3*J24)-$AH24,"--")) -> 38718.79276
A25: ='Performance Table'!I25 -> 2021 | B25: ='Performance Table'!J25 -> 1 | C25: =IF('Performance Table'!J25<0,0,IF('Performance Table'!J25=0,0,IF('Performance Table'!J25=1,1,IF('Performance Table'!J25>1,0)))) -> 1 | D25: =+IF('Performance Table'!$J25=1,'Performance Table'!K25/100+1,"") -> 1.158470115 | E25: =+IF('Performance Table'!$J25=1,'Performance Table'!L25/100+1,"") -> 1.042780717 | F25: =+IF('Performance Table'!$J25=1,'Performance Table'!M25/100+1,"") -> 1.054757055 | G25: =+IF('Performance Table'!$J25=1,'Performance Table'!N25/100+1,"") -> 1.041582546 | H25: =+IF('Performance Table'!$J25=1,'Performance Table'!O25/100+1,"") -> 1.028408036 | I25: =+IF('Performance Table'!$J25=1,'Performance Table'!P25/100+1,"") -> 1.015233527 | J25: =+IF('Performance Table'!$J25=1,'Performance Table'!R25/100+1,"") -> 1.088153848 | M25: 2021 | N25: =+IF(SUM($C23:$C25)=3,PRODUCT(Calculations!D23:D25)-1,"") -> 0.3960359889 | O25: =+IF(SUM($C23:$C25)=3,PRODUCT(Calculations!E23:E25)-1,"") -> 0.3548382916 | P25: =+IF(SUM($C23:$C25)=3,PRODUCT(Calculations!F23:F25)-1,"") -> 0.2696775162 | Q25: =+IF(SUM($C23:$C25)=3,PRODUCT(Calculations!G23:G25)-1,"") -> 0.2122553405 | R25: =+IF(SUM($C23:$C25)=3,PRODUCT(Calculations!H23:H25)-1,"") -> 0.156444149 | S25: =+IF(SUM($C23:$C25)=3,PRODUCT(Calculations!I23:I25)-1,"") -> 0.102222437 | T25: =+IF(SUM($C23:$C25)=3,PRODUCT(Calculations!J23:J25)-1,"") -> 0.382581477 | X25: =+IF('Performance Table'!$J24+'Performance Table'!$J25=2,X24*Calculations!D25,IF('Performance Table'!$J25=1,10000*D25,"--")) -> 35795.28563 | Y25: =+IF('Performance Table'!$J24+'Performance Table'!$J25=2,Y24*Calculations!E25,IF('Performance Table'!$J25=1,10000*E25,"--")) -> 37647.73094 | Z25: =+IF('Performance Table'!$J24+'Performance Table'!$J25=2,Z24*Calculations!F25,IF('Performance Table'!$J25=1,10000*F25,"--")) -> 32781.73189 | AA25: =+IF('Performance Table'!$J24+'Performance Table'!$J25=2,AA24*Calculations!G25,IF('Performance Table'!$J25=1,10000*G25,"--")) -> 27050.369 | AB25: =+IF('Performance Table'!$J24+'Performance Table'!$J25=2,AB24*Calculations!H25,IF('Performance Table'!$J25=1,10000*H25,"--")) -> 22015.29985 | AC25: =+IF('Performance Table'!$J24+'Performance Table'!$J25=2,AC24*Calculations!I25,IF('Performance Table'!$J25=1,10000*I25,"--")) -> 17673.89146 | AD25: =+IF('Performance Table'!$J24+'Performance Table'!$J25=2,AD24*Calculations!J25,IF('Performance Table'!$J25=1,10000*J25,"--")) -> 28032.16339 | AH25: =+IF('Performance Table'!$J24+'Performance Table'!$J25=2,AH24*(1+AG$2),IF('Performance Table'!$J25=1,AG$3*AG$1,"--")) -> 10613.19082 | AI25: =+IF('Performance Table'!$J24+'Performance Table'!$J25=2,(AI24*D25)-$AH25,IF('Performance Table'!$J25=1,($AG$3*D25)-$AH25,"--")) -> 109598.5714 | AJ25: =+IF('Performance Table'!$J24+'Performance Table'!$J25=2,(AJ24*E25)-$AH25,IF('Performance Table'!$J25=1,($AG$3*E25)-$AH25,"--")) -> 139409.2461 | AK25: =+IF('Performance Table'!$J24+'Performance Table'!$J25=2,(AK24*F25)-$AH25,IF('Performance Table'!$J25=1,($AG$3*F25)-$AH25,"--")) -> 98492.77646 | AL25: =+IF('Performance Table'!$J24+'Performance Table'!$J25=2,(AL24*G25)-$AH25,IF('Performance Table'!$J25=1,($AG$3*G25)-$AH25,"--")) -> 62027.6219 | AM25: =+IF('Performance Table'!$J24+'Performance Table'!$J25=2,(AM24*H25)-$AH25,IF('Performance Table'!$J25=1,($AG$3*H25)-$AH25,"--")) -> 30842.7088 | AN25: =+IF('Performance Table'!$J24+'Performance Table'!$J25=2,(AN24*I25)-$AH25,IF('Performance Table'!$J25=1,($AG$3*I25)-$AH25,"--")) -> 4901.185052 | AO25: =+IF('Performance Table'!$J24+'Performance Table'!$J25=2,(AO24*J25)-$AH25,IF('Performance Table'!$J25=1,($AG$3*J25)-$AH25,"--")) -> 31518.81249
A26: ='Performance Table'!I26 -> 2022 | B26: ='Performance Table'!J26 -> 1 | C26: =IF('Performance Table'!J26<0,0,IF('Performance Table'!J26=0,0,IF('Performance Table'!J26=1,1,IF('Performance Table'!J26>1,0)))) -> 1 | D26: =+IF('Performance Table'!$J26=1,'Performance Table'!K26/100+1,"") -> 0.9129187283 | E26: =+IF('Performance Table'!$J26=1,'Performance Table'!L26/100+1,"") -> 0.8039677046 | F26: =+IF('Performance Table'!$J26=1,'Performance Table'!M26/100+1,"") -> 0.8497627277 | G26: =+IF('Performance Table'!$J26=1,'Performance Table'!N26/100+1,"") -> 0.8796957664 | H26: =+IF('Performance Table'!$J26=1,'Performance Table'!O26/100+1,"") -> 0.9096288051 | I26: =+IF('Performance Table'!$J26=1,'Performance Table'!P26/100+1,"") -> 0.9395618438 | J26: =+IF('Performance Table'!$J26=1,'Performance Table'!R26/100+1,"") -> 0.8600918825 | M26: 2022 | N26: =+IF(SUM($C24:$C26)=3,PRODUCT(Calculations!D24:D26)-1,"") -> 0.1027326215 | O26: =+IF(SUM($C24:$C26)=3,PRODUCT(Calculations!E24:E26)-1,"") -> -0.0541801221 | P26: =+IF(SUM($C24:$C26)=3,PRODUCT(Calculations!F24:F26)-1,"") -> -0.06086999365 | Q26: =+IF(SUM($C24:$C26)=3,PRODUCT(Calculations!G24:G26)-1,"") -> -0.04899880694 | R26: =+IF(SUM($C24:$C26)=3,PRODUCT(Calculations!H24:H26)-1,"") -> -0.0383338593 | S26: =+IF(SUM($C24:$C26)=3,PRODUCT(Calculations!I24:I26)-1,"") -> -0.02885173846 | T26: =+IF(SUM($C24:$C26)=3,PRODUCT(Calculations!J24:J26)-1,"") -> 0.02436423516 | X26: =+IF('Performance Table'!$J25+'Performance Table'!$J26=2,X25*Calculations!D26,IF('Performance Table'!$J26=1,10000*D26,"--")) -> 32678.18664 | Y26: =+IF('Performance Table'!$J25+'Performance Table'!$J26=2,Y25*Calculations!E26,IF('Performance Table'!$J26=1,10000*E26,"--")) -> 30267.55983 | Z26: =+IF('Performance Table'!$J25+'Performance Table'!$J26=2,Z25*Calculations!F26,IF('Performance Table'!$J26=1,10000*F26,"--")) -> 27856.69391 | AA26: =+IF('Performance Table'!$J25+'Performance Table'!$J26=2,AA25*Calculations!G26,IF('Performance Table'!$J26=1,10000*G26,"--")) -> 23796.09509 | AB26: =+IF('Performance Table'!$J25+'Performance Table'!$J26=2,AB25*Calculations!H26,IF('Performance Table'!$J26=1,10000*H26,"--")) -> 20025.75089 | AC26: =+IF('Performance Table'!$J25+'Performance Table'!$J26=2,AC25*Calculations!I26,IF('Performance Table'!$J26=1,10000*I26,"--")) -> 16605.71405 | AD26: =+IF('Performance Table'!$J25+'Performance Table'!$J26=2,AD25*Calculations!J26,IF('Performance Table'!$J26=1,10000*J26,"--")) -> 24110.23618 | AH26: =+IF('Performance Table'!$J25+'Performance Table'!$J26=2,AH25*(1+AG$2),IF('Performance Table'!$J26=1,AG$3*AG$1,"--")) -> 11143.85036 | AI26: =+IF('Performance Table'!$J25+'Performance Table'!$J26=2,(AI25*D26)-$AH26,IF('Performance Table'!$J26=1,($AG$3*D26)-$AH26,"--")) -> 88910.73808 | AJ26: =+IF('Performance Table'!$J25+'Performance Table'!$J26=2,(AJ25*E26)-$AH26,IF('Performance Table'!$J26=1,($AG$3*E26)-$AH26,"--")) -> 100936.6812 | AK26: =+IF('Performance Table'!$J25+'Performance Table'!$J26=2,(AK25*F26)-$AH26,IF('Performance Table'!$J26=1,($AG$3*F26)-$AH26,"--")) -> 72551.64003 | AL26: =+IF('Performance Table'!$J25+'Performance Table'!$J26=2,(AL25*G26)-$AH26,IF('Performance Table'!$J26=1,($AG$3*G26)-$AH26,"--")) -> 43421.58603 | AM26: =+IF('Performance Table'!$J25+'Performance Table'!$J26=2,(AM25*H26)-$AH26,IF('Performance Table'!$J26=1,($AG$3*H26)-$AH26,"--")) -> 16911.56599 | AN26: =+IF('Performance Table'!$J25+'Performance Table'!$J26=2,(AN25*I26)-$AH26,IF('Performance Table'!$J26=1,($AG$3*I26)-$AH26,"--")) -> -6538.883897 | AO26: =+IF('Performance Table'!$J25+'Performance Table'!$J26=2,(AO25*J26)-$AH26,IF('Performance Table'!$J26=1,($AG$3*J26)-$AH26,"--")) -> 15965.22441
A27: ='Performance Table'!I27 -> 2023 | B27: ='Performance Table'!J27 -> 1 | C27: =IF('Performance Table'!J27<0,0,IF('Performance Table'!J27=0,0,IF('Performance Table'!J27=1,1,IF('Performance Table'!J27>1,0)))) -> 1 | D27: =+IF('Performance Table'!$J27=1,'Performance Table'!K27/100+1,"") -> 1.082556801 | E27: =+IF('Performance Table'!$J27=1,'Performance Table'!L27/100+1,"") -> 1.108550149 | F27: =+IF('Performance Table'!$J27=1,'Performance Table'!M27/100+1,"") -> 1.071048223 | G27: =+IF('Performance Table'!$J27=1,'Performance Table'!N27/100+1,"") -> 1.064909447 | H27: =+IF('Performance Table'!$J27=1,'Performance Table'!O27/100+1,"") -> 1.058770671 | I27: =+IF('Performance Table'!$J27=1,'Performance Table'!P27/100+1,"") -> 1.052631895 | J27: =+IF('Performance Table'!$J27=1,'Performance Table'!R27/100+1,"") -> 1.126966231 | M27: =+IF(B27=1,A27,IF(B27<>1,"--","--")) -> 2023 | N27: =+IF(SUM($C25:$C27)=3,PRODUCT(Calculations!D25:D27)-1,"") -> 0.1449002344 | O27: =+IF(SUM($C25:$C27)=3,PRODUCT(Calculations!E25:E27)-1,"") -> -0.07063365897 | P27: =+IF(SUM($C25:$C27)=3,PRODUCT(Calculations!F25:F27)-1,"") -> -0.04002672626 | Q27: =+IF(SUM($C25:$C27)=3,PRODUCT(Calculations!G25:G27)-1,"") -> -0.02424929163 | R27: =+IF(SUM($C25:$C27)=3,PRODUCT(Calculations!H25:H27)-1,"") -> -0.009552252473 | S27: =+IF(SUM($C25:$C27)=3,PRODUCT(Calculations!I25:I27)-1,"") -> 0.00407891629 | T27: =+IF(SUM($C25:$C27)=3,PRODUCT(Calculations!J25:J27)-1,"") -> 0.05474154744 | X27: =+IF('Performance Table'!$J26+'Performance Table'!$J27=2,X26*Calculations!D27,IF('Performance Table'!$J27=1,10000*D27,"--")) -> 35375.9932 | Y27: =+IF('Performance Table'!$J26+'Performance Table'!$J27=2,Y26*Calculations!E27,IF('Performance Table'!$J27=1,10000*E27,"--")) -> 33553.10795 | Z27: =+IF('Performance Table'!$J26+'Performance Table'!$J27=2,Z26*Calculations!F27,IF('Performance Table'!$J27=1,10000*F27,"--")) -> 29835.86251 | AA27: =+IF('Performance Table'!$J26+'Performance Table'!$J27=2,AA26*Calculations!G27,IF('Performance Table'!$J27=1,10000*G27,"--")) -> 25340.68646 | AB27: =+IF('Performance Table'!$J26+'Performance Table'!$J27=2,AB26*Calculations!H27,IF('Performance Table'!$J27=1,10000*H27,"--")) -> 21202.67771 | AC27: =+IF('Performance Table'!$J26+'Performance Table'!$J27=2,AC26*Calculations!I27,IF('Performance Table'!$J27=1,10000*I27,"--")) -> 17479.70424 | AD27: =+IF('Performance Table'!$J26+'Performance Table'!$J27=2,AD26*Calculations!J27,IF('Performance Table'!$J27=1,10000*J27,"--")) -> 27171.422 | AH27: =+IF('Performance Table'!$J26+'Performance Table'!$J27=2,AH26*(1+AG$2),IF('Performance Table'!$J27=1,AG$3*AG$1,"--")) -> 11701.04288 | AI27: =+IF('Performance Table'!$J26+'Performance Table'!$J27=2,(AI26*D27)-$AH27,IF('Performance Table'!$J27=1,($AG$3*D27)-$AH27,"--")) -> 84549.88134 | AJ27: =+IF('Performance Table'!$J26+'Performance Table'!$J27=2,(AJ26*E27)-$AH27,IF('Performance Table'!$J27=1,($AG$3*E27)-$AH27,"--")) -> 100192.3301 | AK27: =+IF('Performance Table'!$J26+'Performance Table'!$J27=2,(AK26*F27)-$AH27,IF('Performance Table'!$J27=1,($AG$3*F27)-$AH27,"--")) -> 66005.26225 | AL27: =+IF('Performance Table'!$J26+'Performance Table'!$J27=2,(AL26*G27)-$AH27,IF('Performance Table'!$J27=1,($AG$3*G27)-$AH27,"--")) -> 34539.01428 | AM27: =+IF('Performance Table'!$J26+'Performance Table'!$J27=2,(AM26*H27)-$AH27,IF('Performance Table'!$J27=1,($AG$3*H27)-$AH27,"--")) -> 6204.427189 | AN27: =+IF('Performance Table'!$J26+'Performance Table'!$J27=2,(AN26*I27)-$AH27,IF('Performance Table'!$J27=1,($AG$3*I27)-$AH27,"--")) -> -18584.08063 | AO27: =+IF('Performance Table'!$J26+'Performance Table'!$J27=2,(AO26*J27)-$AH27,IF('Performance Table'!$J27=1,($AG$3*J27)-$AH27,"--")) -> 6291.225902
A28: ='Performance Table'!I28 -> 2024 | B28: ='Performance Table'!J28 -> 1 | C28: =IF('Performance Table'!J28<0,0,IF('Performance Table'!J28=0,0,IF('Performance Table'!J28=1,1,IF('Performance Table'!J28>1,0)))) -> 1 | D28: =+IF('Performance Table'!$J28=1,'Performance Table'!K28/100+1,"") -> 1.05145499 | E28: =+IF('Performance Table'!$J28=1,'Performance Table'!L28/100+1,"") -> 1.082703877 | F28: =+IF('Performance Table'!$J28=1,'Performance Table'!M28/100+1,"") -> 1.081243721 | G28: =+IF('Performance Table'!$J28=1,'Performance Table'!N28/100+1,"") -> 1.073321319 | H28: =+IF('Performance Table'!$J28=1,'Performance Table'!O28/100+1,"") -> 1.065398918 | I28: =+IF('Performance Table'!$J28=1,'Performance Table'!P28/100+1,"") -> 1.057476516 | J28: =+IF('Performance Table'!$J28=1,'Performance Table'!R28/100+1,"") -> 1.08165 | M28: 2024 | N28: =+IF(SUM($C26:$C28)=3,PRODUCT(Calculations!D26:D28)-1,"") -> 0.03913864423 | O28: =+IF(SUM($C26:$C28)=3,PRODUCT(Calculations!E26:E28)-1,"") -> -0.03505260094 | P28: =+IF(SUM($C26:$C28)=3,PRODUCT(Calculations!F26:F28)-1,"") -> -0.01592023587 | Q28: =+IF(SUM($C26:$C28)=3,PRODUCT(Calculations!G26:G28)-1,"") -> 0.005483474888 | R28: =+IF(SUM($C26:$C28)=3,PRODUCT(Calculations!H26:H28)-1,"") -> 0.02607323273 | S28: =+IF(SUM($C26:$C28)=3,PRODUCT(Calculations!I26:I28)-1,"") -> 0.04585777219 | T28: =+IF(SUM($C26:$C28)=3,PRODUCT(Calculations!J26:J28)-1,"") -> 0.04843740368 | X28: =+IF('Performance Table'!$J27+'Performance Table'!$J28=2,X27*Calculations!D28,IF('Performance Table'!$J28=1,10000*D28,"--")) -> 37196.26458 | Y28: =+IF('Performance Table'!$J27+'Performance Table'!$J28=2,Y27*Calculations!E28,IF('Performance Table'!$J28=1,10000*E28,"--")) -> 36328.08005 | Z28: =+IF('Performance Table'!$J27+'Performance Table'!$J28=2,Z27*Calculations!F28,IF('Performance Table'!$J28=1,10000*F28,"--")) -> 32259.83899 | AA28: =+IF('Performance Table'!$J27+'Performance Table'!$J28=2,AA27*Calculations!G28,IF('Performance Table'!$J28=1,10000*G28,"--")) -> 27198.69902 | AB28: =+IF('Performance Table'!$J27+'Performance Table'!$J28=2,AB27*Calculations!H28,IF('Performance Table'!$J28=1,10000*H28,"--")) -> 22589.30988 | AC28: =+IF('Performance Table'!$J27+'Performance Table'!$J28=2,AC27*Calculations!I28,IF('Performance Table'!$J28=1,10000*I28,"--")) -> 18484.37675 | AD28: =+IF('Performance Table'!$J27+'Performance Table'!$J28=2,AD27*Calculations!J28,IF('Performance Table'!$J28=1,10000*J28,"--")) -> 29389.9686 | AH28: =+IF('Performance Table'!$J27+'Performance Table'!$J28=2,AH27*(1+AG$2),IF('Performance Table'!$J28=1,AG$3*AG$1,"--")) -> 12286.09502 | AI28: =+IF('Performance Table'!$J27+'Performance Table'!$J28=2,(AI27*D28)-$AH28,IF('Performance Table'!$J28=1,($AG$3*D28)-$AH28,"--")) -> 76614.29963 | AJ28: =+IF('Performance Table'!$J27+'Performance Table'!$J28=2,(AJ27*E28)-$AH28,IF('Performance Table'!$J28=1,($AG$3*E28)-$AH28,"--")) -> 96192.52922 | AK28: =+IF('Performance Table'!$J27+'Performance Table'!$J28=2,(AK27*F28)-$AH28,IF('Performance Table'!$J28=1,($AG$3*F28)-$AH28,"--")) -> 59081.6803 | AL28: =+IF('Performance Table'!$J27+'Performance Table'!$J28=2,(AL27*G28)-$AH28,IF('Performance Table'!$J28=1,($AG$3*G28)-$AH28,"--")) -> 24785.36535 | AM28: =+IF('Performance Table'!$J27+'Performance Table'!$J28=2,(AM27*H28)-$AH28,IF('Performance Table'!$J28=1,($AG$3*H28)-$AH28,"--")) -> -5675.905011 | AN28: =+IF('Performance Table'!$J27+'Performance Table'!$J28=2,(AN27*I28)-$AH28,IF('Performance Table'!$J28=1,($AG$3*I28)-$AH28,"--")) -> -31938.32386 | AO28: =+IF('Performance Table'!$J27+'Performance Table'!$J28=2,(AO27*J28)-$AH28,IF('Performance Table'!$J28=1,($AG$3*J28)-$AH28,"--")) -> -5481.190526
A29: ='Performance Table'!I29 -> 2025 | B29: ='Performance Table'!J29 -> 1 | C29: =IF('Performance Table'!J29<0,0,IF('Performance Table'!J29=0,0,IF('Performance Table'!J29=1,1,IF('Performance Table'!J29>1,0)))) -> 1 | D29: =+IF('Performance Table'!$J29=1,'Performance Table'!K29/100+1,"") -> 1.121 | E29: =+IF('Performance Table'!$J29=1,'Performance Table'!L29/100+1,"") -> 1.1428 | F29: =+IF('Performance Table'!$J29=1,'Performance Table'!M29/100+1,"") -> 1.1017 | G29: =+IF('Performance Table'!$J29=1,'Performance Table'!N29/100+1,"") -> 1.0879 | H29: =+IF('Performance Table'!$J29=1,'Performance Table'!O29/100+1,"") -> 1.074 | I29: =+IF('Performance Table'!$J29=1,'Performance Table'!P29/100+1,"") -> 1.0601 | J29: =+IF('Performance Table'!$J29=1,'Performance Table'!R29/100+1,"") -> 1.125995 | M29: =+IF(B29=1,A29,IF(B29<>1,"--","--")) -> 2025 | N29: =+IF(SUM($C27:$C29)=3,PRODUCT(Calculations!D27:D29)-1,"") -> 0.2759891808 | O29: =+IF(SUM($C27:$C29)=3,PRODUCT(Calculations!E27:E29)-1,"") -> 0.371624608 | P29: =+IF(SUM($C27:$C29)=3,PRODUCT(Calculations!F27:F29)-1,"") -> 0.2758392911 | Q29: =+IF(SUM($C27:$C29)=3,PRODUCT(Calculations!G27:G29)-1,"") -> 0.2434588344 | R29: =+IF(SUM($C27:$C29)=3,PRODUCT(Calculations!H27:H29)-1,"") -> 0.2114860983 | S29: =+IF(SUM($C27:$C29)=3,PRODUCT(Calculations!I27:I29)-1,"") -> 0.180032833 | T29: =+IF(SUM($C27:$C29)=3,PRODUCT(Calculations!J27:J29)-1,"") -> 0.3725687899 | X29: =+IF('Performance Table'!$J28+'Performance Table'!$J29=2,X28*Calculations!D29,IF('Performance Table'!$J29=1,10000*D29,"--")) -> 41697.01259 | Y29: =+IF('Performance Table'!$J28+'Performance Table'!$J29=2,Y28*Calculations!E29,IF('Performance Table'!$J29=1,10000*E29,"--")) -> 41515.72988 | Z29: =+IF('Performance Table'!$J28+'Performance Table'!$J29=2,Z28*Calculations!F29,IF('Performance Table'!$J29=1,10000*F29,"--")) -> 35540.66461 | AA29: =+IF('Performance Table'!$J28+'Performance Table'!$J29=2,AA28*Calculations!G29,IF('Performance Table'!$J29=1,10000*G29,"--")) -> 29589.46466 | AB29: =+IF('Performance Table'!$J28+'Performance Table'!$J29=2,AB28*Calculations!H29,IF('Performance Table'!$J29=1,10000*H29,"--")) -> 24260.91881 | AC29: =+IF('Performance Table'!$J28+'Performance Table'!$J29=2,AC28*Calculations!I29,IF('Performance Table'!$J29=1,10000*I29,"--")) -> 19595.28779 | AD29: =+IF('Performance Table'!$J28+'Performance Table'!$J29=2,AD28*Calculations!J29,IF('Performance Table'!$J29=1,10000*J29,"--")) -> 33092.9577 | AH29: =+IF('Performance Table'!$J28+'Performance Table'!$J29=2,AH28*(1+AG$2),IF('Performance Table'!$J29=1,AG$3*AG$1,"--")) -> 12900.39977 | AI29: =+IF('Performance Table'!$J28+'Performance Table'!$J29=2,(AI28*D29)-$AH29,IF('Performance Table'!$J29=1,($AG$3*D29)-$AH29,"--")) -> 72984.23011 | AJ29: =+IF('Performance Table'!$J28+'Performance Table'!$J29=2,(AJ28*E29)-$AH29,IF('Performance Table'!$J29=1,($AG$3*E29)-$AH29,"--")) -> 97028.42262 | AK29: =+IF('Performance Table'!$J28+'Performance Table'!$J29=2,(AK28*F29)-$AH29,IF('Performance Table'!$J29=1,($AG$3*F29)-$AH29,"--")) -> 52189.88741 | AL29: =+IF('Performance Table'!$J28+'Performance Table'!$J29=2,(AL28*G29)-$AH29,IF('Performance Table'!$J29=1,($AG$3*G29)-$AH29,"--")) -> 14063.59919 | AM29: =+IF('Performance Table'!$J28+'Performance Table'!$J29=2,(AM28*H29)-$AH29,IF('Performance Table'!$J29=1,($AG$3*H29)-$AH29,"--")) -> -18996.32176 | AN29: =+IF('Performance Table'!$J28+'Performance Table'!$J29=2,(AN28*I29)-$AH29,IF('Performance Table'!$J29=1,($AG$3*I29)-$AH29,"--")) -> -46758.2169 | AO29: =+IF('Performance Table'!$J28+'Performance Table'!$J29=2,(AO28*J29)-$AH29,IF('Performance Table'!$J29=1,($AG$3*J29)-$AH29,"--")) -> -19072.1929
C31: =+SUM(C5:C29) -> 25 | W31: Ending Balance | X31: =+INDEX(X5:X29,MATCH(9.99999E+307,X5:X29)) -> 41697.01259 | Y31: =+INDEX(Y5:Y29,MATCH(9.99999E+307,Y5:Y29)) -> 41515.72988 | Z31: =+INDEX(Z5:Z29,MATCH(9.99999E+307,Z5:Z29)) -> 35540.66461 | AA31: =+INDEX(AA5:AA29,MATCH(9.99999E+307,AA5:AA29)) -> 29589.46466 | AB31: =+INDEX(AB5:AB29,MATCH(9.99999E+307,AB5:AB29)) -> 24260.91881 | AC31: 19595.28779 | AD31: =+INDEX(AD5:AD29,MATCH(9.99999E+307,AD5:AD29)) -> 33092.9577 | AH31: Ending Balance | AI31: =+INDEX(AI5:AI29,MATCH(9.99999E+307,AI5:AI29)) -> 72984.23011 | AJ31: =+INDEX(AJ5:AJ29,MATCH(9.99999E+307,AJ5:AJ29)) -> 97028.42262 | AK31: 52189.88741 | AL31: 14063.59919 | AM31: =+INDEX(AM5:AM29,MATCH(9.99999E+307,AM5:AM29)) -> -18996.32176 | AN31: -46758.2169 | AO31: =+INDEX(AO5:AO29,MATCH(9.99999E+307,AO5:AO29)) -> -19072.1929
A32: Average Annual Return | D32: =+GEOMEAN(D5:D29)-1 -> 0.05877626657 | E32: =+GEOMEAN(E5:E29)-1 -> 0.05859175501 | F32: =+GEOMEAN(F5:F29)-1 -> 0.05203217369 | G32: =+GEOMEAN(G5:G29)-1 -> 0.04434858901 | H32: 0.03608715561 | I32: 0.02727345469 | J32: =+GEOMEAN(J5:J29)-1 -> 0.04903365972 | L32: MIN | M32: =+MIN(M5:M29) -> 2001
A33: Standard Deviation | D33: =+STDEV(D5:D29) -> 0.1161203479 | E33: =+STDEV(E5:E29) -> 0.1350685429 | F33: =+STDEV(F5:F29) -> 0.1154579031 | G33: 0.09244550324 | H33: 0.06969050655 | I33: 0.0475675744 | J33: =+STDEV(J5:J29) -> 0.09185651415 | L33: MAX | M33: =+MAX(M5:M29) -> 2025 | AH33: Zero checker | AI33: =+IF(AI31<0,0,AI31) -> 72984.23011 | AJ33: =+IF(AJ31<0,0,AJ31) -> 97028.42262 | AK33: =+IF(AK31<0,0,AK31) -> 52189.88741 | AL33: =+IF(AL31<0,0,AL31) -> 14063.59919 | AM33: =+IF(AM31<0,0,AM31) -> 0 | AN33: 0 | AO33: =+IF(AO31<0,0,AO31) -> 0
A35: Growth of $10,000 | D35: =+FV(D32,D41,,-10000) -> 41697.01259 | E35: =+FV(E32,E41,,-10000) -> 41515.72988 | F35: =+FV(F32,F41,,-10000) -> 35540.66461 | G35: =+FV(G32,G41,,-10000) -> 29589.46466 | H35: 24260.91881 | I35: 19595.28779 | J35: =+FV(J32,J41,,-10000) -> 33092.9577 | AH35: =A5 -> 2001 | AI35: =+IF(AI5>0,AI5,0) -> 92909.84919 | AJ35: =+IF(AJ5>0,AJ5,0) -> 97977.69042 | AK35: 93058.72582 | AL35: 94279.92821 | AM35: =+IF(AM5>0,AM5,0) -> 95501.1306 | AN35: 96722.33299 | AO35: 92523.38497
AH36: =+AH35+1 -> 2002 | AI36: =+IF(AI6>0,AI6,0) -> 87258.45968 | AJ36: =+IF(AJ6>0,AJ6,0) -> 94933.63323 | AK36: 87336.09645 | AL36: 88968.44785 | AM36: 90611.96807 | AN36: 92266.6571 | AO36: 81721.91248
A37: Worst 3-Year Return (%) | D37: =+N37 -> -0.06497604993 | E37: =+O37 -> -0.08120244522 | F37: =+P37 -> -0.06946024066 | G37: =+Q37 -> -0.04899880694 | H37: -0.0383338593 | I37: -0.02885173846 | J37: =+T37 -> -0.04589097638 | N37: =+MIN(N5:N29) -> -0.06497604993 | O37: =+MIN(O5:O29) -> -0.08120244522 | P37: =+MIN(P5:P29) -> -0.06946024066 | Q37: =+MIN(Q5:Q29) -> -0.04899880694 | R37: -0.0383338593 | S37: -0.02885173846 | T37: -0.04589097638 | AH37: 2003 | AI37: =+IF(AI7>0,AI7,0) -> 105620.3778 | AJ37: 116930.0603 | AK37: 105592.1759 | AL37: 103011.6547 | AM37: 100273.8997 | AN37: 97377.16479 | AO37: 92244.68855
AH38: 2004 | AI38: =+IF(AI8>0,AI8,0) -> 118899.9092 | AJ38: 134274.8342 | AK38: 118705.8776 | AL38: 112251.836 | AM38: 105796.9826 | AN38: 99355.20416 | AO38: 95284.13138
AH39: 2005 | AI39: =+IF(AI9>0,AI9,0) -> 127694.2783 | AJ39: 145400.7799 | AK39: 127309.3226 | AL39: 118027.466 | AM39: 108985.7245 | AN39: 100198.828 | AO39: 94267.17157
AH40: 2006 | AI40: =+IF(AI10>0,AI10,0) -> 140800.1484 | AJ40: 162071.948 | AK40: 139982.7731 | AL40: 127024.8229 | AM40: 114705.1532 | AN40: 103025.1349 | AO40: 99495.83593
A41: Count | D41: =+COUNT(D5:D29) -> 25 | E41: =+COUNT(E5:E29) -> 25 | F41: 25 | G41: 25 | H41: 25 | I41: 25 | J41: =+COUNT(J5:J29) -> 25 | AH41: 2007 | AI41: =+IF(AI11>0,AI11,0) -> 151377.0407 | AJ41: 177421.9814 | AK41: 149439.5094 | AL41: 133473.2486 | AM41: 118530.3084 | AN41: 104587.4789 | AO41: 99093.64496
AH42: 2008 | AI42: =+IF(AI12>0,AI12,0) -> 105650.6975 | AJ42: 120087.6791 | AK42: 104711.6851 | AL42: 100380.5755 | AM42: 95135.19012 | AN42: 89126.03346 | AO42: 75532.77199
D43: Active 7Twelve | E43: Active 7Twelve | F43: Passive 7Twelve | J43: =+J3 -> Your Custom Portfolio | AH43: 2009 | AI43: =+IF(AI13>0,AI13,0) -> 125777.1572 | AJ43: 151831.7145 | AK43: 124607.0737 | AL43: 114166.9314 | AM43: 103114.1035 | AN43: 91751.26767 | AO43: 81102.37813
A44: Risk | D44: =+D37 -> -0.06497604993 | E44: =+E37 -> -0.08120244522 | F44: -0.06946024066 | G44: -0.04899880694 | H44: =+H37 -> -0.0383338593 | I44: -0.02885173846 | J44: =+J37 -> -0.04589097638 | AH44: 2010 | AI44: =+IF(AI14>0,AI14,0) -> 136441.6712 | AJ44: 166150.467 | AK44: 135110.8557 | AL44: 119994.522 | AM44: 104817.7073 | AN44: 89950.365 | AO44: 82134.60984
A45: Return | D45: =+D32 -> 0.05877626657 | E45: =+E32 -> 0.05859175501 | F45: 0.05203217369 | G45: 0.04434858901 | H45: =+H32 -> 0.03608715561 | I45: 0.02727345469 | J45: =+J32 -> 0.04903365972 | AH45: 2011 | AI45: =+IF(AI15>0,AI15,0) -> 127512.681 | AJ45: =+IF(AJ15>0,AJ15,0) -> 147486.2237 | AK45: 125896.4765 | AL45: 111332.1991 | AM45: 96645.38092 | AN45: 82200.52073 | AO45: 75653.32646
AH46: 2012 | AI46: =+IF(AI16>0,AI16,0) -> 133130.5765 | AJ46: 157487.1596 | AK46: 131190.3306 | AL46: 112861.7908 | AM46: 95021.66267 | AN46: 78054.18952 | AO46: 75410.03721
AH47: 2013 | AI47: =+IF(AI17>0,AI17,0) -> 138545.5506 | AJ47: 166571.7651 | AK47: 135353.8214 | AL47: 113266.3138 | AM47: 92396.65601 | AN47: 73111.90409 | AO47: 78555.10294
AH48: 2014 | AI48: =+IF(AI18>0,AI18,0) -> 131688.2077 | AJ48: 157452.0817 | AK48: 129835.5366 | AL48: 106854.5414 | AM48: 85317.13526 | AN48: 65572.22354 | AO48: 74366.18845
AH49: 2015 | AI49: =+IF(AI19>0,AI19,0) -> 114474.1577 | AJ49: 137005.7554 | AK49: 114031.7152 | AL49: 93540.67531 | AM49: 73964.36805 | AN49: 55685.59114 | AO49: 65689.96084
AH50: 2016 | AI50: =+IF(AI20>0,AI20,0) -> 118185.9698 | AJ50: 139906.4238 | AK50: 116141.6305 | AL50: 91941.88749 | AM50: 69508.6796 | AN50: 49183.43047 | AO50: 60819.69179
AH51: 2017 | AI51: =+IF(AI21>0,AI21,0) -> 122445.2194 | AJ51: 148894.7176 | AK51: 120149.2048 | AL51: 91243.32294 | AM51: 65298.97804 | AN51: 42553.91953 | AO51: 58813.03064
AH52: 2018 | AI52: =+IF(AI22>0,AI22,0) -> 102826.4033 | AJ52: 126869.4807 | AK52: 102708.0559 | AL52: 77191.40345 | AM52: 53636.85237 | AN52: 32412.92781 | AO52: 46721.24035
AH53: 2019 | AI53: =+IF(AI23>0,AI23,0) -> 109213.6628 | AJ53: 136481.7906 | AK53: 108370.2332 | AL53: 76932.97207 | AM53: 49045.10882 | AN53: 24937.78946 | AO53: 44610.50812
AH54: 2020 | AI54: =+IF(AI24>0,AI24,0) -> 103767.6852 | AJ54: 143867.6747 | AK54: =+IF(AK24>0,AK24,0) -> 103441.799 | AL54: 69740.81221 | AM54: 40310.75036 | AN54: 15281.58346 | AO54: 38718.79276
AH55: 2021 | AI55: 109598.5714 | AJ55: 139409.2461 | AK55: 98492.77646 | AL55: 62027.6219 | AM55: 30842.7088 | AN55: 4901.185052 | AO55: 31518.81249
AH56: 2022 | AI56: 88910.73808 | AJ56: 100936.6812 | AK56: =+IF(AK26>0,AK26,0) -> 72551.64003 | AL56: 43421.58603 | AM56: 16911.56599 | AN56: 0 | AO56: 15965.22441
AH57: 2023 | AI57: 84549.88134 | AJ57: 100192.3301 | AK57: =+IF(AK27>0,AK27,0) -> 66005.26225 | AL57: 34539.01428 | AM57: 6204.427189 | AN57: 0 | AO57: 6291.225902
AH58: 2024 | AI58: =+IF(AI28>0,AI28,0) -> 76614.29963 | AJ58: =+IF(AJ28>0,AJ28,0) -> 96192.52922 | AK58: =+IF(AK28>0,AK28,0) -> 59081.6803 | AL58: 24785.36535 | AM58: 0 | AN58: 0 | AO58: 0
AH59: 2025 | AI59: =+IF(AI29>0,AI29,0) -> 72984.23011 | AJ59: =+IF(AJ29>0,AJ29,0) -> 97028.42262 | AK59: =+IF(AK29>0,AK29,0) -> 52189.88741 | AL59: 14063.59919 | AM59: =+IF(AM29>0,AM29,0) -> 0 | AN59: =+IF(AN29>0,AN29,0) -> 0 | AO59: 0

Sheet Raw data (hidden)
D2: Annual % Returns (with Annual Rebalancing)
C3: ='Performance Table'!K4 -> Index-based 7Twelve Portfolio | D3: ='Performance Table'!L4 -> Active 7Twelve Portfolio | E3: ='Performance Table'!M4 -> Passive 7Twelve Portfolio | F3: ='Performance Table'!N4 -> Passive 7Twelve 20% Extra Cash | G3: ='Performance Table'!O4 -> Passive 7Twelve 40% Extra Cash | H3: ='Performance Table'!P4 -> Passive 7Twelve 60% Extra Cash | I3: ='Performance Table'!R4 -> Your Custom Portfolio | L3: ='Performance Table'!C4 -> Large US Stock | M3: ='Performance Table'!D4 -> Small US Stock | N3: ='Performance Table'!E4 -> Non-US Stock | O3: ='Performance Table'!F4 -> Bonds | P3: ='Performance Table'!G4 -> Cash
A4: =+A33 -> 2001 | C4: =+C33-C$30 -> -3.090150812 | D4: =+D33-D$30 -> 1.977690421 | E4: =+E33-E$30 -> -2.941274182 | F4: -1.720071791 | G4: -0.4988694005 | H4: 0.7223329904 | I4: =SUMPRODUCT('Performance Table'!C$3:G$3,'Performance Table'!C5:G5)-H$30 -> -3.476615028
A5: 2002 | C5: =+C34-C$30 -> -1.562148173 | D5: =+D34-D$30 -> 1.179802055 | E5: =+E34-E$30 -> -1.636202685 | F5: -1.178915149 | G5: -0.7216276128 | H5: -0.2643400766 | I5: =SUMPRODUCT('Performance Table'!C$3:G$3,'Performance Table'!C6:G6)-H$30 -> -7.134923237
A6: 2003 | C6: =+C35-C$30 -> 26.09708925 | D6: =+D35-D$30 -> 27.81567103 | E6: 25.95270497 | F6: 20.74129344 | G6: 15.52988191 | H6: 10.31847039 | I6: =SUMPRODUCT('Performance Table'!C$3:G$3,'Performance Table'!C7:G7)-H$30 -> 18.27267084
A7: 2004 | C7: =+C36-C$30 -> 16.95698485 | D7: =+D36-D$30 -> 18.79351968 | E7: 16.80446636 | F7: 13.46515727 | G7: 10.12584819 | H7: 6.786539103 | I7: =SUMPRODUCT('Performance Table'!C$3:G$3,'Performance Table'!C8:G8)-H$30 -> 8.314779914
A8: =+A37 -> 2005 | C8: =+C37-C$30 -> 11.48562195 | D8: =+D37-D$30 -> 11.9069003 | E8: 11.34355801 | F8: 9.476597806 | G8: 7.609637601 | H8: 5.742677397 | I8: =SUMPRODUCT('Performance Table'!C$3:G$3,'Performance Table'!C9:G9)-H$30 -> 4.035367833
A9: =+A8+1 -> 2006 | C9: =+C38-C$30 -> 14.26140351 | D9: =+D38-D$30 -> 14.97673833 | E9: 13.96486633 | F9: 11.94847572 | G9: 9.932085108 | H9: 7.915694497 | I9: =SUMPRODUCT('Performance Table'!C$3:G$3,'Performance Table'!C10:G10)-H$30 -> 10.96223684
A10: 2007 | C10: =+C39-C$30 -> 11.31907533 | D10: =+D39-D$30 -> 12.77853217 | E10: 10.58495875 | F10: 9.296457174 | G10: 8.007955602 | H10: 6.71945403 | I10: =SUMPRODUCT('Performance Table'!C$3:G$3,'Performance Table'!C11:G11)-H$30 -> 4.983315683
A11: 2008 | C11: =+C40-C$30 -> -26.48878673 | D11: =+D40-D$30 -> -29.14289434 | E11: -26.16404638 | F11: -20.57661121 | G11: -14.98917603 | H11: -9.401740857 | I11: =SUMPRODUCT('Performance Table'!C$3:G$3,'Performance Table'!C12:G12)-H$30 -> -18.09648973
A12: 2009 | C12: =+C41-C$30 -> 24.64373834 | D12: =+D41-D$30 -> 31.3553042 | E12: 24.64405985 | F12: 19.62150302 | G12: =+G41-G$30 -> 14.59894619 | H12: =+H41-H$30 -> 9.576389354 | I12: =SUMPRODUCT('Performance Table'!C$3:G$3,'Performance Table'!C13:G13)-H$30 -> 15.19794338
A13: 2010 | C13: =+C42-C$30 -> 13.4124727 | D13: =+D42-D$30 -> 13.51764056 | E13: 13.4094272 | F13: 10.53974505 | G13: 7.670062901 | H13: 4.800380753 | I13: =SUMPRODUCT('Performance Table'!C$3:G$3,'Performance Table'!C14:G14)-H$30 -> 8.923960964
A14: 2011 | C14: =+C43-C$30 -> -1.768822983 | D14: =+D43-D$30 -> -7.311845124 | E14: -1.99747135 | F14: -1.789035284 | G14: -1.580599218 | H14: -1.372163152 | I14: =SUMPRODUCT('Performance Table'!C$3:G$3,'Performance Table'!C15:G15)-H$30 -> 0.04175478287
A15: 2012 | C15: =+C44-C$30 -> 9.770991273 | D15: =+D44-D$30 -> 11.41957054 | E15: 9.639039801 | F15: 7.518893183 | G15: 5.398746565 | H15: 3.278599947 | I15: =SUMPRODUCT('Performance Table'!C$3:G$3,'Performance Table'!C16:G16)-H$30 -> 8.721451514
A16: 2013 | C16: =+C45-C$30 -> 9.463189958 | D16: =+D45-D$30 -> 10.32975057 | E16: 8.649201602 | F16: 6.723221557 | G16: 4.797241511 | H16: 2.871261466 | I16: =SUMPRODUCT('Performance Table'!C$3:G$3,'Performance Table'!C17:G17)-H$30 -> 13.69644071
A17: 2014 | C17: =+C46-C$30 -> 0.4946053193 | D17: =+D46-D$30 -> -0.9467912018 | E17: 1.495570451 | F17: 0.998376445 | G17: 0.5011824394 | H17: 0.003988433725 | I17: =SUMPRODUCT('Performance Table'!C$3:G$3,'Performance Table'!C18:G18)-H$30 -> 4.269209698
A18: 2015 | C18: =+C47-C$30 -> -7.05782527 | D18: =+D47-D$30 -> -7.955817256 | E18: -6.07237069 | F18: -5.048114599 | G18: -4.023858508 | H18: -2.999602417 | I18: =SUMPRODUCT('Performance Table'!C$3:G$3,'Performance Table'!C19:G19)-H$30 -> -1.017265006
A19: 2016 | C19: =+C48-C$30 -> 10.50675981 | D19: =+D48-D$30 -> 8.186795568 | E19: 9.142744193 | F19: 7.180753047 | G19: 5.218761901 | H19: 3.256770755 | I19: =SUMPRODUCT('Performance Table'!C$3:G$3,'Performance Table'!C20:G20)-H$30 -> 5.245007952
A20: 2017 | C20: =+C49-C$30 -> 10.99178528 | D20: =+D49-D$30 -> 12.66546002 | E20: 10.96856712 | F20: 8.736968566 | G20: 6.505370014 | H20: 4.273771463 | I20: =SUMPRODUCT('Performance Table'!C$3:G$3,'Performance Table'!C21:G21)-H$30 -> 11.05700638
A21: 2018 | C21: =+C50-C$30 -> -8.535035426 | D21: =+D50-D$30 -> -8.635070329 | E21: -6.885668241 | F21: -5.352551908 | G21: -3.819435575 | H21: -2.286319242 | I21: =SUMPRODUCT('Performance Table'!C$3:G$3,'Performance Table'!C22:G22)-H$30 -> -4.971206184
A22: 2019 | C22: =+C51-C$30 -> 15.57356468 | D22: =+D51-D$30 -> 15.16423548 | E22: 14.88554537 | F22: 12.13612544 | G22: 9.386705516 | H22: 6.63728559 | I22: =SUMPRODUCT('Performance Table'!C$3:G$3,'Performance Table'!C23:G23)-H$30 -> 16.08635526
A23: 2020 | C23: =+C52-C$30 -> 4.268534807 | D23: =+D52-D$30 -> 12.81759624 | E23: 4.779325839 | F23: 3.78984569 | G23: 2.80036554 | H23: 1.810885391 | I23: =SUMPRODUCT('Performance Table'!C$3:G$3,'Performance Table'!C24:G24)-H$30 -> 9.450879616
A24: 2021 | C24: =+C53-C$30 -> 15.84701151 | D24: =+D53-D$30 -> 4.278071669 | E24: 5.475705518 | F24: 4.15825457 | G24: 2.840803621 | H24: 1.523352673 | I24: =SUMPRODUCT('Performance Table'!C$3:G$3,'Performance Table'!C25:G25)-H$30 -> 8.815384761
A25: 2022 | C25: =+C54-C$30 -> -8.708127173 | D25: =+D54-D$30 -> -19.60322954 | E25: -15.02372723 | F25: -12.03042336 | G25: -9.037119491 | H25: -6.043815623 | I25: =SUMPRODUCT('Performance Table'!C$3:G$3,'Performance Table'!C26:G26)-H$30 -> -13.99081175
A26: 2023 | C26: =+C55-C$30 -> 8.255680127 | D26: =+D55-D$30 -> 10.85501487 | E26: 7.104822298 | F26: 6.490944693 | G26: 5.877067087 | H26: 5.263189482 | I26: =SUMPRODUCT('Performance Table'!C$3:G$3,'Performance Table'!C27:G27)-H$30 -> 12.69662311
A27: 2024 | C27: =+C56-C$30 -> 5.145499023 | D27: =+D56-D$30 -> 8.270387676 | E27: 8.12437205 | F27: 7.332131911 | G27: 6.539891773 | H27: 5.747651634 | I27: =SUMPRODUCT('Performance Table'!C$3:G$3,'Performance Table'!C28:G28)-H$30 -> 8.165
A28: 2025 | C28: =+C57-C$30 -> 12.1 | D28: =+D57-D$30 -> 14.28 | E28: =+E57-E$30 -> 10.17 | F28: 8.79 | G28: =+G57-G$30 -> 7.4 | H28: =+H57-H$30 -> 6.01 | I28: =SUMPRODUCT('Performance Table'!C$3:G$3,'Performance Table'!C29:G29)-H$30 -> 12.5995
A30: Overlay Cost | C30: ='Performance Table'!E31/100 -> 1 | D30: =$C30 -> 1 | E30: =$C30 -> 1 | F30: 1 | G30: 1 | H30: 1 | I30: 1
F32: Raw Returns here
A33: 2001 | C33: -2.090150812 | D33: 2.977690421 | E33: -1.941274182 | F33: -0.7200717913 | G33: 0.5011305995 | H33: 1.72233299 | L33: =+ISBLANK('Performance Table'!C5) -> FALSE | M33: =+ISBLANK('Performance Table'!D5) -> FALSE | N33: =+ISBLANK('Performance Table'!E5) -> FALSE | O33: =+ISBLANK('Performance Table'!F5) -> FALSE | P33: =+ISBLANK('Performance Table'!G5) -> FALSE
A34: =A33+1 -> 2002 | C34: -0.5621481727 | D34: 2.179802055 | E34: -0.6362026854 | F34: -0.1789151491 | G34: 0.2783723872 | H34: 0.7356599234 | L34: =+ISBLANK('Performance Table'!C6) -> FALSE | M34: =+ISBLANK('Performance Table'!D6) -> FALSE | N34: =+ISBLANK('Performance Table'!E6) -> FALSE | O34: =+ISBLANK('Performance Table'!F6) -> FALSE | P34: =+ISBLANK('Performance Table'!G6) -> FALSE
A35: =A34+1 -> 2003 | C35: 27.09708925 | D35: 28.81567103 | E35: 26.95270497 | F35: 21.74129344 | G35: 16.52988191 | H35: 11.31847039 | L35: =+ISBLANK('Performance Table'!C7) -> FALSE | M35: =+ISBLANK('Performance Table'!D7) -> FALSE | N35: =+ISBLANK('Performance Table'!E7) -> FALSE | O35: =+ISBLANK('Performance Table'!F7) -> FALSE | P35: =+ISBLANK('Performance Table'!G7) -> FALSE
A36: 2004 | C36: 17.95698485 | D36: 19.79351968 | E36: 17.80446636 | F36: 14.46515727 | G36: 11.12584819 | H36: 7.786539103 | L36: =+ISBLANK('Performance Table'!C8) -> FALSE | M36: =+ISBLANK('Performance Table'!D8) -> FALSE | N36: =+ISBLANK('Performance Table'!E8) -> FALSE | O36: =+ISBLANK('Performance Table'!F8) -> FALSE | P36: =+ISBLANK('Performance Table'!G8) -> FALSE
A37: 2005 | C37: 12.48562195 | D37: 12.9069003 | E37: 12.34355801 | F37: 10.47659781 | G37: 8.609637601 | H37: 6.742677397 | L37: =+ISBLANK('Performance Table'!C9) -> FALSE | M37: =+ISBLANK('Performance Table'!D9) -> FALSE | N37: =+ISBLANK('Performance Table'!E9) -> FALSE | O37: =+ISBLANK('Performance Table'!F9) -> FALSE | P37: =+ISBLANK('Performance Table'!G9) -> FALSE
A38: =+A37+1 -> 2006 | C38: 15.26140351 | D38: 15.97673833 | E38: 14.96486633 | F38: 12.94847572 | G38: 10.93208511 | H38: 8.915694497 | L38: =+ISBLANK('Performance Table'!C10) -> FALSE | M38: =+ISBLANK('Performance Table'!D10) -> FALSE | N38: =+ISBLANK('Performance Table'!E10) -> FALSE | O38: =+ISBLANK('Performance Table'!F10) -> FALSE | P38: =+ISBLANK('Performance Table'!G10) -> FALSE
A39: 2007 | C39: 12.31907533 | D39: 13.77853217 | E39: 11.58495875 | F39: 10.29645717 | G39: 9.007955602 | H39: 7.71945403 | L39: =+ISBLANK('Performance Table'!C11) -> FALSE | M39: =+ISBLANK('Performance Table'!D11) -> FALSE | N39: =+ISBLANK('Performance Table'!E11) -> FALSE | O39: =+ISBLANK('Performance Table'!F11) -> FALSE | P39: =+ISBLANK('Performance Table'!G11) -> FALSE
A40: 2008 | C40: -25.48878673 | D40: -28.14289434 | E40: -25.16404638 | F40: -19.57661121 | G40: -13.98917603 | H40: -8.401740857 | L40: =+ISBLANK('Performance Table'!C12) -> FALSE | M40: =+ISBLANK('Performance Table'!D12) -> FALSE | N40: =+ISBLANK('Performance Table'!E12) -> FALSE | O40: =+ISBLANK('Performance Table'!F12) -> FALSE | P40: =+ISBLANK('Performance Table'!G12) -> FALSE
A41: 2009 | C41: 25.64373834 | D41: 32.3553042 | E41: 25.64405985 | F41: 20.62150302 | G41: 15.59894619 | H41: 10.57638935 | L41: =+ISBLANK('Performance Table'!C13) -> FALSE | M41: =+ISBLANK('Performance Table'!D13) -> FALSE | N41: =+ISBLANK('Performance Table'!E13) -> FALSE | O41: =+ISBLANK('Performance Table'!F13) -> FALSE | P41: =+ISBLANK('Performance Table'!G13) -> FALSE
A42: 2010 | C42: 14.4124727 | D42: 14.51764056 | E42: 14.4094272 | F42: 11.53974505 | G42: 8.670062901 | H42: 5.800380753 | L42: =+ISBLANK('Performance Table'!C14) -> FALSE | M42: =+ISBLANK('Performance Table'!D14) -> FALSE | N42: =+ISBLANK('Performance Table'!E14) -> FALSE | O42: =+ISBLANK('Performance Table'!F14) -> FALSE | P42: =+ISBLANK('Performance Table'!G14) -> FALSE
A43: 2011 | C43: -0.7688229827 | D43: -6.311845124 | E43: -0.9974713498 | F43: -0.7890352837 | G43: -0.5805992177 | H43: -0.3721631516 | L43: =+ISBLANK('Performance Table'!C15) -> FALSE | M43: =+ISBLANK('Performance Table'!D15) -> FALSE | N43: =+ISBLANK('Performance Table'!E15) -> FALSE | O43: =+ISBLANK('Performance Table'!F15) -> FALSE | P43: =+ISBLANK('Performance Table'!G15) -> FALSE
A44: 2012 | C44: 10.77099127 | D44: 12.41957054 | E44: 10.6390398 | F44: 8.518893183 | G44: 6.398746565 | H44: 4.278599947 | L44: =+ISBLANK('Performance Table'!C16) -> FALSE | M44: =+ISBLANK('Performance Table'!D16) -> FALSE | N44: =+ISBLANK('Performance Table'!E16) -> FALSE | O44: =+ISBLANK('Performance Table'!F16) -> FALSE | P44: =+ISBLANK('Performance Table'!G16) -> FALSE
A45: 2013 | C45: 10.46318996 | D45: 11.32975057 | E45: 9.649201602 | F45: 7.723221557 | G45: 5.797241511 | H45: 3.871261466 | L45: =+ISBLANK('Performance Table'!C17) -> FALSE | M45: =+ISBLANK('Performance Table'!D17) -> FALSE | N45: =+ISBLANK('Performance Table'!E17) -> FALSE | O45: =+ISBLANK('Performance Table'!F17) -> FALSE | P45: =+ISBLANK('Performance Table'!G17) -> FALSE
A46: 2014 | C46: 1.494605319 | D46: 0.05320879818 | E46: 2.495570451 | F46: 1.998376445 | G46: 1.501182439 | H46: 1.003988434 | L46: =+ISBLANK('Performance Table'!C18) -> FALSE | M46: =+ISBLANK('Performance Table'!D18) -> FALSE | N46: =+ISBLANK('Performance Table'!E18) -> FALSE | O46: =+ISBLANK('Performance Table'!F18) -> FALSE | P46: =+ISBLANK('Performance Table'!G18) -> FALSE
A47: 2015 | C47: -6.05782527 | D47: -6.955817256 | E47: -5.07237069 | F47: -4.048114599 | G47: -3.023858508 | H47: -1.999602417 | L47: =+ISBLANK('Performance Table'!C19) -> FALSE | M47: =+ISBLANK('Performance Table'!D19) -> FALSE | N47: =+ISBLANK('Performance Table'!E19) -> FALSE | O47: =+ISBLANK('Performance Table'!F19) -> FALSE | P47: =+ISBLANK('Performance Table'!G19) -> FALSE
A48: 2016 | C48: 11.50675981 | D48: 9.186795568 | E48: 10.14274419 | F48: 8.180753047 | G48: 6.218761901 | H48: 4.256770755 | L48: =+ISBLANK('Performance Table'!C20) -> FALSE | M48: =+ISBLANK('Performance Table'!D20) -> FALSE | N48: =+ISBLANK('Performance Table'!E20) -> FALSE | O48: =+ISBLANK('Performance Table'!F20) -> FALSE | P48: =+ISBLANK('Performance Table'!G20) -> FALSE
A49: 2017 | C49: 11.99178528 | D49: 13.66546002 | E49: 11.96856712 | F49: 9.736968566 | G49: 7.505370014 | H49: 5.273771463 | L49: =+ISBLANK('Performance Table'!C21) -> FALSE | M49: =+ISBLANK('Performance Table'!D21) -> FALSE | N49: =+ISBLANK('Performance Table'!E21) -> FALSE | O49: =+ISBLANK('Performance Table'!F21) -> FALSE | P49: =+ISBLANK('Performance Table'!G21) -> FALSE
A50: 2018 | C50: -7.535035426 | D50: -7.635070329 | E50: -5.885668241 | F50: -4.352551908 | G50: -2.819435575 | H50: -1.286319242 | L50: =+ISBLANK('Performance Table'!C22) -> FALSE | M50: =+ISBLANK('Performance Table'!D22) -> FALSE | N50: =+ISBLANK('Performance Table'!E22) -> FALSE | O50: =+ISBLANK('Performance Table'!F22) -> FALSE | P50: =+ISBLANK('Performance Table'!G22) -> FALSE
A51: 2019 | C51: 16.57356468 | D51: 16.16423548 | E51: 15.88554537 | F51: 13.13612544 | G51: 10.38670552 | H51: 7.63728559 | L51: =+ISBLANK('Performance Table'!C23) -> FALSE | M51: =+ISBLANK('Performance Table'!D23) -> FALSE | N51: =+ISBLANK('Performance Table'!E23) -> FALSE | O51: =+ISBLANK('Performance Table'!F23) -> FALSE | P51: =+ISBLANK('Performance Table'!G23) -> FALSE
A52: 2020 | C52: 5.268534807 | D52: 13.81759624 | E52: 5.779325839 | F52: 4.78984569 | G52: 3.80036554 | H52: 2.810885391 | L52: =+ISBLANK('Performance Table'!C24) -> FALSE | M52: =+ISBLANK('Performance Table'!D24) -> FALSE | N52: =+ISBLANK('Performance Table'!E24) -> FALSE | O52: =+ISBLANK('Performance Table'!F24) -> FALSE | P52: =+ISBLANK('Performance Table'!G24) -> FALSE
A53: 2021 | C53: 16.84701151 | D53: 5.278071669 | E53: 6.475705518 | F53: 5.15825457 | G53: 3.840803621 | H53: 2.523352673 | L53: =+ISBLANK('Performance Table'!C25) -> FALSE | M53: =+ISBLANK('Performance Table'!D25) -> FALSE | N53: =+ISBLANK('Performance Table'!E25) -> FALSE | O53: =+ISBLANK('Performance Table'!F25) -> FALSE | P53: =+ISBLANK('Performance Table'!G25) -> FALSE
A54: 2022 | C54: -7.708127173 | D54: -18.60322954 | E54: -14.02372723 | F54: -11.03042336 | G54: -8.037119491 | H54: -5.043815623 | L54: =+ISBLANK('Performance Table'!C26) -> FALSE | M54: =+ISBLANK('Performance Table'!D26) -> FALSE | N54: =+ISBLANK('Performance Table'!E26) -> FALSE | O54: =+ISBLANK('Performance Table'!F26) -> FALSE | P54: =+ISBLANK('Performance Table'!G26) -> FALSE
A55: 2023 | C55: 9.255680127 | D55: 11.85501487 | E55: 8.104822298 | F55: 7.490944693 | G55: 6.877067087 | H55: 6.263189482 | L55: =+ISBLANK('Performance Table'!C27) -> FALSE | M55: =+ISBLANK('Performance Table'!D27) -> FALSE | N55: =+ISBLANK('Performance Table'!E27) -> FALSE | O55: =+ISBLANK('Performance Table'!F27) -> FALSE | P55: =+ISBLANK('Performance Table'!G27) -> FALSE
A56: 2024 | C56: 6.145499023 | D56: 9.270387676 | E56: 9.12437205 | F56: 8.332131911 | G56: 7.539891773 | H56: 6.747651634 | L56: =+ISBLANK('Performance Table'!C28) -> FALSE | M56: =+ISBLANK('Performance Table'!D28) -> FALSE | N56: =+ISBLANK('Performance Table'!E28) -> FALSE | O56: =+ISBLANK('Performance Table'!F28) -> FALSE | P56: =+ISBLANK('Performance Table'!G28) -> FALSE
A57: 2025 | C57: 13.1 | D57: 15.28 | E57: 11.17 | F57: 9.79 | G57: 8.4 | H57: 7.01 | L57: =+ISBLANK('Performance Table'!C29) -> FALSE | M57: =+ISBLANK('Performance Table'!D29) -> FALSE | N57: =+ISBLANK('Performance Table'!E29) -> FALSE | O57: =+ISBLANK('Performance Table'!F29) -> FALSE | P57: =+ISBLANK('Performance Table'!G29) -> FALSE
